organisation_name,service_responsible,supplier_code,supplier_name,payment_date,transaction_ref,net_amount_by_line_item,irrecoverable_vat,purpose_of_spend,procurement_category_name,transaction_type,payment_type,card_transaction,invoice_date,financial_year,financial_period,supplier_invoice_reference,cost_centre_code,cost_centre_desc,account_code,account_desc,SeRCOP_subdivision_code,SeRCOP_Subdivision_description,SeRCOP_division_codee,SeRCOP_division_description,SeRCOP_service_code,SeRCOP_service_description,SeRCOP_major_service_code,SeRCOP_major_service_description
GUILDFORD BOROUGH COUNCIL,Regulatory Services,587740,12 CP Barristers,22/08/2023,30109612,4842.5,0,Services,,Invoice,BACS,No,02/06/2023 00:00,2023,5,INV/SV593,H2100,Licensing Services,D6004,Services,CEE15,Alcohol and entertainment licensing,CEE,Environmental Health (Regulatory Services),CE,Environmental & Regulatory Services,C,"Cultural, Environmental & Planning Services"
GUILDFORD BOROUGH COUNCIL,Regulatory Services,587740,12 CP Barristers,24/08/2023,30109616,440,0,Services,,Invoice,BACS,No,31/07/2023 00:00,2023,5,INV/SV609,H2100,Licensing Services,D6004,Services,CEE15,Alcohol and entertainment licensing,CEE,Environmental Health (Regulatory Services),CE,Environmental & Regulatory Services,C,"Cultural, Environmental & Planning Services"
GUILDFORD BOROUGH COUNCIL,New Build,1000961,31ten Consulting Limited,24/08/2023,30110107,5088,0,Consultants Fees,,Invoice,BACS,No,31/07/2023 00:00,2023,5,2601,N30011,Guildford Park,1221,Consultants Fees,XXX99,*** UNASSIGNED ***,WCC,CEC Recharges,WC,CEC Recharges,A,Central Services
GUILDFORD BOROUGH COUNCIL,Renovations,1000338,3MS Gold Services Ltd,18/07/2023,30107235,3800,0,Contractor Payments,,Invoice,BACS,No,10/07/2023 00:00,2023,4,3168,N40295,Disabled adaptations,1233,Contractor Payments,XXX99,*** UNASSIGNED ***,WCC,CEC Recharges,WC,CEC Recharges,A,Central Services
GUILDFORD BOROUGH COUNCIL,Renovations,1000338,3MS Gold Services Ltd,31/08/2023,30110525,4478.04,0,Contractor Payments,,Invoice,BACS,No,23/08/2023 00:00,2023,5,3210,N40295,Disabled adaptations,1233,Contractor Payments,XXX99,*** UNASSIGNED ***,WCC,CEC Recharges,WC,CEC Recharges,A,Central Services
GUILDFORD BOROUGH COUNCIL,Renovations,1000338,3MS Gold Services Ltd,18/07/2023,30107235,5700,0,Contractor Payments,,Invoice,BACS,No,10/07/2023 00:00,2023,4,3168,N40295,Disabled adaptations,1233,Contractor Payments,XXX99,*** UNASSIGNED ***,WCC,CEC Recharges,WC,CEC Recharges,A,Central Services
GUILDFORD BOROUGH COUNCIL,Renovations,1000338,3MS Gold Services Ltd,04/07/2023,30106280,4204.51,0,Contractor Payments,,Invoice,BACS,No,23/06/2023 00:00,2023,4,3155,N40295,Disabled adaptations,1233,Contractor Payments,XXX99,*** UNASSIGNED ***,WCC,CEC Recharges,WC,CEC Recharges,A,Central Services
GUILDFORD BOROUGH COUNCIL,Renovations,1000338,3MS Gold Services Ltd,04/07/2023,30106280,2803.01,0,Contractor Payments,,Invoice,BACS,No,23/06/2023 00:00,2023,4,3155,N40295,Disabled adaptations,1233,Contractor Payments,XXX99,*** UNASSIGNED ***,WCC,CEC Recharges,WC,CEC Recharges,A,Central Services
GUILDFORD BOROUGH COUNCIL,Renovations,1000338,3MS Gold Services Ltd,11/07/2023,30106777,2769.69,0,Contractor Payments,,Invoice,BACS,No,06/07/2023 00:00,2023,4,3164,N40295,Disabled adaptations,1233,Contractor Payments,XXX99,*** UNASSIGNED ***,WCC,CEC Recharges,WC,CEC Recharges,A,Central Services
GUILDFORD BOROUGH COUNCIL,Renovations,1000338,3MS Gold Services Ltd,11/07/2023,30106777,4154.53,0,Contractor Payments,,Invoice,BACS,No,06/07/2023 00:00,2023,4,3164,N40295,Disabled adaptations,1233,Contractor Payments,XXX99,*** UNASSIGNED ***,WCC,CEC Recharges,WC,CEC Recharges,A,Central Services
GUILDFORD BOROUGH COUNCIL,Renovations,1000338,3MS Gold Services Ltd,31/08/2023,30110524,3615.36,0,Contractor Payments,,Invoice,BACS,No,22/08/2023 00:00,2023,5,3204,N40295,Disabled adaptations,1233,Contractor Payments,XXX99,*** UNASSIGNED ***,WCC,CEC Recharges,WC,CEC Recharges,A,Central Services
GUILDFORD BOROUGH COUNCIL,Renovations,1000338,3MS Gold Services Ltd,31/08/2023,30110524,2410.26,0,Contractor Payments,,Invoice,BACS,No,22/08/2023 00:00,2023,5,3204,N40295,Disabled adaptations,1233,Contractor Payments,XXX99,*** UNASSIGNED ***,WCC,CEC Recharges,WC,CEC Recharges,A,Central Services
GUILDFORD BOROUGH COUNCIL,Renovations,1000338,3MS Gold Services Ltd,31/08/2023,30110525,3000.36,0,Contractor Payments,,Invoice,BACS,No,23/08/2023 00:00,2023,5,3210,N40295,Disabled adaptations,1233,Contractor Payments,XXX99,*** UNASSIGNED ***,WCC,CEC Recharges,WC,CEC Recharges,A,Central Services
GUILDFORD BOROUGH COUNCIL,Planning & Development,1000077,3R Finance Ltd,18/07/2023,30107074,2244,0,Agency,,Invoice,BACS,No,12/06/2023 00:00,2023,4,INV-90275,D5100,Development Control - Fee Earn,A5191,Agency,CPC00,Development Control Advice,CPC,Development Control,CP,Planning and Development Services,C,"Cultural, Environmental & Planning Services"
GUILDFORD BOROUGH COUNCIL,Planning & Development,1000077,3R Finance Ltd,28/09/2023,30111291,1881,0,Agency,,Invoice,BACS,No,08/09/2023 00:00,2023,6,INV-96128,D5100,Development Control - Fee Earn,A5191,Agency,CPC00,Development Control Advice,CPC,Development Control,CP,Planning and Development Services,C,"Cultural, Environmental & Planning Services"
GUILDFORD BOROUGH COUNCIL,Planning & Development,1000077,3R Finance Ltd,26/09/2023,30110480,2112,0,Agency,,Invoice,BACS,No,29/08/2023 00:00,2023,5,INV-95303,D5100,Development Control - Fee Earn,A5191,Agency,CPC00,Development Control Advice,CPC,Development Control,CP,Planning and Development Services,C,"Cultural, Environmental & Planning Services"
GUILDFORD BOROUGH COUNCIL,Planning & Development,1000077,3R Finance Ltd,27/07/2023,30106472,2145,0,Agency,,Invoice,BACS,No,04/07/2023 00:00,2023,4,INV-91914,D5100,Development Control - Fee Earn,A5191,Agency,CPC00,Development Control Advice,CPC,Development Control,CP,Planning and Development Services,C,"Cultural, Environmental & Planning Services"
GUILDFORD BOROUGH COUNCIL,Planning & Development,1000077,3R Finance Ltd,19/09/2023,30110115,2706,0,Agency,,Invoice,BACS,No,22/08/2023 00:00,2023,5,INV-95016,D5100,Development Control - Fee Earn,A5191,Agency,CPC00,Development Control Advice,CPC,Development Control,CP,Planning and Development Services,C,"Cultural, Environmental & Planning Services"
GUILDFORD BOROUGH COUNCIL,Planning & Development,1000077,3R Finance Ltd,31/08/2023,30108877,1320,0,Agency,,Invoice,BACS,No,07/08/2023 00:00,2023,5,INV-93973,D5100,Development Control - Fee Earn,A5191,Agency,CPC00,Development Control Advice,CPC,Development Control,CP,Planning and Development Services,C,"Cultural, Environmental & Planning Services"
GUILDFORD BOROUGH COUNCIL,Planning & Development,1000077,3R Finance Ltd,17/08/2023,30107865,2244,0,Agency,,Invoice,BACS,No,24/07/2023 00:00,2023,4,INV-93035,D5100,Development Control - Fee Earn,A5191,Agency,CPC00,Development Control Advice,CPC,Development Control,CP,Planning and Development Services,C,"Cultural, Environmental & Planning Services"
GUILDFORD BOROUGH COUNCIL,Planning & Development,1000077,3R Finance Ltd,10/08/2023,30107594,2145,0,Agency,,Invoice,BACS,No,18/07/2023 00:00,2023,4,INV-92805,D5100,Development Control - Fee Earn,A5191,Agency,CPC00,Development Control Advice,CPC,Development Control,CP,Planning and Development Services,C,"Cultural, Environmental & Planning Services"
GUILDFORD BOROUGH COUNCIL,Planning & Development,1000077,3R Finance Ltd,07/09/2023,30109289,1848,0,Agency,,Invoice,BACS,No,14/08/2023 00:00,2023,5,INV-94405,D5100,Development Control - Fee Earn,A5191,Agency,CPC00,Development Control Advice,CPC,Development Control,CP,Planning and Development Services,C,"Cultural, Environmental & Planning Services"
GUILDFORD BOROUGH COUNCIL,Environmental Services,320160,A & P Services (Surrey) Ltd,26/09/2023,30111307,400.3,0,Services,Agricultural Engineers,Invoice,BACS,No,29/08/2023 00:00,2023,6,7983,K5551,Fleet Workshops,D6004,Services,W3A48,Current Service Costs - Fleet Management,W3A,Current Service Costs adjustment,W3,Current Service Costs,W,Other Operating Income and Expenditure
GUILDFORD BOROUGH COUNCIL,Environmental Services,320160,A & P Services (Surrey) Ltd,03/08/2023,30106922,396.33,0,Services,Agricultural Engineers,Invoice,BACS,No,10/07/2023 00:00,2023,4,7922,K5551,Fleet Workshops,D6004,Services,W3A48,Current Service Costs - Fleet Management,W3A,Current Service Costs adjustment,W3,Current Service Costs,W,Other Operating Income and Expenditure
GUILDFORD BOROUGH COUNCIL,Environmental Services,320160,A & P Services (Surrey) Ltd,07/09/2023,30109559,349.72,0,Services,Agricultural Engineers,Invoice,BACS,No,15/08/2023 00:00,2023,5,7967,K5551,Fleet Workshops,D6004,Services,W3A48,Current Service Costs - Fleet Management,W3A,Current Service Costs adjustment,W3,Current Service Costs,W,Other Operating Income and Expenditure
GUILDFORD BOROUGH COUNCIL,Environmental Services,320160,A & P Services (Surrey) Ltd,27/07/2023,30108022,350.66,0,Services,Agricultural Engineers,Invoice,BACS,No,12/06/2023 00:00,2023,4,7882,K5551,Fleet Workshops,D6004,Services,W3A48,Current Service Costs - Fleet Management,W3A,Current Service Costs adjustment,W3,Current Service Costs,W,Other Operating Income and Expenditure
GUILDFORD BOROUGH COUNCIL,Environmental Services,320160,A & P Services (Surrey) Ltd,17/08/2023,30108024,554.82,0,Services,Agricultural Engineers,Invoice,BACS,No,24/07/2023 00:00,2023,4,7945,K5551,Fleet Workshops,D6004,Services,W3A48,Current Service Costs - Fleet Management,W3A,Current Service Costs adjustment,W3,Current Service Costs,W,Other Operating Income and Expenditure
GUILDFORD BOROUGH COUNCIL,HRA Service Delivery,713700,A P Benson Roofing & Building Limited,19/09/2023,30111691,1578,0,Asset Maintenance,Roofers,Invoice,BACS,No,09/08/2023 00:00,2023,6,5100,M5113,Repairs-Responsive (BHS),B1001,Asset Maintenance,W3A05,Current Service Costs - Housing Services,W3A,Current Service Costs adjustment,W3,Current Service Costs,W,Other Operating Income and Expenditure
GUILDFORD BOROUGH COUNCIL,HRA Service Delivery,713700,A P Benson Roofing & Building Limited,19/09/2023,30111692,1578,0,Asset Maintenance,Roofers,Invoice,BACS,No,09/08/2023 00:00,2023,6,5101,M5113,Repairs-Responsive (BHS),B1001,Asset Maintenance,W3A05,Current Service Costs - Housing Services,W3A,Current Service Costs adjustment,W3,Current Service Costs,W,Other Operating Income and Expenditure
GUILDFORD BOROUGH COUNCIL,HRA Service Delivery,713700,A P Benson Roofing & Building Limited,19/09/2023,30111693,1578,0,Asset Maintenance,Roofers,Invoice,BACS,No,16/08/2023 00:00,2023,6,5104,M5113,Repairs-Responsive (BHS),B1001,Asset Maintenance,W3A05,Current Service Costs - Housing Services,W3A,Current Service Costs adjustment,W3,Current Service Costs,W,Other Operating Income and Expenditure
GUILDFORD BOROUGH COUNCIL,HRA Service Delivery,713700,A P Benson Roofing & Building Limited,19/09/2023,30111694,1578,0,Asset Maintenance,Roofers,Invoice,BACS,No,16/08/2023 00:00,2023,6,5105,M5113,Repairs-Responsive (BHS),B1001,Asset Maintenance,W3A05,Current Service Costs - Housing Services,W3A,Current Service Costs adjustment,W3,Current Service Costs,W,Other Operating Income and Expenditure
GUILDFORD BOROUGH COUNCIL,HRA Service Delivery,713700,A P Benson Roofing & Building Limited,25/07/2023,30107814,3390,0,Asset Maintenance,Roofers,Invoice,BACS,No,13/07/2023 00:00,2023,4,5076,M5114,Repairs-Cyclical (BHS),B1001,Asset Maintenance,W3A05,Current Service Costs - Housing Services,W3A,Current Service Costs adjustment,W3,Current Service Costs,W,Other Operating Income and Expenditure
GUILDFORD BOROUGH COUNCIL,HRA Service Delivery,713700,A P Benson Roofing & Building Limited,10/08/2023,30109123,748,0,Asset Maintenance,Roofers,Invoice,BACS,No,20/06/2023 00:00,2023,5,5065,M5113,Repairs-Responsive (BHS),B1001,Asset Maintenance,W3A05,Current Service Costs - Housing Services,W3A,Current Service Costs adjustment,W3,Current Service Costs,W,Other Operating Income and Expenditure
GUILDFORD BOROUGH COUNCIL,HRA Service Delivery,713700,A P Benson Roofing & Building Limited,19/09/2023,30111689,3390,0,Asset Maintenance,Roofers,Invoice,BACS,No,09/08/2023 00:00,2023,6,5098,M5113,Repairs-Responsive (BHS),B1001,Asset Maintenance,W3A05,Current Service Costs - Housing Services,W3A,Current Service Costs adjustment,W3,Current Service Costs,W,Other Operating Income and Expenditure
GUILDFORD BOROUGH COUNCIL,HRA Service Delivery,713700,A P Benson Roofing & Building Limited,19/09/2023,30111690,3390,0,Asset Maintenance,Roofers,Invoice,BACS,No,09/08/2023 00:00,2023,6,5099,M5113,Repairs-Responsive (BHS),B1001,Asset Maintenance,W3A05,Current Service Costs - Housing Services,W3A,Current Service Costs adjustment,W3,Current Service Costs,W,Other Operating Income and Expenditure
GUILDFORD BOROUGH COUNCIL,HRA Service Delivery,713700,A P Benson Roofing & Building Limited,19/09/2023,30111695,3390,0,Asset Maintenance,Roofers,Invoice,BACS,No,16/08/2023 00:00,2023,6,5106,M5113,Repairs-Responsive (BHS),B1001,Asset Maintenance,W3A05,Current Service Costs - Housing Services,W3A,Current Service Costs adjustment,W3,Current Service Costs,W,Other Operating Income and Expenditure
GUILDFORD BOROUGH COUNCIL,HRA Service Delivery,713700,A P Benson Roofing & Building Limited,25/07/2023,30107813,3390,0,Asset Maintenance,Roofers,Invoice,BACS,No,13/07/2023 00:00,2023,4,5075,M5114,Repairs-Cyclical (BHS),B1001,Asset Maintenance,W3A05,Current Service Costs - Housing Services,W3A,Current Service Costs adjustment,W3,Current Service Costs,W,Other Operating Income and Expenditure
GUILDFORD BOROUGH COUNCIL,HRA Service Delivery,826860,A Plus Clean Ltd,18/07/2023,30107188,1197,0,Asset Maintenance,Commercial Cleaners,Invoice,BACS,No,02/02/2023 00:00,2023,4,INV/12621,M3511,Walnut Tree Close Eq. Share,B1001,Asset Maintenance,W3A05,Current Service Costs - Housing Services,W3A,Current Service Costs adjustment,W3,Current Service Costs,W,Other Operating Income and Expenditure
GUILDFORD BOROUGH COUNCIL,HRA Service Delivery,826860,A Plus Clean Ltd,18/07/2023,30107187,1342,0,Asset Maintenance,Commercial Cleaners,Invoice,BACS,No,01/02/2023 00:00,2023,4,INV/12620,M3511,Walnut Tree Close Eq. Share,B1001,Asset Maintenance,W3A05,Current Service Costs - Housing Services,W3A,Current Service Costs adjustment,W3,Current Service Costs,W,Other Operating Income and Expenditure
GUILDFORD BOROUGH COUNCIL,Housing Services,969700,A Star Maintenance Contractors Ltd (CIS),26/09/2023,30112322,800,0,Services,Property Maintenance Contractors,Invoice,BACS,No,12/09/2023 00:00,2023,6,14864,K1515,Building Maintenance,D6004,Services,DBX45,Property Services,DBX,Support Service and Management Costs,DB,Children's Social Care,E,Childrens and Education Services
GUILDFORD BOROUGH COUNCIL,Housing Services,969700,A Star Maintenance Contractors Ltd (CIS),26/09/2023,30112322,766.9,0,Materials,Property Maintenance Contractors,Invoice,BACS,No,12/09/2023 00:00,2023,6,14864,K1515,Building Maintenance,D2003,Materials,DBX45,Property Services,DBX,Support Service and Management Costs,DB,Children's Social Care,E,Childrens and Education Services
GUILDFORD BOROUGH COUNCIL,Housing Services,969700,A Star Maintenance Contractors Ltd (CIS),13/07/2023,30106896,2000,0,Services,Property Maintenance Contractors,Invoice,BACS,No,04/07/2023 00:00,2023,4,14784,K1515,Building Maintenance,D6004,Services,DBX45,Property Services,DBX,Support Service and Management Costs,DB,Children's Social Care,E,Childrens and Education Services
GUILDFORD BOROUGH COUNCIL,Housing Services,969700,A Star Maintenance Contractors Ltd (CIS),13/07/2023,30106939,282,0,Materials,Property Maintenance Contractors,Invoice,BACS,No,04/07/2023 00:00,2023,4,14782,K1515,Building Maintenance,D2003,Materials,DBX45,Property Services,DBX,Support Service and Management Costs,DB,Children's Social Care,E,Childrens and Education Services
GUILDFORD BOROUGH COUNCIL,Housing Services,969700,A Star Maintenance Contractors Ltd (CIS),13/07/2023,30106930,3927.56,0,Materials,Property Maintenance Contractors,Invoice,BACS,No,04/07/2023 00:00,2023,4,14783,K1515,Building Maintenance,D2003,Materials,DBX45,Property Services,DBX,Support Service and Management Costs,DB,Children's Social Care,E,Childrens and Education Services
GUILDFORD BOROUGH COUNCIL,Housing Services,969700,A Star Maintenance Contractors Ltd (CIS),08/08/2023,30108736,2800,0,Services,Property Maintenance Contractors,Invoice,BACS,No,02/08/2023 00:00,2023,5,14820,K1515,Building Maintenance,D6004,Services,DBX45,Property Services,DBX,Support Service and Management Costs,DB,Children's Social Care,E,Childrens and Education Services
GUILDFORD BOROUGH COUNCIL,Housing Services,969700,A Star Maintenance Contractors Ltd (CIS),08/08/2023,30108782,3593.6,0,Materials,Property Maintenance Contractors,Invoice,BACS,No,02/08/2023 00:00,2023,5,14821,K1515,Building Maintenance,D2003,Materials,DBX45,Property Services,DBX,Support Service and Management Costs,DB,Children's Social Care,E,Childrens and Education Services
GUILDFORD BOROUGH COUNCIL,Housing Services,969700,A Star Maintenance Contractors Ltd (CIS),29/08/2023,30110300,1639,0,Materials,Property Maintenance Contractors,Invoice,BACS,No,16/08/2023 00:00,2023,5,14827,K1515,Building Maintenance,D2003,Materials,DBX45,Property Services,DBX,Support Service and Management Costs,DB,Children's Social Care,E,Childrens and Education Services
GUILDFORD BOROUGH COUNCIL,Housing Services,969700,A Star Maintenance Contractors Ltd (CIS),29/08/2023,30110265,344.8,0,Materials,Property Maintenance Contractors,Invoice,BACS,No,16/08/2023 00:00,2023,5,14828,K1515,Building Maintenance,D2003,Materials,DBX45,Property Services,DBX,Support Service and Management Costs,DB,Children's Social Care,E,Childrens and Education Services
GUILDFORD BOROUGH COUNCIL,Housing Services,969700,A Star Maintenance Contractors Ltd (CIS),29/08/2023,30110275,4936.94,0,Materials,Property Maintenance Contractors,Invoice,BACS,No,16/08/2023 00:00,2023,5,14829,K1515,Building Maintenance,D2003,Materials,DBX45,Property Services,DBX,Support Service and Management Costs,DB,Children's Social Care,E,Childrens and Education Services
GUILDFORD BOROUGH COUNCIL,Housing Services,969700,A Star Maintenance Contractors Ltd (CIS),29/08/2023,30110288,3000,0,Services,Property Maintenance Contractors,Invoice,BACS,No,16/08/2023 00:00,2023,5,14830,K1515,Building Maintenance,D6004,Services,DBX45,Property Services,DBX,Support Service and Management Costs,DB,Children's Social Care,E,Childrens and Education Services
GUILDFORD BOROUGH COUNCIL,Housing Services,969700,A Star Maintenance Contractors Ltd (CIS),29/08/2023,30110288,4774.23,0,Materials,Property Maintenance Contractors,Invoice,BACS,No,16/08/2023 00:00,2023,5,14830,K1515,Building Maintenance,D2003,Materials,DBX45,Property Services,DBX,Support Service and Management Costs,DB,Children's Social Care,E,Childrens and Education Services
GUILDFORD BOROUGH COUNCIL,Housing Services,969700,A Star Maintenance Contractors Ltd (CIS),05/09/2023,30110664,3000,0,Services,Property Maintenance Contractors,Invoice,BACS,No,23/08/2023 00:00,2023,6,14839,K1515,Building Maintenance,D6004,Services,DBX45,Property Services,DBX,Support Service and Management Costs,DB,Children's Social Care,E,Childrens and Education Services
GUILDFORD BOROUGH COUNCIL,Housing Services,969700,A Star Maintenance Contractors Ltd (CIS),05/09/2023,30110664,4575.39,0,Materials,Property Maintenance Contractors,Invoice,BACS,No,23/08/2023 00:00,2023,6,14839,K1515,Building Maintenance,D2003,Materials,DBX45,Property Services,DBX,Support Service and Management Costs,DB,Children's Social Care,E,Childrens and Education Services
GUILDFORD BOROUGH COUNCIL,Housing Services,969700,A Star Maintenance Contractors Ltd (CIS),05/09/2023,30110684,2000,0,Services,Property Maintenance Contractors,Invoice,BACS,No,23/08/2023 00:00,2023,6,14838,K1515,Building Maintenance,D6004,Services,DBX45,Property Services,DBX,Support Service and Management Costs,DB,Children's Social Care,E,Childrens and Education Services
GUILDFORD BOROUGH COUNCIL,Housing Services,969700,A Star Maintenance Contractors Ltd (CIS),05/09/2023,30110684,5357.53,0,Materials,Property Maintenance Contractors,Invoice,BACS,No,23/08/2023 00:00,2023,6,14838,K1515,Building Maintenance,D2003,Materials,DBX45,Property Services,DBX,Support Service and Management Costs,DB,Children's Social Care,E,Childrens and Education Services
GUILDFORD BOROUGH COUNCIL,Housing Services,969700,A Star Maintenance Contractors Ltd (CIS),05/09/2023,30110691,3000,0,Materials,Property Maintenance Contractors,Invoice,BACS,No,23/08/2023 00:00,2023,6,14837,K1515,Building Maintenance,D2003,Materials,DBX45,Property Services,DBX,Support Service and Management Costs,DB,Children's Social Care,E,Childrens and Education Services
GUILDFORD BOROUGH COUNCIL,Housing Services,969700,A Star Maintenance Contractors Ltd (CIS),21/09/2023,30111816,1308.2,0,Materials,Property Maintenance Contractors,Invoice,BACS,No,11/09/2023 00:00,2023,6,14863,K1515,Building Maintenance,D2003,Materials,DBX45,Property Services,DBX,Support Service and Management Costs,DB,Children's Social Care,E,Childrens and Education Services
GUILDFORD BOROUGH COUNCIL,Housing Services,969700,A Star Maintenance Contractors Ltd (CIS),03/08/2023,30108535,2000,0,Services,Property Maintenance Contractors,Invoice,BACS,No,26/07/2023 00:00,2023,5,14816,K1515,Building Maintenance,D6004,Services,DBX45,Property Services,DBX,Support Service and Management Costs,DB,Children's Social Care,E,Childrens and Education Services
GUILDFORD BOROUGH COUNCIL,Housing Services,969700,A Star Maintenance Contractors Ltd (CIS),03/08/2023,30108535,5357.53,0,Materials,Property Maintenance Contractors,Invoice,BACS,No,26/07/2023 00:00,2023,5,14816,K1515,Building Maintenance,D2003,Materials,DBX45,Property Services,DBX,Support Service and Management Costs,DB,Children's Social Care,E,Childrens and Education Services
GUILDFORD BOROUGH COUNCIL,Housing Services,969700,A Star Maintenance Contractors Ltd (CIS),03/08/2023,30108521,4539.35,0,Materials,Property Maintenance Contractors,Invoice,BACS,No,26/07/2023 00:00,2023,5,14813,K1515,Building Maintenance,D2003,Materials,DBX45,Property Services,DBX,Support Service and Management Costs,DB,Children's Social Care,E,Childrens and Education Services
GUILDFORD BOROUGH COUNCIL,Housing Services,969700,A Star Maintenance Contractors Ltd (CIS),03/08/2023,30108528,800,0,Services,Property Maintenance Contractors,Invoice,BACS,No,26/07/2023 00:00,2023,5,14815,K1515,Building Maintenance,D6004,Services,DBX45,Property Services,DBX,Support Service and Management Costs,DB,Children's Social Care,E,Childrens and Education Services
GUILDFORD BOROUGH COUNCIL,Housing Services,969700,A Star Maintenance Contractors Ltd (CIS),03/08/2023,30108528,3824.03,0,Materials,Property Maintenance Contractors,Invoice,BACS,No,26/07/2023 00:00,2023,5,14815,K1515,Building Maintenance,D2003,Materials,DBX45,Property Services,DBX,Support Service and Management Costs,DB,Children's Social Care,E,Childrens and Education Services
GUILDFORD BOROUGH COUNCIL,Housing Services,969700,A Star Maintenance Contractors Ltd (CIS),04/07/2023,30106148,1500,0,Services,Property Maintenance Contractors,Invoice,BACS,No,21/06/2023 00:00,2023,4,14761,K1515,Building Maintenance,D6004,Services,DBX45,Property Services,DBX,Support Service and Management Costs,DB,Children's Social Care,E,Childrens and Education Services
GUILDFORD BOROUGH COUNCIL,Housing Services,969700,A Star Maintenance Contractors Ltd (CIS),26/09/2023,30112338,1000,0,Services,Property Maintenance Contractors,Invoice,BACS,No,12/09/2023 00:00,2023,6,148665,K1515,Building Maintenance,D6004,Services,DBX45,Property Services,DBX,Support Service and Management Costs,DB,Children's Social Care,E,Childrens and Education Services
GUILDFORD BOROUGH COUNCIL,Housing Services,969700,A Star Maintenance Contractors Ltd (CIS),26/09/2023,30112338,1873.54,0,Materials,Property Maintenance Contractors,Invoice,BACS,No,12/09/2023 00:00,2023,6,148665,K1515,Building Maintenance,D2003,Materials,DBX45,Property Services,DBX,Support Service and Management Costs,DB,Children's Social Care,E,Childrens and Education Services
GUILDFORD BOROUGH COUNCIL,Housing Services,969700,A Star Maintenance Contractors Ltd (CIS),13/07/2023,30106896,5739.72,0,Materials,Property Maintenance Contractors,Invoice,BACS,No,04/07/2023 00:00,2023,4,14784,K1515,Building Maintenance,D2003,Materials,DBX45,Property Services,DBX,Support Service and Management Costs,DB,Children's Social Care,E,Childrens and Education Services
GUILDFORD BOROUGH COUNCIL,Housing Services,969700,A Star Maintenance Contractors Ltd (CIS),13/07/2023,30106939,1000,0,Services,Property Maintenance Contractors,Invoice,BACS,No,04/07/2023 00:00,2023,4,14782,K1515,Building Maintenance,D6004,Services,DBX45,Property Services,DBX,Support Service and Management Costs,DB,Children's Social Care,E,Childrens and Education Services
GUILDFORD BOROUGH COUNCIL,Housing Services,969700,A Star Maintenance Contractors Ltd (CIS),13/07/2023,30106930,1500,0,Services,Property Maintenance Contractors,Invoice,BACS,No,04/07/2023 00:00,2023,4,14783,K1515,Building Maintenance,D6004,Services,DBX45,Property Services,DBX,Support Service and Management Costs,DB,Children's Social Care,E,Childrens and Education Services
GUILDFORD BOROUGH COUNCIL,Housing Services,969700,A Star Maintenance Contractors Ltd (CIS),08/08/2023,30108736,4418.71,0,Materials,Property Maintenance Contractors,Invoice,BACS,No,02/08/2023 00:00,2023,5,14820,K1515,Building Maintenance,D2003,Materials,DBX45,Property Services,DBX,Support Service and Management Costs,DB,Children's Social Care,E,Childrens and Education Services
GUILDFORD BOROUGH COUNCIL,Housing Services,969700,A Star Maintenance Contractors Ltd (CIS),08/08/2023,30108745,900,0,Services,Property Maintenance Contractors,Invoice,BACS,No,02/08/2023 00:00,2023,5,14822,K1515,Building Maintenance,D6004,Services,DBX45,Property Services,DBX,Support Service and Management Costs,DB,Children's Social Care,E,Childrens and Education Services
GUILDFORD BOROUGH COUNCIL,Housing Services,969700,A Star Maintenance Contractors Ltd (CIS),08/08/2023,30108745,670.56,0,Materials,Property Maintenance Contractors,Invoice,BACS,No,02/08/2023 00:00,2023,5,14822,K1515,Building Maintenance,D2003,Materials,DBX45,Property Services,DBX,Support Service and Management Costs,DB,Children's Social Care,E,Childrens and Education Services
GUILDFORD BOROUGH COUNCIL,Housing Services,969700,A Star Maintenance Contractors Ltd (CIS),08/08/2023,30108782,2500,0,Services,Property Maintenance Contractors,Invoice,BACS,No,02/08/2023 00:00,2023,5,14821,K1515,Building Maintenance,D6004,Services,DBX45,Property Services,DBX,Support Service and Management Costs,DB,Children's Social Care,E,Childrens and Education Services
GUILDFORD BOROUGH COUNCIL,Housing Services,969700,A Star Maintenance Contractors Ltd (CIS),29/08/2023,30110300,900,0,Services,Property Maintenance Contractors,Invoice,BACS,No,16/08/2023 00:00,2023,5,14827,K1515,Building Maintenance,D6004,Services,DBX45,Property Services,DBX,Support Service and Management Costs,DB,Children's Social Care,E,Childrens and Education Services
GUILDFORD BOROUGH COUNCIL,Housing Services,969700,A Star Maintenance Contractors Ltd (CIS),29/08/2023,30110265,703,0,Services,Property Maintenance Contractors,Invoice,BACS,No,16/08/2023 00:00,2023,5,14828,K1515,Building Maintenance,D6004,Services,DBX45,Property Services,DBX,Support Service and Management Costs,DB,Children's Social Care,E,Childrens and Education Services
GUILDFORD BOROUGH COUNCIL,Housing Services,969700,A Star Maintenance Contractors Ltd (CIS),29/08/2023,30110275,2500,0,Services,Property Maintenance Contractors,Invoice,BACS,No,16/08/2023 00:00,2023,5,14829,K1515,Building Maintenance,D6004,Services,DBX45,Property Services,DBX,Support Service and Management Costs,DB,Children's Social Care,E,Childrens and Education Services
GUILDFORD BOROUGH COUNCIL,Housing Services,969700,A Star Maintenance Contractors Ltd (CIS),29/08/2023,30110280,1200,0,Services,Property Maintenance Contractors,Invoice,BACS,No,16/08/2023 00:00,2023,5,14831,K1515,Building Maintenance,D6004,Services,DBX45,Property Services,DBX,Support Service and Management Costs,DB,Children's Social Care,E,Childrens and Education Services
GUILDFORD BOROUGH COUNCIL,Housing Services,969700,A Star Maintenance Contractors Ltd (CIS),04/07/2023,30106179,1221,0,Services,Property Maintenance Contractors,Invoice,BACS,No,22/06/2023 00:00,2023,4,14772,K1515,Building Maintenance,D6004,Services,DBX45,Property Services,DBX,Support Service and Management Costs,DB,Children's Social Care,E,Childrens and Education Services
GUILDFORD BOROUGH COUNCIL,Housing Services,969700,A Star Maintenance Contractors Ltd (CIS),04/07/2023,30106181,2000,0,Services,Property Maintenance Contractors,Invoice,BACS,No,27/06/2023 00:00,2023,4,14781,K1515,Building Maintenance,D6004,Services,DBX45,Property Services,DBX,Support Service and Management Costs,DB,Children's Social Care,E,Childrens and Education Services
GUILDFORD BOROUGH COUNCIL,Housing Services,969700,A Star Maintenance Contractors Ltd (CIS),04/07/2023,30106181,3348,0,Materials,Property Maintenance Contractors,Invoice,BACS,No,27/06/2023 00:00,2023,4,14781,K1515,Building Maintenance,D2003,Materials,DBX45,Property Services,DBX,Support Service and Management Costs,DB,Children's Social Care,E,Childrens and Education Services
GUILDFORD BOROUGH COUNCIL,Housing Services,969700,A Star Maintenance Contractors Ltd (CIS),07/09/2023,30110976,1500,0,Services,Property Maintenance Contractors,Invoice,BACS,No,23/08/2023 00:00,2023,6,14840,K1515,Building Maintenance,D6004,Services,DBX45,Property Services,DBX,Support Service and Management Costs,DB,Children's Social Care,E,Childrens and Education Services
GUILDFORD BOROUGH COUNCIL,Housing Services,969700,A Star Maintenance Contractors Ltd (CIS),07/09/2023,30110976,4401.68,0,Materials,Property Maintenance Contractors,Invoice,BACS,No,23/08/2023 00:00,2023,6,14840,K1515,Building Maintenance,D2003,Materials,DBX45,Property Services,DBX,Support Service and Management Costs,DB,Children's Social Care,E,Childrens and Education Services
GUILDFORD BOROUGH COUNCIL,Housing Services,969700,A Star Maintenance Contractors Ltd (CIS),07/09/2023,30110981,691.03,0,Materials,Property Maintenance Contractors,Invoice,BACS,No,31/08/2023 00:00,2023,6,14842,K1515,Building Maintenance,D2003,Materials,DBX45,Property Services,DBX,Support Service and Management Costs,DB,Children's Social Care,E,Childrens and Education Services
GUILDFORD BOROUGH COUNCIL,Housing Services,969700,A Star Maintenance Contractors Ltd (CIS),29/08/2023,30110280,1753.4,0,Materials,Property Maintenance Contractors,Invoice,BACS,No,16/08/2023 00:00,2023,5,14831,K1515,Building Maintenance,D2003,Materials,DBX45,Property Services,DBX,Support Service and Management Costs,DB,Children's Social Care,E,Childrens and Education Services
GUILDFORD BOROUGH COUNCIL,Housing Services,969700,A Star Maintenance Contractors Ltd (CIS),05/09/2023,30110691,7237.22,0,Materials,Property Maintenance Contractors,Invoice,BACS,No,23/08/2023 00:00,2023,6,14837,K1515,Building Maintenance,D2003,Materials,DBX45,Property Services,DBX,Support Service and Management Costs,DB,Children's Social Care,E,Childrens and Education Services
GUILDFORD BOROUGH COUNCIL,Housing Services,969700,A Star Maintenance Contractors Ltd (CIS),21/09/2023,30111816,500,0,Services,Property Maintenance Contractors,Invoice,BACS,No,11/09/2023 00:00,2023,6,14863,K1515,Building Maintenance,D6004,Services,DBX45,Property Services,DBX,Support Service and Management Costs,DB,Children's Social Care,E,Childrens and Education Services
GUILDFORD BOROUGH COUNCIL,Housing Services,969700,A Star Maintenance Contractors Ltd (CIS),03/08/2023,30108547,600,0,Services,Property Maintenance Contractors,Invoice,BACS,No,26/07/2023 00:00,2023,5,14814,K1515,Building Maintenance,D6004,Services,DBX45,Property Services,DBX,Support Service and Management Costs,DB,Children's Social Care,E,Childrens and Education Services
GUILDFORD BOROUGH COUNCIL,Housing Services,969700,A Star Maintenance Contractors Ltd (CIS),03/08/2023,30108521,3000,0,Services,Property Maintenance Contractors,Invoice,BACS,No,26/07/2023 00:00,2023,5,14813,K1515,Building Maintenance,D6004,Services,DBX45,Property Services,DBX,Support Service and Management Costs,DB,Children's Social Care,E,Childrens and Education Services
GUILDFORD BOROUGH COUNCIL,Housing Services,969700,A Star Maintenance Contractors Ltd (CIS),03/08/2023,30108532,1406,0,Services,Property Maintenance Contractors,Invoice,BACS,No,26/07/2023 00:00,2023,5,14812,K1515,Building Maintenance,D6004,Services,DBX45,Property Services,DBX,Support Service and Management Costs,DB,Children's Social Care,E,Childrens and Education Services
GUILDFORD BOROUGH COUNCIL,Housing Services,969700,A Star Maintenance Contractors Ltd (CIS),03/08/2023,30108532,1042.4,0,Materials,Property Maintenance Contractors,Invoice,BACS,No,26/07/2023 00:00,2023,5,14812,K1515,Building Maintenance,D2003,Materials,DBX45,Property Services,DBX,Support Service and Management Costs,DB,Children's Social Care,E,Childrens and Education Services
GUILDFORD BOROUGH COUNCIL,Housing Services,969700,A Star Maintenance Contractors Ltd (CIS),04/07/2023,30106148,4540.68,0,Materials,Property Maintenance Contractors,Invoice,BACS,No,21/06/2023 00:00,2023,4,14761,K1515,Building Maintenance,D2003,Materials,DBX45,Property Services,DBX,Support Service and Management Costs,DB,Children's Social Care,E,Childrens and Education Services
GUILDFORD BOROUGH COUNCIL,Housing Services,969700,A Star Maintenance Contractors Ltd (CIS),07/09/2023,30111003,1200,0,Services,Property Maintenance Contractors,Invoice,BACS,No,31/08/2023 00:00,2023,6,14841,K1515,Building Maintenance,D6004,Services,DBX45,Property Services,DBX,Support Service and Management Costs,DB,Children's Social Care,E,Childrens and Education Services
GUILDFORD BOROUGH COUNCIL,Housing Services,969700,A Star Maintenance Contractors Ltd (CIS),07/09/2023,30111003,3433.77,0,Materials,Property Maintenance Contractors,Invoice,BACS,No,31/08/2023 00:00,2023,6,14841,K1515,Building Maintenance,D2003,Materials,DBX45,Property Services,DBX,Support Service and Management Costs,DB,Children's Social Care,E,Childrens and Education Services
GUILDFORD BOROUGH COUNCIL,Housing Services,969700,A Star Maintenance Contractors Ltd (CIS),27/07/2023,30108006,3000,0,Services,Property Maintenance Contractors,Invoice,BACS,No,14/07/2023 00:00,2023,4,14786,K1515,Building Maintenance,D6004,Services,DBX45,Property Services,DBX,Support Service and Management Costs,DB,Children's Social Care,E,Childrens and Education Services
GUILDFORD BOROUGH COUNCIL,Housing Services,969700,A Star Maintenance Contractors Ltd (CIS),27/07/2023,30108006,5424.1,0,Materials,Property Maintenance Contractors,Invoice,BACS,No,14/07/2023 00:00,2023,4,14786,K1515,Building Maintenance,D2003,Materials,DBX45,Property Services,DBX,Support Service and Management Costs,DB,Children's Social Care,E,Childrens and Education Services
GUILDFORD BOROUGH COUNCIL,Housing Services,969700,A Star Maintenance Contractors Ltd (CIS),27/07/2023,30108017,721.5,0,Services,Property Maintenance Contractors,Invoice,BACS,No,14/07/2023 00:00,2023,4,14789,K1515,Building Maintenance,D6004,Services,DBX45,Property Services,DBX,Support Service and Management Costs,DB,Children's Social Care,E,Childrens and Education Services
GUILDFORD BOROUGH COUNCIL,Housing Services,969700,A Star Maintenance Contractors Ltd (CIS),27/07/2023,30108017,418.11,0,Materials,Property Maintenance Contractors,Invoice,BACS,No,14/07/2023 00:00,2023,4,14789,K1515,Building Maintenance,D2003,Materials,DBX45,Property Services,DBX,Support Service and Management Costs,DB,Children's Social Care,E,Childrens and Education Services
GUILDFORD BOROUGH COUNCIL,Housing Services,969700,A Star Maintenance Contractors Ltd (CIS),27/07/2023,30107990,2500,0,Services,Property Maintenance Contractors,Invoice,BACS,No,14/07/2023 00:00,2023,4,14787,K1515,Building Maintenance,D6004,Services,DBX45,Property Services,DBX,Support Service and Management Costs,DB,Children's Social Care,E,Childrens and Education Services
GUILDFORD BOROUGH COUNCIL,Housing Services,969700,A Star Maintenance Contractors Ltd (CIS),27/07/2023,30107995,1500,0,Services,Property Maintenance Contractors,Invoice,BACS,No,19/07/2023 00:00,2023,4,14799,K1515,Building Maintenance,D6004,Services,DBX45,Property Services,DBX,Support Service and Management Costs,DB,Children's Social Care,E,Childrens and Education Services
GUILDFORD BOROUGH COUNCIL,Housing Services,969700,A Star Maintenance Contractors Ltd (CIS),27/07/2023,30107995,2967.2,0,Materials,Property Maintenance Contractors,Invoice,BACS,No,19/07/2023 00:00,2023,4,14799,K1515,Building Maintenance,D2003,Materials,DBX45,Property Services,DBX,Support Service and Management Costs,DB,Children's Social Care,E,Childrens and Education Services
GUILDFORD BOROUGH COUNCIL,Housing Services,969700,A Star Maintenance Contractors Ltd (CIS),04/07/2023,30106155,2500,0,Services,Property Maintenance Contractors,Invoice,BACS,No,27/06/2023 00:00,2023,4,14780,K1515,Building Maintenance,D6004,Services,DBX45,Property Services,DBX,Support Service and Management Costs,DB,Children's Social Care,E,Childrens and Education Services
GUILDFORD BOROUGH COUNCIL,Housing Services,969700,A Star Maintenance Contractors Ltd (CIS),04/07/2023,30106155,4637.71,0,Materials,Property Maintenance Contractors,Invoice,BACS,No,27/06/2023 00:00,2023,4,14780,K1515,Building Maintenance,D2003,Materials,DBX45,Property Services,DBX,Support Service and Management Costs,DB,Children's Social Care,E,Childrens and Education Services
GUILDFORD BOROUGH COUNCIL,Housing Services,969700,A Star Maintenance Contractors Ltd (CIS),04/07/2023,30106179,481.4,0,Materials,Property Maintenance Contractors,Invoice,BACS,No,22/06/2023 00:00,2023,4,14772,K1515,Building Maintenance,D2003,Materials,DBX45,Property Services,DBX,Support Service and Management Costs,DB,Children's Social Care,E,Childrens and Education Services
GUILDFORD BOROUGH COUNCIL,Housing Services,969700,A Star Maintenance Contractors Ltd (CIS),07/09/2023,30110978,600,0,Services,Property Maintenance Contractors,Invoice,BACS,No,31/08/2023 00:00,2023,6,14843,K1515,Building Maintenance,D6004,Services,DBX45,Property Services,DBX,Support Service and Management Costs,DB,Children's Social Care,E,Childrens and Education Services
GUILDFORD BOROUGH COUNCIL,Housing Services,969700,A Star Maintenance Contractors Ltd (CIS),07/09/2023,30110981,655,0,Services,Property Maintenance Contractors,Invoice,BACS,No,31/08/2023 00:00,2023,6,14842,K1515,Building Maintenance,D6004,Services,DBX45,Property Services,DBX,Support Service and Management Costs,DB,Children's Social Care,E,Childrens and Education Services
GUILDFORD BOROUGH COUNCIL,Housing Services,969700,A Star Maintenance Contractors Ltd (CIS),27/07/2023,30107988,3000,0,Services,Property Maintenance Contractors,Invoice,BACS,No,14/07/2023 00:00,2023,4,14788,K1515,Building Maintenance,D6004,Services,DBX45,Property Services,DBX,Support Service and Management Costs,DB,Children's Social Care,E,Childrens and Education Services
GUILDFORD BOROUGH COUNCIL,Housing Services,969700,A Star Maintenance Contractors Ltd (CIS),27/07/2023,30107988,1763.55,0,Materials,Property Maintenance Contractors,Invoice,BACS,No,14/07/2023 00:00,2023,4,14788,K1515,Building Maintenance,D2003,Materials,DBX45,Property Services,DBX,Support Service and Management Costs,DB,Children's Social Care,E,Childrens and Education Services
GUILDFORD BOROUGH COUNCIL,Housing Services,969700,A Star Maintenance Contractors Ltd (CIS),27/07/2023,30107990,4629.64,0,Materials,Property Maintenance Contractors,Invoice,BACS,No,14/07/2023 00:00,2023,4,14787,K1515,Building Maintenance,D2003,Materials,DBX45,Property Services,DBX,Support Service and Management Costs,DB,Children's Social Care,E,Childrens and Education Services
GUILDFORD BOROUGH COUNCIL,Housing Services,969700,A Star Maintenance Contractors Ltd (CIS),27/07/2023,30108035,2500,0,Services,Property Maintenance Contractors,Invoice,BACS,No,14/07/2023 00:00,2023,4,14785,K1515,Building Maintenance,D6004,Services,DBX45,Property Services,DBX,Support Service and Management Costs,DB,Children's Social Care,E,Childrens and Education Services
GUILDFORD BOROUGH COUNCIL,Housing Services,969700,A Star Maintenance Contractors Ltd (CIS),27/07/2023,30108035,5217.91,0,Materials,Property Maintenance Contractors,Invoice,BACS,No,14/07/2023 00:00,2023,4,14785,K1515,Building Maintenance,D2003,Materials,DBX45,Property Services,DBX,Support Service and Management Costs,DB,Children's Social Care,E,Childrens and Education Services
GUILDFORD BOROUGH COUNCIL,Housing Services,969700,A Star Maintenance Contractors Ltd (CIS),14/09/2023,30111266,1000,0,Services,Property Maintenance Contractors,Invoice,BACS,No,06/09/2023 00:00,2023,6,14861,K1515,Building Maintenance,D6004,Services,DBX45,Property Services,DBX,Support Service and Management Costs,DB,Children's Social Care,E,Childrens and Education Services
GUILDFORD BOROUGH COUNCIL,Housing Services,969700,A Star Maintenance Contractors Ltd (CIS),14/09/2023,30111266,2808.5,0,Materials,Property Maintenance Contractors,Invoice,BACS,No,06/09/2023 00:00,2023,6,14861,K1515,Building Maintenance,D2003,Materials,DBX45,Property Services,DBX,Support Service and Management Costs,DB,Children's Social Care,E,Childrens and Education Services
GUILDFORD BOROUGH COUNCIL,Housing Services,969700,A Star Maintenance Contractors Ltd (CIS),14/09/2023,30111281,6110.2,0,Materials,Property Maintenance Contractors,Invoice,BACS,No,06/09/2023 00:00,2023,6,14857,K1515,Building Maintenance,D2003,Materials,DBX45,Property Services,DBX,Support Service and Management Costs,DB,Children's Social Care,E,Childrens and Education Services
GUILDFORD BOROUGH COUNCIL,Housing Services,969700,A Star Maintenance Contractors Ltd (CIS),14/09/2023,30111300,1500,0,Services,Property Maintenance Contractors,Invoice,BACS,No,06/09/2023 00:00,2023,6,14856,K1515,Building Maintenance,D6004,Services,DBX45,Property Services,DBX,Support Service and Management Costs,DB,Children's Social Care,E,Childrens and Education Services
GUILDFORD BOROUGH COUNCIL,Housing Services,969700,A Star Maintenance Contractors Ltd (CIS),14/09/2023,30111300,13324.5,0,Materials,Property Maintenance Contractors,Invoice,BACS,No,06/09/2023 00:00,2023,6,14856,K1515,Building Maintenance,D2003,Materials,DBX45,Property Services,DBX,Support Service and Management Costs,DB,Children's Social Care,E,Childrens and Education Services
GUILDFORD BOROUGH COUNCIL,Housing Services,969700,A Star Maintenance Contractors Ltd (CIS),14/09/2023,30111306,2000,0,Services,Property Maintenance Contractors,Invoice,BACS,No,06/09/2023 00:00,2023,6,14858,K1515,Building Maintenance,D6004,Services,DBX45,Property Services,DBX,Support Service and Management Costs,DB,Children's Social Care,E,Childrens and Education Services
GUILDFORD BOROUGH COUNCIL,Housing Services,969700,A Star Maintenance Contractors Ltd (CIS),14/09/2023,30111306,5751.68,0,Materials,Property Maintenance Contractors,Invoice,BACS,No,06/09/2023 00:00,2023,6,14858,K1515,Building Maintenance,D2003,Materials,DBX45,Property Services,DBX,Support Service and Management Costs,DB,Children's Social Care,E,Childrens and Education Services
GUILDFORD BOROUGH COUNCIL,Housing Services,969700,A Star Maintenance Contractors Ltd (CIS),14/09/2023,30111312,2500,0,Services,Property Maintenance Contractors,Invoice,BACS,No,06/09/2023 00:00,2023,6,14860,K1515,Building Maintenance,D6004,Services,DBX45,Property Services,DBX,Support Service and Management Costs,DB,Children's Social Care,E,Childrens and Education Services
GUILDFORD BOROUGH COUNCIL,Housing Services,969700,A Star Maintenance Contractors Ltd (CIS),14/09/2023,30111312,4609.2,0,Materials,Property Maintenance Contractors,Invoice,BACS,No,06/09/2023 00:00,2023,6,14860,K1515,Building Maintenance,D2003,Materials,DBX45,Property Services,DBX,Support Service and Management Costs,DB,Children's Social Care,E,Childrens and Education Services
GUILDFORD BOROUGH COUNCIL,Housing Services,969700,A Star Maintenance Contractors Ltd (CIS),14/09/2023,30111274,2000,0,Services,Property Maintenance Contractors,Invoice,BACS,No,06/09/2023 00:00,2023,6,14859,K1515,Building Maintenance,D6004,Services,DBX45,Property Services,DBX,Support Service and Management Costs,DB,Children's Social Care,E,Childrens and Education Services
GUILDFORD BOROUGH COUNCIL,Housing Services,969700,A Star Maintenance Contractors Ltd (CIS),14/09/2023,30111274,4394.98,0,Materials,Property Maintenance Contractors,Invoice,BACS,No,06/09/2023 00:00,2023,6,14859,K1515,Building Maintenance,D2003,Materials,DBX45,Property Services,DBX,Support Service and Management Costs,DB,Children's Social Care,E,Childrens and Education Services
GUILDFORD BOROUGH COUNCIL,Housing Services,969700,A Star Maintenance Contractors Ltd (CIS),14/09/2023,30111280,3000,0,Services,Property Maintenance Contractors,Invoice,BACS,No,06/09/2023 00:00,2023,6,14855,K1515,Building Maintenance,D6004,Services,DBX45,Property Services,DBX,Support Service and Management Costs,DB,Children's Social Care,E,Childrens and Education Services
GUILDFORD BOROUGH COUNCIL,Housing Services,969700,A Star Maintenance Contractors Ltd (CIS),14/09/2023,30111280,6862.56,0,Materials,Property Maintenance Contractors,Invoice,BACS,No,06/09/2023 00:00,2023,6,14855,K1515,Building Maintenance,D2003,Materials,DBX45,Property Services,DBX,Support Service and Management Costs,DB,Children's Social Care,E,Childrens and Education Services
GUILDFORD BOROUGH COUNCIL,Housing Services,969700,A Star Maintenance Contractors Ltd (CIS),14/09/2023,30111281,1500,0,Services,Property Maintenance Contractors,Invoice,BACS,No,06/09/2023 00:00,2023,6,14857,K1515,Building Maintenance,D6004,Services,DBX45,Property Services,DBX,Support Service and Management Costs,DB,Children's Social Care,E,Childrens and Education Services
GUILDFORD BOROUGH COUNCIL,Commercial Services,718130,A.I.M. Removals & Deliveries,24/08/2023,30108460,265.71,0,GF Assets - Maintenance,Removal Service Providers,Invoice,BACS,No,01/08/2023 00:00,2023,5,1332,F3311,Guildhall,B1004,GF Assets - Maintenance,CCA30,Museums & Galleries,CCA,Culture & Heritage,CC,Cultural & Related Services,C,"Cultural, Environmental & Planning Services"
GUILDFORD BOROUGH COUNCIL,Commercial Services,718130,A.I.M. Removals & Deliveries,27/07/2023,30106423,257.14,0,GF Assets - Maintenance,Removal Service Providers,Invoice,BACS,No,01/07/2023 00:00,2023,4,1305,F3311,Guildhall,B1004,GF Assets - Maintenance,CCA30,Museums & Galleries,CCA,Culture & Heritage,CC,Cultural & Related Services,C,"Cultural, Environmental & Planning Services"
GUILDFORD BOROUGH COUNCIL,Commercial Services,718130,A.I.M. Removals & Deliveries,28/09/2023,30111115,800,0,GF Assets - Maintenance,Removal Service Providers,Invoice,BACS,No,06/09/2023 00:00,2023,6,1346,F3311,Guildhall,B1004,GF Assets - Maintenance,CCA30,Museums & Galleries,CCA,Culture & Heritage,CC,Cultural & Related Services,C,"Cultural, Environmental & Planning Services"
GUILDFORD BOROUGH COUNCIL,Commercial Services,718130,A.I.M. Removals & Deliveries,26/09/2023,30110799,265.71,0,GF Assets - Maintenance,Removal Service Providers,Invoice,BACS,No,01/09/2023 00:00,2023,6,1354,F3311,Guildhall,B1004,GF Assets - Maintenance,CCA30,Museums & Galleries,CCA,Culture & Heritage,CC,Cultural & Related Services,C,"Cultural, Environmental & Planning Services"
GUILDFORD BOROUGH COUNCIL,HRA Service Delivery,718130,A.I.M. Removals & Deliveries,05/09/2023,30109223,1350,0,Expenses,Removal Service Providers,Invoice,BACS,No,10/08/2023 00:00,2023,5,1296,M8121,Strategic Support (SHS),D8004,Expenses,W3A05,Current Service Costs - Housing Services,W3A,Current Service Costs adjustment,W3,Current Service Costs,W,Other Operating Income and Expenditure
GUILDFORD BOROUGH COUNCIL,HRA Service Delivery,718130,A.I.M. Removals & Deliveries,11/07/2023,30103626,265.71,0,Expenses,Removal Service Providers,Invoice,BACS,No,30/05/2023 00:00,2023,4,1285,M8121,Strategic Support (SHS),D8004,Expenses,W3A05,Current Service Costs - Housing Services,W3A,Current Service Costs adjustment,W3,Current Service Costs,W,Other Operating Income and Expenditure
GUILDFORD BOROUGH COUNCIL,HRA Service Delivery,718130,A.I.M. Removals & Deliveries,06/07/2023,30106412,1200,0,Expenses,Removal Service Providers,Invoice,BACS,No,23/05/2023 00:00,2023,4,1264,M8121,Strategic Support (SHS),D8004,Expenses,W3A05,Current Service Costs - Housing Services,W3A,Current Service Costs adjustment,W3,Current Service Costs,W,Other Operating Income and Expenditure
GUILDFORD BOROUGH COUNCIL,HRA Service Delivery,718130,A.I.M. Removals & Deliveries,31/08/2023,30108920,500,0,Expenses,Removal Service Providers,Invoice,BACS,No,07/08/2023 00:00,2023,5,1320,M8121,Strategic Support (SHS),D8004,Expenses,W3A05,Current Service Costs - Housing Services,W3A,Current Service Costs adjustment,W3,Current Service Costs,W,Other Operating Income and Expenditure
GUILDFORD BOROUGH COUNCIL,HRA Service Delivery,718130,A.I.M. Removals & Deliveries,25/07/2023,30106404,450,0,Expenses,Removal Service Providers,Invoice,BACS,No,30/06/2023 00:00,2023,4,1291,M8121,Strategic Support (SHS),D8004,Expenses,W3A05,Current Service Costs - Housing Services,W3A,Current Service Costs adjustment,W3,Current Service Costs,W,Other Operating Income and Expenditure
GUILDFORD BOROUGH COUNCIL,HRA Service Delivery,718130,A.I.M. Removals & Deliveries,12/09/2023,30109910,900,0,Expenses,Removal Service Providers,Invoice,BACS,No,16/08/2023 00:00,2023,5,1344,M8121,Strategic Support (SHS),D8004,Expenses,W3A05,Current Service Costs - Housing Services,W3A,Current Service Costs adjustment,W3,Current Service Costs,W,Other Operating Income and Expenditure
GUILDFORD BOROUGH COUNCIL,HRA Service Delivery,718130,A.I.M. Removals & Deliveries,12/09/2023,30109867,1250,0,Expenses,Removal Service Providers,Invoice,BACS,No,16/08/2023 00:00,2023,5,1324,M8121,Strategic Support (SHS),D8004,Expenses,W3A05,Current Service Costs - Housing Services,W3A,Current Service Costs adjustment,W3,Current Service Costs,W,Other Operating Income and Expenditure
GUILDFORD BOROUGH COUNCIL,Commercial Services,667000,A.S.L. Ltd (CIS),11/07/2023,30106652,275,0,GF Assets - Maintenance,Sewerage And Drainage Service Providers,Invoice,BACS,No,05/07/2023 00:00,2023,4,74675,B2291,York Road Mscp,B1004,GF Assets - Maintenance,HTP10,Off-Street Parking,HTP,Parking Services,HT,"Highways, Roads and Transport Services",H,"Highways, Roads and Transport Services"
GUILDFORD BOROUGH COUNCIL,Environmental Services,941010,A1 Wokingham Wet Waste Limited Ltd,22/08/2023,30108259,929.4,0,Services,Car And Van Parts Suppliers,Invoice,BACS,No,26/07/2023 00:00,2023,5,5332,B4452,Woking Road Depot,D6004,Services,XXX99,*** UNASSIGNED ***,WCC,CEC Recharges,WC,CEC Recharges,A,Central Services
GUILDFORD BOROUGH COUNCIL,Environmental Services,941010,A1 Wokingham Wet Waste Limited Ltd,25/07/2023,30106371,875,0,Services,Car And Van Parts Suppliers,Invoice,BACS,No,29/06/2023 00:00,2023,4,4911,B4452,Woking Road Depot,D6004,Services,XXX99,*** UNASSIGNED ***,WCC,CEC Recharges,WC,CEC Recharges,A,Central Services
GUILDFORD BOROUGH COUNCIL,HRA Service Delivery,926480,ABM Surveys Limited,26/09/2023,30111686,350,0,Services,Pest And Vermin Control Service Providers,Invoice,BACS,No,31/08/2023 00:00,2023,6,2151,M1151,Tenants Services (BHS),D6004,Services,W3A05,Current Service Costs - Housing Services,W3A,Current Service Costs adjustment,W3,Current Service Costs,W,Other Operating Income and Expenditure
GUILDFORD BOROUGH COUNCIL,HRA Service Delivery,926480,ABM Surveys Limited,19/09/2023,30110726,350,0,Services,Pest And Vermin Control Service Providers,Invoice,BACS,No,25/08/2023 00:00,2023,6,2150,M1151,Tenants Services (BHS),D6004,Services,W3A05,Current Service Costs - Housing Services,W3A,Current Service Costs adjustment,W3,Current Service Costs,W,Other Operating Income and Expenditure
GUILDFORD BOROUGH COUNCIL,Executive - Miscellaneous,926480,ABM Surveys Limited,18/07/2023,30106405,995,0,Consultants Fees,Pest And Vermin Control Service Providers,Invoice,BACS,No,25/06/2023 00:00,2023,4,2132,P79995,Broadband for Surrey Hills (B4SH),1221,Consultants Fees,XXX99,*** UNASSIGNED ***,WCC,CEC Recharges,WC,CEC Recharges,A,Central Services
GUILDFORD BOROUGH COUNCIL,Housing Services,1000424,Acorn Housing (Cedar Housing Solutions Limited),26/09/2023,30112354,2500,0,Emergency Accomodation,,Invoice,BACS,No,30/08/2023 00:00,2023,6,RD05AA,C3311,Homelessness,D8009,Emergency Accomodation,KGU00,Supporting People - Strategy,KGU,Supporting People,KG,Housing General Fund,K,Housing Services
GUILDFORD BOROUGH COUNCIL,Commercial Services,777090,Addex Group,26/09/2023,30111069,586.88,0,Asset Maintenance,Power And Hand Tool Suppliers,Invoice,BACS,No,31/08/2023 00:00,2023,6,INAU100080,B2216,General Upkeep- Urban Car Pks,B1001,Asset Maintenance,HTP10,Off-Street Parking,HTP,Parking Services,HT,"Highways, Roads and Transport Services",H,"Highways, Roads and Transport Services"
GUILDFORD BOROUGH COUNCIL,Environmental Services,777090,Addex Group,12/09/2023,30111070,3129.25,0,Cleaning Materials,Power And Hand Tool Suppliers,Invoice,BACS,No,08/06/2023 00:00,2023,6,434602,K4551,Street Cleansing,B5001,Cleaning Materials,CES00,Street Cleansing (not chargeable to highways),CES,Street Cleansing (not chargeable to highways),CE,Environmental & Regulatory Services,C,"Cultural, Environmental & Planning Services"
GUILDFORD BOROUGH COUNCIL,Environmental Services,459000,Addison Glass & Windscreens Ltd,22/08/2023,30108218,426.56,0,Materials,Window And Door Installers,Invoice,BACS,No,26/07/2023 00:00,2023,4,INV-6172,K5551,Fleet Workshops,D2003,Materials,W3A48,Current Service Costs - Fleet Management,W3A,Current Service Costs adjustment,W3,Current Service Costs,W,Other Operating Income and Expenditure
GUILDFORD BOROUGH COUNCIL,Environmental Services,459000,Addison Glass & Windscreens Ltd,15/08/2023,30108013,607.04,0,Materials,Window And Door Installers,Invoice,BACS,No,20/07/2023 00:00,2023,4,INV-6135,K5551,Fleet Workshops,D2003,Materials,W3A48,Current Service Costs - Fleet Management,W3A,Current Service Costs adjustment,W3,Current Service Costs,W,Other Operating Income and Expenditure
GUILDFORD BOROUGH COUNCIL,Environmental Services,459000,Addison Glass & Windscreens Ltd,19/09/2023,30111299,307.5,0,Materials,Window And Door Installers,Invoice,BACS,No,23/08/2023 00:00,2023,6,INV-6357,K5551,Fleet Workshops,D2003,Materials,W3A48,Current Service Costs - Fleet Management,W3A,Current Service Costs adjustment,W3,Current Service Costs,W,Other Operating Income and Expenditure
GUILDFORD BOROUGH COUNCIL,Finance,789120,Adelante Software Ltd,28/09/2023,30110939,461.64,0,Bank Charges,Software Developers,Invoice,BACS,No,04/09/2023 00:00,2023,6,148244,F1111,Corporate Services,D8002,Bank Charges,DBX70,Other Management Costs,DBX,Support Service and Management Costs,DB,Children's Social Care,E,Childrens and Education Services
GUILDFORD BOROUGH COUNCIL,Finance,789120,Adelante Software Ltd,27/07/2023,30106492,557.1,0,Bank Charges,Software Developers,Invoice,BACS,No,04/07/2023 00:00,2023,4,146500,F1111,Corporate Services,D8002,Bank Charges,DBX70,Other Management Costs,DBX,Support Service and Management Costs,DB,Children's Social Care,E,Childrens and Education Services
GUILDFORD BOROUGH COUNCIL,Finance,789120,Adelante Software Ltd,29/08/2023,30108656,523.5,0,Bank Charges,Software Developers,Invoice,BACS,No,03/08/2023 00:00,2023,5,147383,F1111,Corporate Services,D8002,Bank Charges,DBX70,Other Management Costs,DBX,Support Service and Management Costs,DB,Children's Social Care,E,Childrens and Education Services
GUILDFORD BOROUGH COUNCIL,Housing Services,774120,Advanced Electronic Security Ltd,29/08/2023,30108783,1490,0,Services,Other Security Equipment Suppliers,Invoice,BACS,No,04/08/2023 00:00,2023,5,12750,F7540,Town Centre CCTV System,D6004,Services,HTX10,Highways & Transport - Professional and Engineering Services,HTX,Highways Management and Support,HT,"Highways, Roads and Transport Services",H,"Highways, Roads and Transport Services"
GUILDFORD BOROUGH COUNCIL,Housing Services,774120,Advanced Electronic Security Ltd,29/08/2023,30108778,1450,0,Equipment,Other Security Equipment Suppliers,Invoice,BACS,No,04/08/2023 00:00,2023,5,12746,F7540,Town Centre CCTV System,D2001,Equipment,HTX10,Highways & Transport - Professional and Engineering Services,HTX,Highways Management and Support,HT,"Highways, Roads and Transport Services",H,"Highways, Roads and Transport Services"
GUILDFORD BOROUGH COUNCIL,Housing Services,774120,Advanced Electronic Security Ltd,29/08/2023,30108739,1460,0,Equipment,Other Security Equipment Suppliers,Invoice,BACS,No,04/08/2023 00:00,2023,5,12747,F7540,Town Centre CCTV System,D2001,Equipment,HTX10,Highways & Transport - Professional and Engineering Services,HTX,Highways Management and Support,HT,"Highways, Roads and Transport Services",H,"Highways, Roads and Transport Services"
GUILDFORD BOROUGH COUNCIL,Housing Services,774120,Advanced Electronic Security Ltd,27/07/2023,30108069,1450,0,Services,Other Security Equipment Suppliers,Invoice,BACS,No,14/06/2023 00:00,2023,4,12745,F7540,Town Centre CCTV System,D6004,Services,HTX10,Highways & Transport - Professional and Engineering Services,HTX,Highways Management and Support,HT,"Highways, Roads and Transport Services",H,"Highways, Roads and Transport Services"
GUILDFORD BOROUGH COUNCIL,Housing Services,774120,Advanced Electronic Security Ltd,29/08/2023,30108738,1400,0,Services,Other Security Equipment Suppliers,Invoice,BACS,No,04/08/2023 00:00,2023,5,12749,F7540,Town Centre CCTV System,D6004,Services,HTX10,Highways & Transport - Professional and Engineering Services,HTX,Highways Management and Support,HT,"Highways, Roads and Transport Services",H,"Highways, Roads and Transport Services"
GUILDFORD BOROUGH COUNCIL,Housing Services,774120,Advanced Electronic Security Ltd,29/08/2023,30108749,1400,0,Services,Other Security Equipment Suppliers,Invoice,BACS,No,04/08/2023 00:00,2023,5,12748,F7540,Town Centre CCTV System,D6004,Services,HTX10,Highways & Transport - Professional and Engineering Services,HTX,Highways Management and Support,HT,"Highways, Roads and Transport Services",H,"Highways, Roads and Transport Services"
GUILDFORD BOROUGH COUNCIL,Housing Services,774120,Advanced Electronic Security Ltd,25/07/2023,30107726,1215,0,Services,Other Security Equipment Suppliers,Invoice,BACS,No,14/06/2023 00:00,2023,4,12744,F7540,Town Centre CCTV System,D6004,Services,HTX10,Highways & Transport - Professional and Engineering Services,HTX,Highways Management and Support,HT,"Highways, Roads and Transport Services",H,"Highways, Roads and Transport Services"
GUILDFORD BOROUGH COUNCIL,Environmental Services,221340,Aebi Schmidt UK Limited,10/08/2023,30107665,727.97,0,Services,Other Vehicle Dealers,Invoice,BACS,No,18/07/2023 00:00,2023,4,60291314,K5551,Fleet Workshops,D6004,Services,W3A48,Current Service Costs - Fleet Management,W3A,Current Service Costs adjustment,W3,Current Service Costs,W,Other Operating Income and Expenditure
GUILDFORD BOROUGH COUNCIL,Environmental Services,221340,Aebi Schmidt UK Limited,19/09/2023,30110384,1389.41,0,Repair And Maintenance Of Vehicles,Other Vehicle Dealers,Invoice,BACS,No,24/08/2023 00:00,2023,6,60292303,K5551,Fleet Workshops,C1002,Repair And Maintenance Of Vehicles,W3A48,Current Service Costs - Fleet Management,W3A,Current Service Costs adjustment,W3,Current Service Costs,W,Other Operating Income and Expenditure
GUILDFORD BOROUGH COUNCIL,Spectrum,766060,AGB Contractors Limited,31/08/2023,30110394,3940,0,Contractor Payments,General Builders,Invoice,BACS,No,04/08/2023 00:00,2023,5,230804,P22067,Lido - Drainage Works,1233,Contractor Payments,XXX99,*** UNASSIGNED ***,WCC,CEC Recharges,WC,CEC Recharges,A,Central Services
GUILDFORD BOROUGH COUNCIL,Spectrum,766060,AGB Contractors Limited,01/08/2023,30107874,4800,0,Contractor Payments,General Builders,Invoice,BACS,No,21/07/2023 00:00,2023,5,230721,P22067,Lido - Drainage Works,1233,Contractor Payments,XXX99,*** UNASSIGNED ***,WCC,CEC Recharges,WC,CEC Recharges,A,Central Services
GUILDFORD BOROUGH COUNCIL,Commercial Services,766060,AGB Contractors Limited,19/09/2023,30111557,1240,0,GF Assets - Maintenance,General Builders,Invoice,BACS,No,14/09/2023 00:00,2023,6,230914,A5511,Museum,B1004,GF Assets - Maintenance,CCA30,Museums & Galleries,CCA,Culture & Heritage,CC,Cultural & Related Services,C,"Cultural, Environmental & Planning Services"
GUILDFORD BOROUGH COUNCIL,Spectrum,766060,AGB Contractors Limited,01/08/2023,30107874,388,0,Contractor Payments,General Builders,Invoice,BACS,No,21/07/2023 00:00,2023,5,230721,P22067,Lido - Drainage Works,1233,Contractor Payments,XXX99,*** UNASSIGNED ***,WCC,CEC Recharges,WC,CEC Recharges,A,Central Services
GUILDFORD BOROUGH COUNCIL,Spectrum,766060,AGB Contractors Limited,31/08/2023,30110394,1182,0,Contractor Payments,General Builders,Invoice,BACS,No,04/08/2023 00:00,2023,5,230804,P22067,Lido - Drainage Works,1233,Contractor Payments,XXX99,*** UNASSIGNED ***,WCC,CEC Recharges,WC,CEC Recharges,A,Central Services
GUILDFORD BOROUGH COUNCIL,Environmental Services,766060,AGB Contractors Limited,05/09/2023,30110465,480,0,GF Assets - Maintenance,General Builders,Invoice,BACS,No,28/08/2023 00:00,2023,6,230828,A1230,Sutherland Memorial Park  Pavilion,B1004,GF Assets - Maintenance,CCE00,Community Parks & Open Spaces,CCE,Open Spaces,CC,Cultural & Related Services,C,"Cultural, Environmental & Planning Services"
GUILDFORD BOROUGH COUNCIL,Commercial Services,766060,AGB Contractors Limited,19/09/2023,30111557,6000,0,GF Assets - Maintenance,General Builders,Invoice,BACS,No,14/09/2023 00:00,2023,6,230914,A5511,Museum,B1004,GF Assets - Maintenance,CCA30,Museums & Galleries,CCA,Culture & Heritage,CC,Cultural & Related Services,C,"Cultural, Environmental & Planning Services"
GUILDFORD BOROUGH COUNCIL,Regulatory Services,880660,Air Quality Consultants Ltd,18/07/2023,30106904,2253.75,0,Contractors,Third Party Supplier,Invoice,BACS,No,19/06/2023 00:00,2023,4,12563,C1113,Environmental Control,D6012,Contractors,CEE25,Environmental Protection,CEE,Environmental Health (Regulatory Services),CE,Environmental & Regulatory Services,C,"Cultural, Environmental & Planning Services"
GUILDFORD BOROUGH COUNCIL,Regulatory Services,880660,Air Quality Consultants Ltd,18/07/2023,30106927,2253.75,0,Contractors,Third Party Supplier,Invoice,BACS,No,19/06/2023 00:00,2023,4,12563A,C1113,Environmental Control,D6012,Contractors,CEE25,Environmental Protection,CEE,Environmental Health (Regulatory Services),CE,Environmental & Regulatory Services,C,"Cultural, Environmental & Planning Services"
GUILDFORD BOROUGH COUNCIL,Inventories,178400,Akw Medi-Care Limited,05/09/2023,30109926,992.14,0,Purchases,Mobility Disability Equipment Suppliers,Invoice,BACS,No,11/08/2023 00:00,2023,5,2209169,I01001,Stocks,2591,Purchases,DBX45,Property Services,DBX,Support Service and Management Costs,DB,Children's Social Care,E,Childrens and Education Services
GUILDFORD BOROUGH COUNCIL,Inventories,178400,Akw Medi-Care Limited,22/08/2023,30108676,802.1,0,Purchases,Mobility Disability Equipment Suppliers,Invoice,BACS,No,28/07/2023 00:00,2023,5,2204194,I01001,Stocks,2591,Purchases,DBX45,Property Services,DBX,Support Service and Management Costs,DB,Children's Social Care,E,Childrens and Education Services
GUILDFORD BOROUGH COUNCIL,Inventories,178400,Akw Medi-Care Limited,01/08/2023,30108242,264.95,0,Purchases,Mobility Disability Equipment Suppliers,Invoice,BACS,No,03/07/2023 00:00,2023,4,2192615,I01001,Stocks,2591,Purchases,DBX45,Property Services,DBX,Support Service and Management Costs,DB,Children's Social Care,E,Childrens and Education Services
GUILDFORD BOROUGH COUNCIL,Inventories,178400,Akw Medi-Care Limited,05/09/2023,30109937,903.61,0,Purchases,Mobility Disability Equipment Suppliers,Invoice,BACS,No,11/08/2023 00:00,2023,5,2209174,I01001,Stocks,2591,Purchases,DBX45,Property Services,DBX,Support Service and Management Costs,DB,Children's Social Care,E,Childrens and Education Services
GUILDFORD BOROUGH COUNCIL,Inventories,178400,Akw Medi-Care Limited,05/09/2023,30109942,1160.03,0,Purchases,Mobility Disability Equipment Suppliers,Invoice,BACS,No,11/08/2023 00:00,2023,5,2209258,I01001,Stocks,2591,Purchases,DBX45,Property Services,DBX,Support Service and Management Costs,DB,Children's Social Care,E,Childrens and Education Services
GUILDFORD BOROUGH COUNCIL,Inventories,178400,Akw Medi-Care Limited,22/08/2023,30108870,368.55,0,Purchases,Mobility Disability Equipment Suppliers,Invoice,BACS,No,27/07/2023 00:00,2023,5,2203447,I01001,Stocks,2591,Purchases,DBX45,Property Services,DBX,Support Service and Management Costs,DB,Children's Social Care,E,Childrens and Education Services
GUILDFORD BOROUGH COUNCIL,Inventories,178400,Akw Medi-Care Limited,01/08/2023,30108267,254.4,0,Purchases,Mobility Disability Equipment Suppliers,Invoice,BACS,No,03/07/2023 00:00,2023,4,2192537,I01001,Stocks,2591,Purchases,DBX45,Property Services,DBX,Support Service and Management Costs,DB,Children's Social Care,E,Childrens and Education Services
GUILDFORD BOROUGH COUNCIL,Inventories,178400,Akw Medi-Care Limited,12/09/2023,30110467,880.82,0,Purchases,Mobility Disability Equipment Suppliers,Invoice,BACS,No,17/08/2023 00:00,2023,5,2211712,I01001,Stocks,2591,Purchases,DBX45,Property Services,DBX,Support Service and Management Costs,DB,Children's Social Care,E,Childrens and Education Services
GUILDFORD BOROUGH COUNCIL,Inventories,178400,Akw Medi-Care Limited,03/08/2023,30108461,1050.31,0,Purchases,Mobility Disability Equipment Suppliers,Invoice,BACS,No,10/07/2023 00:00,2023,5,2195649,I01001,Stocks,2591,Purchases,DBX45,Property Services,DBX,Support Service and Management Costs,DB,Children's Social Care,E,Childrens and Education Services
GUILDFORD BOROUGH COUNCIL,Inventories,178400,Akw Medi-Care Limited,03/08/2023,30108482,276.64,0,Purchases,Mobility Disability Equipment Suppliers,Invoice,BACS,No,06/07/2023 00:00,2023,5,2194347,I01001,Stocks,2591,Purchases,DBX45,Property Services,DBX,Support Service and Management Costs,DB,Children's Social Care,E,Childrens and Education Services
GUILDFORD BOROUGH COUNCIL,Inventories,178400,Akw Medi-Care Limited,01/08/2023,30108256,432.8,0,Purchases,Mobility Disability Equipment Suppliers,Invoice,BACS,No,27/06/2023 00:00,2023,4,2190288,I01001,Stocks,2591,Purchases,DBX45,Property Services,DBX,Support Service and Management Costs,DB,Children's Social Care,E,Childrens and Education Services
GUILDFORD BOROUGH COUNCIL,Inventories,178400,Akw Medi-Care Limited,12/09/2023,30110488,598.54,0,Purchases,Mobility Disability Equipment Suppliers,Invoice,BACS,No,17/08/2023 00:00,2023,5,2211766,I01001,Stocks,2591,Purchases,DBX45,Property Services,DBX,Support Service and Management Costs,DB,Children's Social Care,E,Childrens and Education Services
GUILDFORD BOROUGH COUNCIL,Inventories,178400,Akw Medi-Care Limited,12/09/2023,30110477,469.48,0,Purchases,Mobility Disability Equipment Suppliers,Invoice,BACS,No,18/08/2023 00:00,2023,5,2212839,I01001,Stocks,2591,Purchases,DBX45,Property Services,DBX,Support Service and Management Costs,DB,Children's Social Care,E,Childrens and Education Services
GUILDFORD BOROUGH COUNCIL,Inventories,178400,Akw Medi-Care Limited,03/08/2023,30108454,933.72,0,Purchases,Mobility Disability Equipment Suppliers,Invoice,BACS,No,11/07/2023 00:00,2023,5,2196309,I01001,Stocks,2591,Purchases,DBX45,Property Services,DBX,Support Service and Management Costs,DB,Children's Social Care,E,Childrens and Education Services
GUILDFORD BOROUGH COUNCIL,Finance,509000,Albury Parish Council,19/09/2023,30111514,932.5,0,Grants And Subscriptions,Local Government [Uk Only],Invoice,BACS,No,15/09/2023 00:00,2023,6,Albury Parish Precepts Sept 2023,F1115,Parish Liaison,D9001,Grants And Subscriptions,AAD00,Democratic Representation & Management,AAD,Democratic Representation & Management,AA,Corporate & Democratic Core,A,Central Services
GUILDFORD BOROUGH COUNCIL,Revenue Balances,509000,Albury Parish Council,19/09/2023,30111514,21801,0,OOE - Parish Precepts Paid,Local Government [Uk Only],Invoice,BACS,No,15/09/2023 00:00,2023,6,Albury Parish Precepts Sept 2023,V01005,Gf Net Revenue Account,2482,OOE - Parish Precepts Paid,XXX99,*** UNASSIGNED ***,WCC,CEC Recharges,WC,CEC Recharges,A,Central Services
GUILDFORD BOROUGH COUNCIL,Environmental Services,454730,Alexander Advertising (International) Ltd,05/09/2023,30109232,294.06,0,Services,Full Service Marketing Agencies,Invoice,BACS,No,11/08/2023 00:00,2023,5,INV-0098,A1300,Trees And Countryside,D6004,Services,CCE00,Community Parks & Open Spaces,CCE,Open Spaces,CC,Cultural & Related Services,C,"Cultural, Environmental & Planning Services"
GUILDFORD BOROUGH COUNCIL,Environmental Services,454730,Alexander Advertising (International) Ltd,01/08/2023,30103607,400.14,0,"Advertising, Publicity & Promotion",Full Service Marketing Agencies,Invoice,BACS,No,26/05/2023 00:00,2023,4,2092C23,A1300,Trees And Countryside,D5002,"Advertising, Publicity & Promotion",CCE00,Community Parks & Open Spaces,CCE,Open Spaces,CC,Cultural & Related Services,C,"Cultural, Environmental & Planning Services"
GUILDFORD BOROUGH COUNCIL,Planning & Development,454730,Alexander Advertising (International) Ltd,22/08/2023,30108366,420.09,0,"Advertising, Publicity & Promotion",Full Service Marketing Agencies,Invoice,BACS,No,28/07/2023 00:00,2023,5,INV-0083,D5100,Development Control - Fee Earn,D5002,"Advertising, Publicity & Promotion",CPC00,Development Control Advice,CPC,Development Control,CP,Planning and Development Services,C,"Cultural, Environmental & Planning Services"
GUILDFORD BOROUGH COUNCIL,Planning & Development,454730,Alexander Advertising (International) Ltd,05/09/2023,30109237,350.07,0,"Advertising, Publicity & Promotion",Full Service Marketing Agencies,Invoice,BACS,No,11/08/2023 00:00,2023,5,INV-0118,D5100,Development Control - Fee Earn,D5002,"Advertising, Publicity & Promotion",CPC00,Development Control Advice,CPC,Development Control,CP,Planning and Development Services,C,"Cultural, Environmental & Planning Services"
GUILDFORD BOROUGH COUNCIL,Planning & Development,454730,Alexander Advertising (International) Ltd,05/09/2023,30109224,700.15,0,"Advertising, Publicity & Promotion",Full Service Marketing Agencies,Invoice,BACS,No,11/08/2023 00:00,2023,5,INV-0117,D5100,Development Control - Fee Earn,D5002,"Advertising, Publicity & Promotion",CPC00,Development Control Advice,CPC,Development Control,CP,Planning and Development Services,C,"Cultural, Environmental & Planning Services"
GUILDFORD BOROUGH COUNCIL,Planning & Development,454730,Alexander Advertising (International) Ltd,08/08/2023,30107136,336.07,0,"Advertising, Publicity & Promotion",Full Service Marketing Agencies,Invoice,BACS,No,14/07/2023 00:00,2023,4,INV-0066,D5100,Development Control - Fee Earn,D5002,"Advertising, Publicity & Promotion",CPC00,Development Control Advice,CPC,Development Control,CP,Planning and Development Services,C,"Cultural, Environmental & Planning Services"
GUILDFORD BOROUGH COUNCIL,Planning & Development,454730,Alexander Advertising (International) Ltd,28/09/2023,30111156,504.11,0,"Advertising, Publicity & Promotion",Full Service Marketing Agencies,Invoice,BACS,No,08/09/2023 00:00,2023,6,INV-0184,D5100,Development Control - Fee Earn,D5002,"Advertising, Publicity & Promotion",CPC00,Development Control Advice,CPC,Development Control,CP,Planning and Development Services,C,"Cultural, Environmental & Planning Services"
GUILDFORD BOROUGH COUNCIL,Planning & Development,454730,Alexander Advertising (International) Ltd,12/09/2023,30109938,588.13,0,"Advertising, Publicity & Promotion",Full Service Marketing Agencies,Invoice,BACS,No,18/08/2023 00:00,2023,5,INV-0140,D5100,Development Control - Fee Earn,D5002,"Advertising, Publicity & Promotion",CPC00,Development Control Advice,CPC,Development Control,CP,Planning and Development Services,C,"Cultural, Environmental & Planning Services"
GUILDFORD BOROUGH COUNCIL,Planning & Development,454730,Alexander Advertising (International) Ltd,01/08/2023,30106668,630.14,0,"Advertising, Publicity & Promotion",Full Service Marketing Agencies,Invoice,BACS,No,07/07/2023 00:00,2023,4,INV-0053,D5100,Development Control - Fee Earn,D5002,"Advertising, Publicity & Promotion",CPC00,Development Control Advice,CPC,Development Control,CP,Planning and Development Services,C,"Cultural, Environmental & Planning Services"
GUILDFORD BOROUGH COUNCIL,Planning & Development,454730,Alexander Advertising (International) Ltd,19/09/2023,30110543,279.36,0,"Advertising, Publicity & Promotion",Full Service Marketing Agencies,Invoice,BACS,No,25/08/2023 00:00,2023,5,INV-0148,D5100,Development Control - Fee Earn,D5002,"Advertising, Publicity & Promotion",CPC00,Development Control Advice,CPC,Development Control,CP,Planning and Development Services,C,"Cultural, Environmental & Planning Services"
GUILDFORD BOROUGH COUNCIL,Planning & Development,454730,Alexander Advertising (International) Ltd,15/08/2023,30107876,672.14,0,"Advertising, Publicity & Promotion",Full Service Marketing Agencies,Invoice,BACS,No,21/07/2023 00:00,2023,5,INV-0075,D5100,Development Control - Fee Earn,D5002,"Advertising, Publicity & Promotion",CPC00,Development Control Advice,CPC,Development Control,CP,Planning and Development Services,C,"Cultural, Environmental & Planning Services"
GUILDFORD BOROUGH COUNCIL,Planning & Development,454730,Alexander Advertising (International) Ltd,26/09/2023,30110783,319.27,0,"Advertising, Publicity & Promotion",Full Service Marketing Agencies,Invoice,BACS,No,01/09/2023 00:00,2023,6,INV-0167,D5100,Development Control - Fee Earn,D5002,"Advertising, Publicity & Promotion",CPC00,Development Control Advice,CPC,Development Control,CP,Planning and Development Services,C,"Cultural, Environmental & Planning Services"
GUILDFORD BOROUGH COUNCIL,Community Services,544480,Allocate Software Ltd,11/07/2023,30106558,2200,0,ICT Support & Maintenance,Software Developers,Invoice,BACS,No,31/05/2023 00:00,2023,4,IN-GB-023492,C3115,Community Transport,D7003,ICT Support & Maintenance,XXX99,*** UNASSIGNED ***,WCC,CEC Recharges,WC,CEC Recharges,A,Central Services
GUILDFORD BOROUGH COUNCIL,HRA Service Delivery,914220,Allpay Ltd,24/08/2023,30109550,1422.88,0,Bank Charges,Other Financial Service Providers,Invoice,BACS,No,31/07/2023 00:00,2023,5,0000785998GBDD,M1121,Income Collection (BHS),D8002,Bank Charges,W3A05,Current Service Costs - Housing Services,W3A,Current Service Costs adjustment,W3,Current Service Costs,W,Other Operating Income and Expenditure
GUILDFORD BOROUGH COUNCIL,HRA Service Delivery,914220,Allpay Ltd,25/07/2023,30106418,1395.52,0,Bank Charges,Other Financial Service Providers,Invoice,BACS,No,30/06/2023 00:00,2023,4,782058,M1121,Income Collection (BHS),D8002,Bank Charges,W3A05,Current Service Costs - Housing Services,W3A,Current Service Costs adjustment,W3,Current Service Costs,W,Other Operating Income and Expenditure
GUILDFORD BOROUGH COUNCIL,HRA Service Delivery,914220,Allpay Ltd,26/09/2023,30110831,1498.85,0,Bank Charges,Other Financial Service Providers,Invoice,BACS,No,31/08/2023 00:00,2023,6,0000789763GBDD,M1121,Income Collection (BHS),D8002,Bank Charges,W3A05,Current Service Costs - Housing Services,W3A,Current Service Costs adjustment,W3,Current Service Costs,W,Other Operating Income and Expenditure
GUILDFORD BOROUGH COUNCIL,HRA Service Delivery,914220,Allpay Ltd,16/08/2023,30109582,1422.88,0,Bank Charges,Other Financial Service Providers,Invoice,CHAPS,No,31/07/2023 00:00,2023,5,785998,M1121,Income Collection (BHS),D8002,Bank Charges,W3A05,Current Service Costs - Housing Services,W3A,Current Service Costs adjustment,W3,Current Service Costs,W,Other Operating Income and Expenditure
GUILDFORD BOROUGH COUNCIL,HRA Service Delivery,1000852,ALS Laboratories (UK) Ltd,07/09/2023,30109554,1114.19,0,Expenses,,Invoice,BACS,No,14/08/2023 00:00,2023,5,HL389545,M5115,Repairs-Other Reponsive (BHS),D8004,Expenses,W3A05,Current Service Costs - Housing Services,W3A,Current Service Costs adjustment,W3,Current Service Costs,W,Other Operating Income and Expenditure
GUILDFORD BOROUGH COUNCIL,Housing Services,1000451,AMG Electrical Ltd,13/07/2023,30106954,1846.52,0,Services,,Invoice,BACS,No,04/07/2023 00:00,2023,4,2307-01,K1515,Building Maintenance,D6004,Services,DBX45,Property Services,DBX,Support Service and Management Costs,DB,Children's Social Care,E,Childrens and Education Services
GUILDFORD BOROUGH COUNCIL,Housing Services,1000451,AMG Electrical Ltd,21/09/2023,30111792,964.13,0,Services,,Invoice,BACS,No,06/09/2023 00:00,2023,6,2309-01,K1515,Building Maintenance,D6004,Services,DBX45,Property Services,DBX,Support Service and Management Costs,DB,Children's Social Care,E,Childrens and Education Services
GUILDFORD BOROUGH COUNCIL,Housing Services,1000451,AMG Electrical Ltd,21/09/2023,30111752,1612.9,0,Services,,Invoice,BACS,No,30/08/2023 00:00,2023,6,2309-05HEA,K1515,Building Maintenance,D6004,Services,DBX45,Property Services,DBX,Support Service and Management Costs,DB,Children's Social Care,E,Childrens and Education Services
GUILDFORD BOROUGH COUNCIL,Housing Services,1000451,AMG Electrical Ltd,18/07/2023,30107148,2579.97,0,Services,,Invoice,BACS,No,12/07/2023 00:00,2023,4,2307-02,K1515,Building Maintenance,D6004,Services,DBX45,Property Services,DBX,Support Service and Management Costs,DB,Children's Social Care,E,Childrens and Education Services
GUILDFORD BOROUGH COUNCIL,Housing Services,1000451,AMG Electrical Ltd,15/08/2023,30109176,780.88,0,Materials,,Invoice,BACS,No,07/08/2023 00:00,2023,5,2308-01,K1515,Building Maintenance,D2003,Materials,DBX45,Property Services,DBX,Support Service and Management Costs,DB,Children's Social Care,E,Childrens and Education Services
GUILDFORD BOROUGH COUNCIL,Housing Services,1000451,AMG Electrical Ltd,15/08/2023,30109185,1448.3,0,Services,,Invoice,BACS,No,03/06/2023 00:00,2023,5,S/08/23,K1515,Building Maintenance,D6004,Services,DBX45,Property Services,DBX,Support Service and Management Costs,DB,Children's Social Care,E,Childrens and Education Services
GUILDFORD BOROUGH COUNCIL,Housing Services,1000451,AMG Electrical Ltd,01/08/2023,30108310,293.82,0,Materials,,Invoice,BACS,No,24/07/2023 00:00,2023,4,2307-03,K1515,Building Maintenance,D2003,Materials,DBX45,Property Services,DBX,Support Service and Management Costs,DB,Children's Social Care,E,Childrens and Education Services
GUILDFORD BOROUGH COUNCIL,Housing Services,1000451,AMG Electrical Ltd,21/09/2023,30111827,1355.6,0,Services,,Invoice,BACS,No,10/09/2023 00:00,2023,6,S/09/23,K1515,Building Maintenance,D6004,Services,DBX45,Property Services,DBX,Support Service and Management Costs,DB,Children's Social Care,E,Childrens and Education Services
GUILDFORD BOROUGH COUNCIL,Housing Services,1000451,AMG Electrical Ltd,21/09/2023,30111777,992.96,0,Services,,Invoice,BACS,No,06/09/2023 00:00,2023,6,2309-02,K1515,Building Maintenance,D6004,Services,DBX45,Property Services,DBX,Support Service and Management Costs,DB,Children's Social Care,E,Childrens and Education Services
GUILDFORD BOROUGH COUNCIL,Housing Services,1000451,AMG Electrical Ltd,26/09/2023,30112299,1192.43,0,Services,,Invoice,BACS,No,06/09/2023 00:00,2023,6,2309-03,K1515,Building Maintenance,D6004,Services,DBX45,Property Services,DBX,Support Service and Management Costs,DB,Children's Social Care,E,Childrens and Education Services
GUILDFORD BOROUGH COUNCIL,Housing Services,1000451,AMG Electrical Ltd,18/07/2023,30107148,558.53,0,Materials,,Invoice,BACS,No,12/07/2023 00:00,2023,4,2307-02,K1515,Building Maintenance,D2003,Materials,DBX45,Property Services,DBX,Support Service and Management Costs,DB,Children's Social Care,E,Childrens and Education Services
GUILDFORD BOROUGH COUNCIL,Housing Services,1000451,AMG Electrical Ltd,15/08/2023,30109176,1429.41,0,Services,,Invoice,BACS,No,07/08/2023 00:00,2023,5,2308-01,K1515,Building Maintenance,D6004,Services,DBX45,Property Services,DBX,Support Service and Management Costs,DB,Children's Social Care,E,Childrens and Education Services
GUILDFORD BOROUGH COUNCIL,Housing Services,1000451,AMG Electrical Ltd,11/07/2023,30106640,2496.9,0,Services,,Invoice,BACS,No,03/07/2023 00:00,2023,4,S/06/23,K1515,Building Maintenance,D6004,Services,DBX45,Property Services,DBX,Support Service and Management Costs,DB,Children's Social Care,E,Childrens and Education Services
GUILDFORD BOROUGH COUNCIL,Housing Services,1000451,AMG Electrical Ltd,22/08/2023,30109907,1050.09,0,Services,,Invoice,BACS,No,14/08/2023 00:00,2023,5,2308-02,K1515,Building Maintenance,D6004,Services,DBX45,Property Services,DBX,Support Service and Management Costs,DB,Children's Social Care,E,Childrens and Education Services
GUILDFORD BOROUGH COUNCIL,Housing Services,1000451,AMG Electrical Ltd,07/09/2023,30110994,1136.29,0,Services,,Invoice,BACS,No,30/08/2023 00:00,2023,6,2308-05,K1515,Building Maintenance,D6004,Services,DBX45,Property Services,DBX,Support Service and Management Costs,DB,Children's Social Care,E,Childrens and Education Services
GUILDFORD BOROUGH COUNCIL,Housing Services,1000451,AMG Electrical Ltd,07/09/2023,30110994,287.78,0,Materials,,Invoice,BACS,No,30/08/2023 00:00,2023,6,2308-05,K1515,Building Maintenance,D2003,Materials,DBX45,Property Services,DBX,Support Service and Management Costs,DB,Children's Social Care,E,Childrens and Education Services
GUILDFORD BOROUGH COUNCIL,Housing Services,1000451,AMG Electrical Ltd,01/08/2023,30108310,1488.01,0,Services,,Invoice,BACS,No,24/07/2023 00:00,2023,4,2307-03,K1515,Building Maintenance,D6004,Services,DBX45,Property Services,DBX,Support Service and Management Costs,DB,Children's Social Care,E,Childrens and Education Services
GUILDFORD BOROUGH COUNCIL,Commercial Services,652250,Amica Accessories Ltd,08/08/2023,30107146,295.2,0,Stock For Re-Sale,Other Clothing And Accessory Suppliers,Invoice,BACS,No,13/07/2023 00:00,2023,4,7995,A4511,Guildford House Administration,D2004,Stock For Re-Sale,CCA30,Museums & Galleries,CCA,Culture & Heritage,CC,Cultural & Related Services,C,"Cultural, Environmental & Planning Services"
GUILDFORD BOROUGH COUNCIL,Environmental Services,754150,Anglia Sign Casting Limited,28/09/2023,30111088,264.21,0,Stock For Re-Sale,Other Metal Product Suppliers,Invoice,BACS,No,05/09/2023 00:00,2023,6,INV-61099,A1500,Crematorium,D2004,Stock For Re-Sale,CEA10,Crematoria,CEA,"Cemetery, Cremation and Mortuary Services",CE,Environmental & Regulatory Services,C,"Cultural, Environmental & Planning Services"
GUILDFORD BOROUGH COUNCIL,Community Services,604000,Apetito Ltd,10/08/2023,30108983,7190.92,0,Catering,Frozen Food Suppliers,Invoice,BACS,No,31/07/2023 00:00,2023,5,9004435561,C8142,Community Meals Service,D3001,Catering,KGU00,Supporting People - Strategy,KGU,Supporting People,KG,Housing General Fund,K,Housing Services
GUILDFORD BOROUGH COUNCIL,Community Services,604000,Apetito Ltd,24/08/2023,30108490,2166.72,0,External Vehicle Hire,Frozen Food Suppliers,Invoice,BACS,No,01/08/2023 00:00,2023,5,9004460073,C8142,Community Meals Service,C3001,External Vehicle Hire,KGU00,Supporting People - Strategy,KGU,Supporting People,KG,Housing General Fund,K,Housing Services
GUILDFORD BOROUGH COUNCIL,Community Services,604000,Apetito Ltd,27/07/2023,30106464,2166.72,0,External Vehicle Hire,Frozen Food Suppliers,Invoice,BACS,No,01/07/2023 00:00,2023,4,9004427578,C8142,Community Meals Service,C3001,External Vehicle Hire,KGU00,Supporting People - Strategy,KGU,Supporting People,KG,Housing General Fund,K,Housing Services
GUILDFORD BOROUGH COUNCIL,Community Services,604000,Apetito Ltd,26/09/2023,30110829,2166.72,0,External Vehicle Hire,Frozen Food Suppliers,Invoice,BACS,No,01/09/2023 00:00,2023,6,9004507588,C8142,Community Meals Service,C3001,External Vehicle Hire,KGU00,Supporting People - Strategy,KGU,Supporting People,KG,Housing General Fund,K,Housing Services
GUILDFORD BOROUGH COUNCIL,Community Services,604000,Apetito Ltd,24/08/2023,30108973,602.88,0,Catering,Frozen Food Suppliers,Invoice,BACS,No,31/07/2023 00:00,2023,5,9004477116,C8100,Community Hubs,D3001,Catering,KGU00,Supporting People - Strategy,KGU,Supporting People,KG,Housing General Fund,K,Housing Services
GUILDFORD BOROUGH COUNCIL,Community Services,604000,Apetito Ltd,25/07/2023,30106688,1006.77,0,Catering,Frozen Food Suppliers,Invoice,BACS,No,30/06/2023 00:00,2023,4,9004394423,C8100,Community Hubs,D3001,Catering,KGU00,Supporting People - Strategy,KGU,Supporting People,KG,Housing General Fund,K,Housing Services
GUILDFORD BOROUGH COUNCIL,Community Services,604000,Apetito Ltd,25/07/2023,30106689,7668.16,0,Catering,Frozen Food Suppliers,Invoice,BACS,No,30/06/2023 00:00,2023,4,9004393649,C8142,Community Meals Service,D3001,Catering,KGU00,Supporting People - Strategy,KGU,Supporting People,KG,Housing General Fund,K,Housing Services
GUILDFORD BOROUGH COUNCIL,Community Services,604000,Apetito Ltd,26/09/2023,30111478,955.1,0,Catering,Frozen Food Suppliers,Invoice,BACS,No,31/08/2023 00:00,2023,6,9004517451,C8100,Community Hubs,D3001,Catering,KGU00,Supporting People - Strategy,KGU,Supporting People,KG,Housing General Fund,K,Housing Services
GUILDFORD BOROUGH COUNCIL,Regulatory Services,822600,Applied Resilience Limited,27/07/2023,30106409,2149,0,Services,Other Business Service Providers,Invoice,BACS,No,01/07/2023 00:00,2023,4,GBC143,F1511,Civil Emergencies,D6004,Services,ACG00,Emergency Planning,ACG,Emergency Planning,AC,Central Services to the Public,A,Central Services
GUILDFORD BOROUGH COUNCIL,Regulatory Services,822600,Applied Resilience Limited,24/08/2023,30108541,2149,0,Services,Other Business Service Providers,Invoice,BACS,No,01/08/2023 00:00,2023,5,GBC145,F1511,Civil Emergencies,D6004,Services,ACG00,Emergency Planning,ACG,Emergency Planning,AC,Central Services to the Public,A,Central Services
GUILDFORD BOROUGH COUNCIL,Regulatory Services,822600,Applied Resilience Limited,26/09/2023,30110791,2149,0,Services,Other Business Service Providers,Invoice,BACS,No,01/09/2023 00:00,2023,6,GBC148,F1511,Civil Emergencies,D6004,Services,ACG00,Emergency Planning,ACG,Emergency Planning,AC,Central Services to the Public,A,Central Services
GUILDFORD BOROUGH COUNCIL,Organisational Development,822600,Applied Resilience Limited,27/07/2023,30106437,658.35,0,Grants And Subscriptions,Other Business Service Providers,Invoice,BACS,No,01/07/2023 00:00,2023,4,GBC144,F5724,Safer Guildford Partnership,D9001,Grants And Subscriptions,CEH00,Community Safety (Safety Services),CEH,Community Safety (Safety Services),CE,Environmental & Regulatory Services,C,"Cultural, Environmental & Planning Services"
GUILDFORD BOROUGH COUNCIL,Organisational Development,822600,Applied Resilience Limited,26/09/2023,30110798,616.29,0,Grants And Subscriptions,Other Business Service Providers,Invoice,BACS,No,01/09/2023 00:00,2023,6,GBC147,F5724,Safer Guildford Partnership,D9001,Grants And Subscriptions,CEH00,Community Safety (Safety Services),CEH,Community Safety (Safety Services),CE,Environmental & Regulatory Services,C,"Cultural, Environmental & Planning Services"
GUILDFORD BOROUGH COUNCIL,Organisational Development,822600,Applied Resilience Limited,24/08/2023,30108543,658.35,0,Grants And Subscriptions,Other Business Service Providers,Invoice,BACS,No,01/08/2023 00:00,2023,5,GBC146,F5724,Safer Guildford Partnership,D9001,Grants And Subscriptions,CEH00,Community Safety (Safety Services),CEH,Community Safety (Safety Services),CE,Environmental & Regulatory Services,C,"Cultural, Environmental & Planning Services"
GUILDFORD BOROUGH COUNCIL,Environmental Services,105080,APSE,05/09/2023,30109799,269,0,Staff Costs,Trade Associations And Regulatory Bodies,Invoice,BACS,No,09/08/2023 00:00,2023,5,2324/1224,A1300,Trees And Countryside,A7100,Staff Costs,CCE00,Community Parks & Open Spaces,CCE,Open Spaces,CC,Cultural & Related Services,C,"Cultural, Environmental & Planning Services"
GUILDFORD BOROUGH COUNCIL,Organisational Development,105080,APSE,07/09/2023,30109558,1442.5,0,Consultancy,Trade Associations And Regulatory Bodies,Invoice,BACS,No,15/08/2023 00:00,2023,5,2324/1277,B3911,Climate Change Strategy,D6001,Consultancy,CEZ00,Climate Change Costs,CEZ,Climate Change Costs,CE,Environmental & Regulatory Services,C,"Cultural, Environmental & Planning Services"
GUILDFORD BOROUGH COUNCIL,Environmental Services,105080,APSE,15/08/2023,30108053,1364,0,Consultations,Trade Associations And Regulatory Bodies,Invoice,BACS,No,24/07/2023 00:00,2023,4,2324/989,K3551,Refuse - Domestic,D8010,Consultations,CEW40,Disposal of Waste,CEW,Waste Disposal,CE,Environmental & Regulatory Services,C,"Cultural, Environmental & Planning Services"
GUILDFORD BOROUGH COUNCIL,Environmental Services,105080,APSE,22/08/2023,30109820,269,0,Staff Costs,Trade Associations And Regulatory Bodies,Invoice,BACS,No,19/07/2023 00:00,2023,5,2324/894,A1300,Trees And Countryside,A7100,Staff Costs,CCE00,Community Parks & Open Spaces,CCE,Open Spaces,CC,Cultural & Related Services,C,"Cultural, Environmental & Planning Services"
GUILDFORD BOROUGH COUNCIL,Executive - Miscellaneous,138190,Arcadis Consulting (UK) Limited,24/08/2023,30108675,47675,0,Consultants Fees,Other Construction Consultants,Invoice,BACS,No,31/07/2023 00:00,2023,5,680020579,P79027,Walnut Tree Bridge Replacement,1221,Consultants Fees,XXX99,*** UNASSIGNED ***,WCC,CEC Recharges,WC,CEC Recharges,A,Central Services
GUILDFORD BOROUGH COUNCIL,Industrial Estates,874420,Artelia Projects UK Limited,25/07/2023,30106158,2790,0,Consultants Fees,Civil Engineers,Invoice,BACS,No,30/06/2023 00:00,2023,4,PIN013711,P72037,Midleton Ind Est Redevelop,1221,Consultants Fees,XXX99,*** UNASSIGNED ***,WCC,CEC Recharges,WC,CEC Recharges,A,Central Services
GUILDFORD BOROUGH COUNCIL,Industrial Estates,874420,Artelia Projects UK Limited,08/08/2023,30108523,2769,0,Consultants Fees,Civil Engineers,Invoice,BACS,No,31/03/2023 00:00,2023,5,PIN013277,P72037,Midleton Ind Est Redevelop,1221,Consultants Fees,XXX99,*** UNASSIGNED ***,WCC,CEC Recharges,WC,CEC Recharges,A,Central Services
GUILDFORD BOROUGH COUNCIL,Industrial Estates,874420,Artelia Projects UK Limited,25/07/2023,30106162,2769,0,Consultants Fees,Civil Engineers,Invoice,BACS,No,30/06/2023 00:00,2023,4,PIN013710,P72037,Midleton Ind Est Redevelop,1221,Consultants Fees,XXX99,*** UNASSIGNED ***,WCC,CEC Recharges,WC,CEC Recharges,A,Central Services
GUILDFORD BOROUGH COUNCIL,Industrial Estates,874420,Artelia Projects UK Limited,25/07/2023,30107590,2790,0,Consultants Fees,Civil Engineers,Invoice,BACS,No,31/03/2023 00:00,2023,4,PIN013278,P72037,Midleton Ind Est Redevelop,1221,Consultants Fees,XXX99,*** UNASSIGNED ***,WCC,CEC Recharges,WC,CEC Recharges,A,Central Services
GUILDFORD BOROUGH COUNCIL,Industrial Estates,874420,Artelia Projects UK Limited,24/08/2023,30108483,3478,0,Consultants Fees,Civil Engineers,Invoice,BACS,No,31/07/2023 00:00,2023,5,PIN013832,P72037,Midleton Ind Est Redevelop,1221,Consultants Fees,XXX99,*** UNASSIGNED ***,WCC,CEC Recharges,WC,CEC Recharges,A,Central Services
GUILDFORD BOROUGH COUNCIL,Industrial Estates,874420,Artelia Projects UK Limited,24/08/2023,30108486,2790,0,Consultants Fees,Civil Engineers,Invoice,BACS,No,31/07/2023 00:00,2023,5,PIN013833,P72037,Midleton Ind Est Redevelop,1221,Consultants Fees,XXX99,*** UNASSIGNED ***,WCC,CEC Recharges,WC,CEC Recharges,A,Central Services
GUILDFORD BOROUGH COUNCIL,Revenue Balances,637000,Artington Parish Council,19/09/2023,30111502,2457.5,0,OOE - Parish Precepts Paid,Local Government [Uk Only],Invoice,BACS,No,15/09/2023 00:00,2023,6,Artington Parish Precepts Sept 2023,V01005,Gf Net Revenue Account,2482,OOE - Parish Precepts Paid,XXX99,*** UNASSIGNED ***,WCC,CEC Recharges,WC,CEC Recharges,A,Central Services
GUILDFORD BOROUGH COUNCIL,Environmental Services,775190,Arton Monoseal Ltd,07/09/2023,30109593,786,0,Waste Removal,Asbestos Removal Service Providers,Invoice,BACS,No,15/08/2023 00:00,2023,5,INV-5733,K4551,Street Cleansing,D6010,Waste Removal,CES00,Street Cleansing (not chargeable to highways),CES,Street Cleansing (not chargeable to highways),CE,Environmental & Regulatory Services,C,"Cultural, Environmental & Planning Services"
GUILDFORD BOROUGH COUNCIL,Environmental Services,775190,Arton Monoseal Ltd,28/09/2023,30111097,260,0,Waste Removal,Asbestos Removal Service Providers,Invoice,BACS,No,06/09/2023 00:00,2023,6,INV-5738,K4551,Street Cleansing,D6010,Waste Removal,CES00,Street Cleansing (not chargeable to highways),CES,Street Cleansing (not chargeable to highways),CE,Environmental & Regulatory Services,C,"Cultural, Environmental & Planning Services"
GUILDFORD BOROUGH COUNCIL,Environmental Services,775190,Arton Monoseal Ltd,07/09/2023,30109599,320,0,Waste Removal,Asbestos Removal Service Providers,Invoice,BACS,No,15/08/2023 00:00,2023,5,INV-5732,K4551,Street Cleansing,D6010,Waste Removal,CES00,Street Cleansing (not chargeable to highways),CES,Street Cleansing (not chargeable to highways),CE,Environmental & Regulatory Services,C,"Cultural, Environmental & Planning Services"
GUILDFORD BOROUGH COUNCIL,Environmental Services,775190,Arton Monoseal Ltd,28/09/2023,30111120,260,0,Waste Removal,Asbestos Removal Service Providers,Invoice,BACS,No,06/09/2023 00:00,2023,6,INV-5739,K4551,Street Cleansing,D6010,Waste Removal,CES00,Street Cleansing (not chargeable to highways),CES,Street Cleansing (not chargeable to highways),CE,Environmental & Regulatory Services,C,"Cultural, Environmental & Planning Services"
GUILDFORD BOROUGH COUNCIL,Finance,191500,Ash Parish Council,29/08/2023,30110351,4142.9,0,Grants And Subscriptions,Local Government [Uk Only],Invoice,BACS,No,25/08/2023 00:00,2023,5,Shawfield Allotments,F1115,Parish Liaison,D9001,Grants And Subscriptions,AAD00,Democratic Representation & Management,AAD,Democratic Representation & Management,AA,Corporate & Democratic Core,A,Central Services
GUILDFORD BOROUGH COUNCIL,Revenue Balances,657000,Ash Parish Council (Precepts),19/09/2023,30111506,273793.5,0,OOE - Parish Precepts Paid,Local Government [Uk Only],Invoice,BACS,No,15/09/2023 00:00,2023,6,September 2023 Precept Requisition 2023-24,V01005,Gf Net Revenue Account,2482,OOE - Parish Precepts Paid,XXX99,*** UNASSIGNED ***,WCC,CEC Recharges,WC,CEC Recharges,A,Central Services
GUILDFORD BOROUGH COUNCIL,Finance,657000,Ash Parish Council (Precepts),19/09/2023,30111506,22493,0,Grants And Subscriptions,Local Government [Uk Only],Invoice,BACS,No,15/09/2023 00:00,2023,6,September 2023 Precept Requisition 2023-24,F1115,Parish Liaison,D9001,Grants And Subscriptions,AAD00,Democratic Representation & Management,AAD,Democratic Representation & Management,AA,Corporate & Democratic Core,A,Central Services
GUILDFORD BOROUGH COUNCIL,Commercial Services,1000952,Assa Abloy Global Solutions UK Ltd t/a Traka,19/09/2023,30110014,1583,0,Contractors,,Invoice,BACS,No,21/08/2023 00:00,2023,5,7000017651,B2111,Car Parks - Administration,D6012,Contractors,HTP10,Off-Street Parking,HTP,Parking Services,HT,"Highways, Roads and Transport Services",H,"Highways, Roads and Transport Services"
GUILDFORD BOROUGH COUNCIL,Legal & Democratic Services,246310,Association Of Electoral Administrators,05/09/2023,30109246,434.78,0,"Advertising, Publicity & Promotion",Professional Associations,Invoice,BACS,No,11/08/2023 00:00,2023,5,34061,F2511,Electoral Registration,D5002,"Advertising, Publicity & Promotion",ACE00,Registration of Electors,ACE,Elections,AC,Central Services to the Public,A,Central Services
GUILDFORD BOROUGH COUNCIL,Legal & Democratic Services,246310,Association Of Electoral Administrators,05/09/2023,30109246,434.78,0,"Advertising, Publicity & Promotion",Professional Associations,Invoice,BACS,No,11/08/2023 00:00,2023,5,34061,F2151,Elections,D5002,"Advertising, Publicity & Promotion",ACE10,Conducting Elections,ACE,Elections,AC,Central Services to the Public,A,Central Services
GUILDFORD BOROUGH COUNCIL,Environmental Services,908500,AVS Fencing Supplies Ltd,08/08/2023,30108589,708,0,Materials,Builders Merchants,Invoice,BACS,No,19/06/2023 00:00,2023,5,0102/10259606,A1300,Trees And Countryside,D2003,Materials,CCE00,Community Parks & Open Spaces,CCE,Open Spaces,CC,Cultural & Related Services,C,"Cultural, Environmental & Planning Services"
GUILDFORD BOROUGH COUNCIL,HRA Service Delivery,118990,B T U (Installation & Maintenance) Ltd,29/08/2023,30110320,1188.92,0,Asset Maintenance,Mechanical Engineers,Invoice,BACS,No,08/06/2023 00:00,2023,5,OP/I285430,M5110,Repairs-Hostels-Cyclical (BHS),B1001,Asset Maintenance,W3A05,Current Service Costs - Housing Services,W3A,Current Service Costs adjustment,W3,Current Service Costs,W,Other Operating Income and Expenditure
GUILDFORD BOROUGH COUNCIL,HRA Service Delivery,118990,B T U (Installation & Maintenance) Ltd,29/08/2023,30110320,540.35,0,Asset Maintenance,Mechanical Engineers,Invoice,BACS,No,08/06/2023 00:00,2023,5,OP/I285430,M5110,Repairs-Hostels-Cyclical (BHS),B1001,Asset Maintenance,W3A05,Current Service Costs - Housing Services,W3A,Current Service Costs adjustment,W3,Current Service Costs,W,Other Operating Income and Expenditure
GUILDFORD BOROUGH COUNCIL,Commercial Services,118990,B T U (Installation & Maintenance) Ltd,29/08/2023,30110320,1333.46,0,Asset Maintenance,Mechanical Engineers,Invoice,BACS,No,08/06/2023 00:00,2023,5,OP/I285430,A4511,Guildford House Administration,B1001,Asset Maintenance,CCA30,Museums & Galleries,CCA,Culture & Heritage,CC,Cultural & Related Services,C,"Cultural, Environmental & Planning Services"
GUILDFORD BOROUGH COUNCIL,Commercial Services,118990,B T U (Installation & Maintenance) Ltd,29/08/2023,30110321,1622.94,0,Asset Maintenance,Mechanical Engineers,Invoice,BACS,No,08/06/2023 00:00,2023,5,OP/I285431,F3311,Guildhall,B1001,Asset Maintenance,CCA30,Museums & Galleries,CCA,Culture & Heritage,CC,Cultural & Related Services,C,"Cultural, Environmental & Planning Services"
GUILDFORD BOROUGH COUNCIL,HRA Service Delivery,118990,B T U (Installation & Maintenance) Ltd,29/08/2023,30110317,770.8,0,Asset Maintenance,Mechanical Engineers,Invoice,BACS,No,25/04/2023 00:00,2023,5,OP/I284973,M5106,Repairs-Shelt-Responsive (BHS),B1001,Asset Maintenance,W3A05,Current Service Costs - Housing Services,W3A,Current Service Costs adjustment,W3,Current Service Costs,W,Other Operating Income and Expenditure
GUILDFORD BOROUGH COUNCIL,HRA Service Delivery,118990,B T U (Installation & Maintenance) Ltd,29/08/2023,30110317,253.52,0,Asset Maintenance,Mechanical Engineers,Invoice,BACS,No,25/04/2023 00:00,2023,5,OP/I284973,M5106,Repairs-Shelt-Responsive (BHS),B1001,Asset Maintenance,W3A05,Current Service Costs - Housing Services,W3A,Current Service Costs adjustment,W3,Current Service Costs,W,Other Operating Income and Expenditure
GUILDFORD BOROUGH COUNCIL,Environmental Services,118990,B T U (Installation & Maintenance) Ltd,29/08/2023,30110317,857.9,0,Asset Maintenance,Mechanical Engineers,Invoice,BACS,No,25/04/2023 00:00,2023,5,OP/I284973,A1500,Crematorium,B1001,Asset Maintenance,CEA10,Crematoria,CEA,"Cemetery, Cremation and Mortuary Services",CE,Environmental & Regulatory Services,C,"Cultural, Environmental & Planning Services"
GUILDFORD BOROUGH COUNCIL,HRA Service Delivery,118990,B T U (Installation & Maintenance) Ltd,29/08/2023,30110317,517.11,0,Asset Maintenance,Mechanical Engineers,Invoice,BACS,No,25/04/2023 00:00,2023,5,OP/I284973,M5106,Repairs-Shelt-Responsive (BHS),B1001,Asset Maintenance,W3A05,Current Service Costs - Housing Services,W3A,Current Service Costs adjustment,W3,Current Service Costs,W,Other Operating Income and Expenditure
GUILDFORD BOROUGH COUNCIL,Commercial Services,118990,B T U (Installation & Maintenance) Ltd,29/08/2023,30110318,2030,0,Asset Maintenance,Mechanical Engineers,Invoice,BACS,No,08/06/2023 00:00,2023,5,OP/I285428,B2311,Contract Parking- Admin.,B1001,Asset Maintenance,HTP10,Off-Street Parking,HTP,Parking Services,HT,"Highways, Roads and Transport Services",H,"Highways, Roads and Transport Services"
GUILDFORD BOROUGH COUNCIL,Commercial Services,118990,B T U (Installation & Maintenance) Ltd,29/08/2023,30110318,3168.71,0,Asset Maintenance,Mechanical Engineers,Invoice,BACS,No,08/06/2023 00:00,2023,5,OP/I285428,B2311,Contract Parking- Admin.,B1001,Asset Maintenance,HTP10,Off-Street Parking,HTP,Parking Services,HT,"Highways, Roads and Transport Services",H,"Highways, Roads and Transport Services"
GUILDFORD BOROUGH COUNCIL,Environmental Services,118990,B T U (Installation & Maintenance) Ltd,29/08/2023,30110318,584.2,0,Asset Maintenance,Mechanical Engineers,Invoice,BACS,No,08/06/2023 00:00,2023,5,OP/I285428,A1130,Castle Grounds,B1001,Asset Maintenance,CCE00,Community Parks & Open Spaces,CCE,Open Spaces,CC,Cultural & Related Services,C,"Cultural, Environmental & Planning Services"
GUILDFORD BOROUGH COUNCIL,HRA Service Delivery,118990,B T U (Installation & Maintenance) Ltd,29/08/2023,30110319,2475.08,0,Asset Maintenance,Mechanical Engineers,Invoice,BACS,No,08/06/2023 00:00,2023,5,OP/I285429,M5110,Repairs-Hostels-Cyclical (BHS),B1001,Asset Maintenance,W3A05,Current Service Costs - Housing Services,W3A,Current Service Costs adjustment,W3,Current Service Costs,W,Other Operating Income and Expenditure
GUILDFORD BOROUGH COUNCIL,HRA Service Delivery,118990,B T U (Installation & Maintenance) Ltd,29/08/2023,30110319,1033.68,0,Asset Maintenance,Mechanical Engineers,Invoice,BACS,No,08/06/2023 00:00,2023,5,OP/I285429,M5110,Repairs-Hostels-Cyclical (BHS),B1001,Asset Maintenance,W3A05,Current Service Costs - Housing Services,W3A,Current Service Costs adjustment,W3,Current Service Costs,W,Other Operating Income and Expenditure
GUILDFORD BOROUGH COUNCIL,Environmental Services,118990,B T U (Installation & Maintenance) Ltd,29/08/2023,30110319,2994.92,0,Asset Maintenance,Mechanical Engineers,Invoice,BACS,No,08/06/2023 00:00,2023,5,OP/I285429,B4452,Woking Road Depot,B1001,Asset Maintenance,XXX99,*** UNASSIGNED ***,WCC,CEC Recharges,WC,CEC Recharges,A,Central Services
GUILDFORD BOROUGH COUNCIL,HRA Service Delivery,118990,B T U (Installation & Maintenance) Ltd,29/08/2023,30110320,1397.78,0,Asset Maintenance,Mechanical Engineers,Invoice,BACS,No,08/06/2023 00:00,2023,5,OP/I285430,M5110,Repairs-Hostels-Cyclical (BHS),B1001,Asset Maintenance,W3A05,Current Service Costs - Housing Services,W3A,Current Service Costs adjustment,W3,Current Service Costs,W,Other Operating Income and Expenditure
GUILDFORD BOROUGH COUNCIL,Commercial Services,118990,B T U (Installation & Maintenance) Ltd,29/08/2023,30110320,1753,0,Asset Maintenance,Mechanical Engineers,Invoice,BACS,No,08/06/2023 00:00,2023,5,OP/I285430,B2244,Farnham Road Mscp,B1001,Asset Maintenance,HTP10,Off-Street Parking,HTP,Parking Services,HT,"Highways, Roads and Transport Services",H,"Highways, Roads and Transport Services"
GUILDFORD BOROUGH COUNCIL,Environmental Services,118990,B T U (Installation & Maintenance) Ltd,10/08/2023,30109062,1402.53,0,Asset Maintenance,Mechanical Engineers,Invoice,BACS,No,20/04/2023 00:00,2023,5,OP/I284923,B4452,Woking Road Depot,B1001,Asset Maintenance,XXX99,*** UNASSIGNED ***,WCC,CEC Recharges,WC,CEC Recharges,A,Central Services
GUILDFORD BOROUGH COUNCIL,Commercial Services,118990,B T U (Installation & Maintenance) Ltd,10/08/2023,30109063,6946.99,0,Asset Maintenance,Mechanical Engineers,Invoice,BACS,No,20/04/2023 00:00,2023,5,OP/I284924,F3311,Guildhall,B1001,Asset Maintenance,CCA30,Museums & Galleries,CCA,Culture & Heritage,CC,Cultural & Related Services,C,"Cultural, Environmental & Planning Services"
GUILDFORD BOROUGH COUNCIL,Commercial Services,118990,B T U (Installation & Maintenance) Ltd,10/08/2023,30109064,3874.33,0,Asset Maintenance,Mechanical Engineers,Invoice,BACS,No,20/04/2023 00:00,2023,5,OP/I284925,F3311,Guildhall,B1001,Asset Maintenance,CCA30,Museums & Galleries,CCA,Culture & Heritage,CC,Cultural & Related Services,C,"Cultural, Environmental & Planning Services"
GUILDFORD BOROUGH COUNCIL,HRA Service Delivery,118990,B T U (Installation & Maintenance) Ltd,10/08/2023,30109065,1196.39,0,Asset Maintenance,Mechanical Engineers,Invoice,BACS,No,20/04/2023 00:00,2023,5,OP/I284927,M5106,Repairs-Shelt-Responsive (BHS),B1001,Asset Maintenance,W3A05,Current Service Costs - Housing Services,W3A,Current Service Costs adjustment,W3,Current Service Costs,W,Other Operating Income and Expenditure
GUILDFORD BOROUGH COUNCIL,HRA Service Delivery,118990,B T U (Installation & Maintenance) Ltd,10/08/2023,30109069,1083.69,0,Asset Maintenance,Mechanical Engineers,Invoice,BACS,No,20/04/2023 00:00,2023,5,OP/I284932,M5106,Repairs-Shelt-Responsive (BHS),B1001,Asset Maintenance,W3A05,Current Service Costs - Housing Services,W3A,Current Service Costs adjustment,W3,Current Service Costs,W,Other Operating Income and Expenditure
GUILDFORD BOROUGH COUNCIL,Environmental Services,118990,B T U (Installation & Maintenance) Ltd,29/08/2023,30110320,4424.79,0,Asset Maintenance,Mechanical Engineers,Invoice,BACS,No,08/06/2023 00:00,2023,5,OP/I285430,A1500,Crematorium,B1001,Asset Maintenance,CEA10,Crematoria,CEA,"Cemetery, Cremation and Mortuary Services",CE,Environmental & Regulatory Services,C,"Cultural, Environmental & Planning Services"
GUILDFORD BOROUGH COUNCIL,Commercial Services,118990,B T U (Installation & Maintenance) Ltd,29/08/2023,30110320,853.72,0,Asset Maintenance,Mechanical Engineers,Invoice,BACS,No,08/06/2023 00:00,2023,5,OP/I285430,A4511,Guildford House Administration,B1001,Asset Maintenance,CCA30,Museums & Galleries,CCA,Culture & Heritage,CC,Cultural & Related Services,C,"Cultural, Environmental & Planning Services"
GUILDFORD BOROUGH COUNCIL,Commercial Services,118990,B T U (Installation & Maintenance) Ltd,29/08/2023,30110320,1622.94,0,Asset Maintenance,Mechanical Engineers,Invoice,BACS,No,08/06/2023 00:00,2023,5,OP/I285430,F3311,Guildhall,B1001,Asset Maintenance,CCA30,Museums & Galleries,CCA,Culture & Heritage,CC,Cultural & Related Services,C,"Cultural, Environmental & Planning Services"
GUILDFORD BOROUGH COUNCIL,HRA Service Delivery,118990,B T U (Installation & Maintenance) Ltd,29/08/2023,30110317,379.5,0,Asset Maintenance,Mechanical Engineers,Invoice,BACS,No,25/04/2023 00:00,2023,5,OP/I284973,M5106,Repairs-Shelt-Responsive (BHS),B1001,Asset Maintenance,W3A05,Current Service Costs - Housing Services,W3A,Current Service Costs adjustment,W3,Current Service Costs,W,Other Operating Income and Expenditure
GUILDFORD BOROUGH COUNCIL,HRA Service Delivery,118990,B T U (Installation & Maintenance) Ltd,29/08/2023,30110318,3277.68,0,Asset Maintenance,Mechanical Engineers,Invoice,BACS,No,08/06/2023 00:00,2023,5,OP/I285428,M5106,Repairs-Shelt-Responsive (BHS),B1001,Asset Maintenance,W3A05,Current Service Costs - Housing Services,W3A,Current Service Costs adjustment,W3,Current Service Costs,W,Other Operating Income and Expenditure
GUILDFORD BOROUGH COUNCIL,HRA Service Delivery,118990,B T U (Installation & Maintenance) Ltd,29/08/2023,30110318,6946.03,0,Asset Maintenance,Mechanical Engineers,Invoice,BACS,No,08/06/2023 00:00,2023,5,OP/I285428,M5106,Repairs-Shelt-Responsive (BHS),B1001,Asset Maintenance,W3A05,Current Service Costs - Housing Services,W3A,Current Service Costs adjustment,W3,Current Service Costs,W,Other Operating Income and Expenditure
GUILDFORD BOROUGH COUNCIL,Environmental Services,118990,B T U (Installation & Maintenance) Ltd,29/08/2023,30110319,836.58,0,Asset Maintenance,Mechanical Engineers,Invoice,BACS,No,08/06/2023 00:00,2023,5,OP/I285429,A1600,Stoke Park Depot,B1001,Asset Maintenance,CCE00,Community Parks & Open Spaces,CCE,Open Spaces,CC,Cultural & Related Services,C,"Cultural, Environmental & Planning Services"
GUILDFORD BOROUGH COUNCIL,Community Services,118990,B T U (Installation & Maintenance) Ltd,22/08/2023,30109960,1515.13,0,Asset Maintenance,Mechanical Engineers,Invoice,BACS,No,16/05/2023 00:00,2023,5,OP/I285192,A8141,Park Barn Youth and Community Centre,B1001,Asset Maintenance,CCD00,Community Centres and Public Halls,CCD,Recreation & Sport,CC,Cultural & Related Services,C,"Cultural, Environmental & Planning Services"
GUILDFORD BOROUGH COUNCIL,Commercial Services,118990,B T U (Installation & Maintenance) Ltd,10/08/2023,30109061,1239.61,0,Asset Maintenance,Mechanical Engineers,Invoice,BACS,No,19/04/2023 00:00,2023,5,OP/I284908,F3311,Guildhall,B1001,Asset Maintenance,CCA30,Museums & Galleries,CCA,Culture & Heritage,CC,Cultural & Related Services,C,"Cultural, Environmental & Planning Services"
GUILDFORD BOROUGH COUNCIL,HRA Service Delivery,118990,B T U (Installation & Maintenance) Ltd,10/08/2023,30109068,1132.02,0,Asset Maintenance,Mechanical Engineers,Invoice,BACS,No,20/04/2023 00:00,2023,5,OP/I284931,M5106,Repairs-Shelt-Responsive (BHS),B1001,Asset Maintenance,W3A05,Current Service Costs - Housing Services,W3A,Current Service Costs adjustment,W3,Current Service Costs,W,Other Operating Income and Expenditure
GUILDFORD BOROUGH COUNCIL,Commercial Services,118990,B T U (Installation & Maintenance) Ltd,29/08/2023,30110320,1837.45,0,Asset Maintenance,Mechanical Engineers,Invoice,BACS,No,08/06/2023 00:00,2023,5,OP/I285430,B2219,Bedford Road Mscp,B1001,Asset Maintenance,HTP10,Off-Street Parking,HTP,Parking Services,HT,"Highways, Roads and Transport Services",H,"Highways, Roads and Transport Services"
GUILDFORD BOROUGH COUNCIL,Assets and Property,118990,B T U (Installation & Maintenance) Ltd,29/08/2023,30110320,37791.65,0,Asset Maintenance,Mechanical Engineers,Invoice,BACS,No,08/06/2023 00:00,2023,5,OP/I285430,G7511,Millmead House,B1001,Asset Maintenance,DBX70,Other Management Costs,DBX,Support Service and Management Costs,DB,Children's Social Care,E,Childrens and Education Services
GUILDFORD BOROUGH COUNCIL,Commercial Services,118990,B T U (Installation & Maintenance) Ltd,29/08/2023,30110321,2030,0,Asset Maintenance,Mechanical Engineers,Invoice,BACS,No,08/06/2023 00:00,2023,5,OP/I285431,B2219,Bedford Road Mscp,B1001,Asset Maintenance,HTP10,Off-Street Parking,HTP,Parking Services,HT,"Highways, Roads and Transport Services",H,"Highways, Roads and Transport Services"
GUILDFORD BOROUGH COUNCIL,HRA Service Delivery,118990,B T U (Installation & Maintenance) Ltd,29/08/2023,30110321,1108.69,0,Asset Maintenance,Mechanical Engineers,Invoice,BACS,No,08/06/2023 00:00,2023,5,OP/I285431,M5114,Repairs-Cyclical (BHS),B1001,Asset Maintenance,W3A05,Current Service Costs - Housing Services,W3A,Current Service Costs adjustment,W3,Current Service Costs,W,Other Operating Income and Expenditure
GUILDFORD BOROUGH COUNCIL,HRA Service Delivery,118990,B T U (Installation & Maintenance) Ltd,29/08/2023,30110317,538.11,0,Asset Maintenance,Mechanical Engineers,Invoice,BACS,No,25/04/2023 00:00,2023,5,OP/I284973,M5113,Repairs-Responsive (BHS),B1001,Asset Maintenance,W3A05,Current Service Costs - Housing Services,W3A,Current Service Costs adjustment,W3,Current Service Costs,W,Other Operating Income and Expenditure
GUILDFORD BOROUGH COUNCIL,Commercial Services,118990,B T U (Installation & Maintenance) Ltd,29/08/2023,30110318,1837.45,0,Asset Maintenance,Mechanical Engineers,Invoice,BACS,No,08/06/2023 00:00,2023,5,OP/I285428,B2219,Bedford Road Mscp,B1001,Asset Maintenance,HTP10,Off-Street Parking,HTP,Parking Services,HT,"Highways, Roads and Transport Services",H,"Highways, Roads and Transport Services"
GUILDFORD BOROUGH COUNCIL,Community Services,118990,B T U (Installation & Maintenance) Ltd,29/08/2023,30110318,477.48,0,Asset Maintenance,Mechanical Engineers,Invoice,BACS,No,08/06/2023 00:00,2023,5,OP/I285428,A8121,Bellfields Youth and Community Centre,B1001,Asset Maintenance,CCD00,Community Centres and Public Halls,CCD,Recreation & Sport,CC,Cultural & Related Services,C,"Cultural, Environmental & Planning Services"
GUILDFORD BOROUGH COUNCIL,HRA Service Delivery,118990,B T U (Installation & Maintenance) Ltd,29/08/2023,30110318,678.49,0,Asset Maintenance,Mechanical Engineers,Invoice,BACS,No,08/06/2023 00:00,2023,5,OP/I285428,M5114,Repairs-Cyclical (BHS),B1001,Asset Maintenance,W3A05,Current Service Costs - Housing Services,W3A,Current Service Costs adjustment,W3,Current Service Costs,W,Other Operating Income and Expenditure
GUILDFORD BOROUGH COUNCIL,HRA Service Delivery,118990,B T U (Installation & Maintenance) Ltd,29/08/2023,30110318,1764.66,0,Asset Maintenance,Mechanical Engineers,Invoice,BACS,No,08/06/2023 00:00,2023,5,OP/I285428,M5114,Repairs-Cyclical (BHS),B1001,Asset Maintenance,W3A05,Current Service Costs - Housing Services,W3A,Current Service Costs adjustment,W3,Current Service Costs,W,Other Operating Income and Expenditure
GUILDFORD BOROUGH COUNCIL,HRA Service Delivery,118990,B T U (Installation & Maintenance) Ltd,29/08/2023,30110318,1357.41,0,Asset Maintenance,Mechanical Engineers,Invoice,BACS,No,08/06/2023 00:00,2023,5,OP/I285428,M5107,Repairs-Shelt-Cyclical (BHS),B1001,Asset Maintenance,W3A05,Current Service Costs - Housing Services,W3A,Current Service Costs adjustment,W3,Current Service Costs,W,Other Operating Income and Expenditure
GUILDFORD BOROUGH COUNCIL,HRA Service Delivery,118990,B T U (Installation & Maintenance) Ltd,29/08/2023,30110318,678.49,0,Asset Maintenance,Mechanical Engineers,Invoice,BACS,No,08/06/2023 00:00,2023,5,OP/I285428,M5114,Repairs-Cyclical (BHS),B1001,Asset Maintenance,W3A05,Current Service Costs - Housing Services,W3A,Current Service Costs adjustment,W3,Current Service Costs,W,Other Operating Income and Expenditure
GUILDFORD BOROUGH COUNCIL,Commercial Services,118990,B T U (Installation & Maintenance) Ltd,29/08/2023,30110318,2266,0,Asset Maintenance,Mechanical Engineers,Invoice,BACS,No,08/06/2023 00:00,2023,5,OP/I285428,B2291,York Road Mscp,B1001,Asset Maintenance,HTP10,Off-Street Parking,HTP,Parking Services,HT,"Highways, Roads and Transport Services",H,"Highways, Roads and Transport Services"
GUILDFORD BOROUGH COUNCIL,HRA Service Delivery,118990,B T U (Installation & Maintenance) Ltd,29/08/2023,30110319,3241.57,0,Asset Maintenance,Mechanical Engineers,Invoice,BACS,No,08/06/2023 00:00,2023,5,OP/I285429,M5107,Repairs-Shelt-Cyclical (BHS),B1001,Asset Maintenance,W3A05,Current Service Costs - Housing Services,W3A,Current Service Costs adjustment,W3,Current Service Costs,W,Other Operating Income and Expenditure
GUILDFORD BOROUGH COUNCIL,HRA Service Delivery,118990,B T U (Installation & Maintenance) Ltd,29/08/2023,30110319,3953.25,0,Asset Maintenance,Mechanical Engineers,Invoice,BACS,No,08/06/2023 00:00,2023,5,OP/I285429,M5107,Repairs-Shelt-Cyclical (BHS),B1001,Asset Maintenance,W3A05,Current Service Costs - Housing Services,W3A,Current Service Costs adjustment,W3,Current Service Costs,W,Other Operating Income and Expenditure
GUILDFORD BOROUGH COUNCIL,HRA Service Delivery,118990,B T U (Installation & Maintenance) Ltd,29/08/2023,30110319,780,0,Asset Maintenance,Mechanical Engineers,Invoice,BACS,No,08/06/2023 00:00,2023,5,OP/I285429,M5114,Repairs-Cyclical (BHS),B1001,Asset Maintenance,W3A05,Current Service Costs - Housing Services,W3A,Current Service Costs adjustment,W3,Current Service Costs,W,Other Operating Income and Expenditure
GUILDFORD BOROUGH COUNCIL,HRA Service Delivery,118990,B T U (Installation & Maintenance) Ltd,29/08/2023,30110319,1872,0,Asset Maintenance,Mechanical Engineers,Invoice,BACS,No,08/06/2023 00:00,2023,5,OP/I285429,M5114,Repairs-Cyclical (BHS),B1001,Asset Maintenance,W3A05,Current Service Costs - Housing Services,W3A,Current Service Costs adjustment,W3,Current Service Costs,W,Other Operating Income and Expenditure
GUILDFORD BOROUGH COUNCIL,Commercial Services,118990,B T U (Installation & Maintenance) Ltd,29/08/2023,30110320,562.5,0,Asset Maintenance,Mechanical Engineers,Invoice,BACS,No,08/06/2023 00:00,2023,5,OP/I285430,B2277,Castle Mscp,B1001,Asset Maintenance,HTP10,Off-Street Parking,HTP,Parking Services,HT,"Highways, Roads and Transport Services",H,"Highways, Roads and Transport Services"
GUILDFORD BOROUGH COUNCIL,HRA Service Delivery,118990,B T U (Installation & Maintenance) Ltd,22/08/2023,30109960,1129.17,0,Asset Maintenance,Mechanical Engineers,Invoice,BACS,No,16/05/2023 00:00,2023,5,OP/I285192,M5107,Repairs-Shelt-Cyclical (BHS),B1001,Asset Maintenance,W3A05,Current Service Costs - Housing Services,W3A,Current Service Costs adjustment,W3,Current Service Costs,W,Other Operating Income and Expenditure
GUILDFORD BOROUGH COUNCIL,Commercial Services,118990,B T U (Installation & Maintenance) Ltd,22/08/2023,30109961,696.21,0,Asset Maintenance,Mechanical Engineers,Invoice,BACS,No,30/05/2023 00:00,2023,5,OP/I285298,A5511,Museum,B1001,Asset Maintenance,CCA30,Museums & Galleries,CCA,Culture & Heritage,CC,Cultural & Related Services,C,"Cultural, Environmental & Planning Services"
GUILDFORD BOROUGH COUNCIL,HRA Service Delivery,118990,B T U (Installation & Maintenance) Ltd,22/08/2023,30109963,537.44,0,Asset Maintenance,Mechanical Engineers,Invoice,BACS,No,07/06/2023 00:00,2023,5,OP/I285420,M5107,Repairs-Shelt-Cyclical (BHS),B1001,Asset Maintenance,W3A05,Current Service Costs - Housing Services,W3A,Current Service Costs adjustment,W3,Current Service Costs,W,Other Operating Income and Expenditure
GUILDFORD BOROUGH COUNCIL,Community Services,118990,B T U (Installation & Maintenance) Ltd,10/08/2023,30109067,1076.32,0,Asset Maintenance,Mechanical Engineers,Invoice,BACS,No,20/04/2023 00:00,2023,5,OP/I284930,C8100,Community Hubs,B1001,Asset Maintenance,KGU00,Supporting People - Strategy,KGU,Supporting People,KG,Housing General Fund,K,Housing Services
GUILDFORD BOROUGH COUNCIL,HRA Service Delivery,118990,B T U (Installation & Maintenance) Ltd,10/08/2023,30109072,2240.16,0,Asset Maintenance,Mechanical Engineers,Invoice,BACS,No,20/04/2023 00:00,2023,5,OP/I284939,M5113,Repairs-Responsive (BHS),B1001,Asset Maintenance,W3A05,Current Service Costs - Housing Services,W3A,Current Service Costs adjustment,W3,Current Service Costs,W,Other Operating Income and Expenditure
GUILDFORD BOROUGH COUNCIL,Assets and Property,118990,B T U (Installation & Maintenance) Ltd,10/08/2023,30109076,2984.96,0,Asset Maintenance,Mechanical Engineers,Invoice,BACS,No,24/05/2023 00:00,2023,5,OP/I285276,G7511,Millmead House,B1001,Asset Maintenance,DBX70,Other Management Costs,DBX,Support Service and Management Costs,DB,Children's Social Care,E,Childrens and Education Services
GUILDFORD BOROUGH COUNCIL,HRA Service Delivery,118990,B T U (Installation & Maintenance) Ltd,10/08/2023,30109079,1427.99,0,Asset Maintenance,Mechanical Engineers,Invoice,BACS,No,01/06/2023 00:00,2023,5,OP/I285345,M5107,Repairs-Shelt-Cyclical (BHS),B1001,Asset Maintenance,W3A05,Current Service Costs - Housing Services,W3A,Current Service Costs adjustment,W3,Current Service Costs,W,Other Operating Income and Expenditure
GUILDFORD BOROUGH COUNCIL,HRA Service Delivery,118990,B T U (Installation & Maintenance) Ltd,10/08/2023,30109080,4443,0,Asset Maintenance,Mechanical Engineers,Invoice,BACS,No,01/06/2023 00:00,2023,5,OP/I285346,M5114,Repairs-Cyclical (BHS),B1001,Asset Maintenance,W3A05,Current Service Costs - Housing Services,W3A,Current Service Costs adjustment,W3,Current Service Costs,W,Other Operating Income and Expenditure
GUILDFORD BOROUGH COUNCIL,HRA Service Delivery,118990,B T U (Installation & Maintenance) Ltd,10/08/2023,30109081,1201.68,0,Asset Maintenance,Mechanical Engineers,Invoice,BACS,No,01/06/2023 00:00,2023,5,OP/I285347,M5107,Repairs-Shelt-Cyclical (BHS),B1001,Asset Maintenance,W3A05,Current Service Costs - Housing Services,W3A,Current Service Costs adjustment,W3,Current Service Costs,W,Other Operating Income and Expenditure
GUILDFORD BOROUGH COUNCIL,Community Services,118990,B T U (Installation & Maintenance) Ltd,10/08/2023,30109083,3505.05,0,Asset Maintenance,Mechanical Engineers,Invoice,BACS,No,01/06/2023 00:00,2023,5,OP/I285349,C8100,Community Hubs,B1001,Asset Maintenance,KGU00,Supporting People - Strategy,KGU,Supporting People,KG,Housing General Fund,K,Housing Services
GUILDFORD BOROUGH COUNCIL,Commercial Services,118990,B T U (Installation & Maintenance) Ltd,29/08/2023,30110320,565.34,0,Asset Maintenance,Mechanical Engineers,Invoice,BACS,No,08/06/2023 00:00,2023,5,OP/I285430,B2219,Bedford Road Mscp,B1001,Asset Maintenance,HTP10,Off-Street Parking,HTP,Parking Services,HT,"Highways, Roads and Transport Services",H,"Highways, Roads and Transport Services"
GUILDFORD BOROUGH COUNCIL,Commercial Services,118990,B T U (Installation & Maintenance) Ltd,29/08/2023,30110320,1409.48,0,Asset Maintenance,Mechanical Engineers,Invoice,BACS,No,08/06/2023 00:00,2023,5,OP/I285430,B2219,Bedford Road Mscp,B1001,Asset Maintenance,HTP10,Off-Street Parking,HTP,Parking Services,HT,"Highways, Roads and Transport Services",H,"Highways, Roads and Transport Services"
GUILDFORD BOROUGH COUNCIL,HRA Service Delivery,118990,B T U (Installation & Maintenance) Ltd,10/08/2023,30109084,1625.61,0,Asset Maintenance,Mechanical Engineers,Invoice,BACS,No,01/06/2023 00:00,2023,5,OP/I285350,M5107,Repairs-Shelt-Cyclical (BHS),B1001,Asset Maintenance,W3A05,Current Service Costs - Housing Services,W3A,Current Service Costs adjustment,W3,Current Service Costs,W,Other Operating Income and Expenditure
GUILDFORD BOROUGH COUNCIL,Commercial Services,118990,B T U (Installation & Maintenance) Ltd,29/08/2023,30110320,2416.27,0,Asset Maintenance,Mechanical Engineers,Invoice,BACS,No,08/06/2023 00:00,2023,5,OP/I285430,B2281,Tunsgate Car Park,B1001,Asset Maintenance,HTP10,Off-Street Parking,HTP,Parking Services,HT,"Highways, Roads and Transport Services",H,"Highways, Roads and Transport Services"
GUILDFORD BOROUGH COUNCIL,Commercial Services,118990,B T U (Installation & Maintenance) Ltd,29/08/2023,30110318,565.34,0,Asset Maintenance,Mechanical Engineers,Invoice,BACS,No,08/06/2023 00:00,2023,5,OP/I285428,B2219,Bedford Road Mscp,B1001,Asset Maintenance,HTP10,Off-Street Parking,HTP,Parking Services,HT,"Highways, Roads and Transport Services",H,"Highways, Roads and Transport Services"
GUILDFORD BOROUGH COUNCIL,HRA Service Delivery,118990,B T U (Installation & Maintenance) Ltd,29/08/2023,30110318,1370.4,0,Asset Maintenance,Mechanical Engineers,Invoice,BACS,No,08/06/2023 00:00,2023,5,OP/I285428,M5107,Repairs-Shelt-Cyclical (BHS),B1001,Asset Maintenance,W3A05,Current Service Costs - Housing Services,W3A,Current Service Costs adjustment,W3,Current Service Costs,W,Other Operating Income and Expenditure
GUILDFORD BOROUGH COUNCIL,HRA Service Delivery,118990,B T U (Installation & Maintenance) Ltd,29/08/2023,30110319,1038.69,0,Asset Maintenance,Mechanical Engineers,Invoice,BACS,No,08/06/2023 00:00,2023,5,OP/I285429,M5114,Repairs-Cyclical (BHS),B1001,Asset Maintenance,W3A05,Current Service Costs - Housing Services,W3A,Current Service Costs adjustment,W3,Current Service Costs,W,Other Operating Income and Expenditure
GUILDFORD BOROUGH COUNCIL,HRA Service Delivery,118990,B T U (Installation & Maintenance) Ltd,29/08/2023,30110319,1108.69,0,Asset Maintenance,Mechanical Engineers,Invoice,BACS,No,08/06/2023 00:00,2023,5,OP/I285429,M5114,Repairs-Cyclical (BHS),B1001,Asset Maintenance,W3A05,Current Service Costs - Housing Services,W3A,Current Service Costs adjustment,W3,Current Service Costs,W,Other Operating Income and Expenditure
GUILDFORD BOROUGH COUNCIL,Commercial Services,118990,B T U (Installation & Maintenance) Ltd,29/08/2023,30110319,605.58,0,Asset Maintenance,Mechanical Engineers,Invoice,BACS,No,08/06/2023 00:00,2023,5,OP/I285429,A5511,Museum,B1001,Asset Maintenance,CCA30,Museums & Galleries,CCA,Culture & Heritage,CC,Cultural & Related Services,C,"Cultural, Environmental & Planning Services"
GUILDFORD BOROUGH COUNCIL,Community Services,118990,B T U (Installation & Maintenance) Ltd,22/08/2023,30109960,891.2,0,Asset Maintenance,Mechanical Engineers,Invoice,BACS,No,16/05/2023 00:00,2023,5,OP/I285192,A8121,Bellfields Youth and Community Centre,B1001,Asset Maintenance,CCD00,Community Centres and Public Halls,CCD,Recreation & Sport,CC,Cultural & Related Services,C,"Cultural, Environmental & Planning Services"
GUILDFORD BOROUGH COUNCIL,Assets and Property,118990,B T U (Installation & Maintenance) Ltd,22/08/2023,30109960,1333.46,0,Asset Maintenance,Mechanical Engineers,Invoice,BACS,No,16/05/2023 00:00,2023,5,OP/I285192,G7515,Old Millmead House,B1001,Asset Maintenance,DBX45,Property Services,DBX,Support Service and Management Costs,DB,Children's Social Care,E,Childrens and Education Services
GUILDFORD BOROUGH COUNCIL,Community Services,118990,B T U (Installation & Maintenance) Ltd,22/08/2023,30109960,4010.6,0,Asset Maintenance,Mechanical Engineers,Invoice,BACS,No,16/05/2023 00:00,2023,5,OP/I285192,C8100,Community Hubs,B1001,Asset Maintenance,KGU00,Supporting People - Strategy,KGU,Supporting People,KG,Housing General Fund,K,Housing Services
GUILDFORD BOROUGH COUNCIL,HRA Service Delivery,118990,B T U (Installation & Maintenance) Ltd,22/08/2023,30109962,668,0,Asset Maintenance,Mechanical Engineers,Invoice,BACS,No,07/06/2023 00:00,2023,5,OP/I285414,M5107,Repairs-Shelt-Cyclical (BHS),B1001,Asset Maintenance,W3A05,Current Service Costs - Housing Services,W3A,Current Service Costs adjustment,W3,Current Service Costs,W,Other Operating Income and Expenditure
GUILDFORD BOROUGH COUNCIL,Community Services,118990,B T U (Installation & Maintenance) Ltd,10/08/2023,30109060,1056.65,0,Asset Maintenance,Mechanical Engineers,Invoice,BACS,No,19/04/2023 00:00,2023,5,OP/I284907,C8100,Community Hubs,B1001,Asset Maintenance,KGU00,Supporting People - Strategy,KGU,Supporting People,KG,Housing General Fund,K,Housing Services
GUILDFORD BOROUGH COUNCIL,Assets and Property,118990,B T U (Installation & Maintenance) Ltd,10/08/2023,30109066,2900.3,0,Asset Maintenance,Mechanical Engineers,Invoice,BACS,No,20/04/2023 00:00,2023,5,OP/I284929,G7515,Old Millmead House,B1001,Asset Maintenance,DBX45,Property Services,DBX,Support Service and Management Costs,DB,Children's Social Care,E,Childrens and Education Services
GUILDFORD BOROUGH COUNCIL,HRA Service Delivery,118990,B T U (Installation & Maintenance) Ltd,10/08/2023,30109070,1711.2,0,Asset Maintenance,Mechanical Engineers,Invoice,BACS,No,20/04/2023 00:00,2023,5,OP/I284934,M2811,Mount Court 1 - 40 (40),B1001,Asset Maintenance,W3A05,Current Service Costs - Housing Services,W3A,Current Service Costs adjustment,W3,Current Service Costs,W,Other Operating Income and Expenditure
GUILDFORD BOROUGH COUNCIL,Community Services,118990,B T U (Installation & Maintenance) Ltd,10/08/2023,30109073,1425.99,0,Asset Maintenance,Mechanical Engineers,Invoice,BACS,No,20/04/2023 00:00,2023,5,OP/I284941,C8100,Community Hubs,B1001,Asset Maintenance,KGU00,Supporting People - Strategy,KGU,Supporting People,KG,Housing General Fund,K,Housing Services
GUILDFORD BOROUGH COUNCIL,HRA Service Delivery,118990,B T U (Installation & Maintenance) Ltd,10/08/2023,30109077,4764.55,0,Asset Maintenance,Mechanical Engineers,Invoice,BACS,No,01/06/2023 00:00,2023,5,OP/I285343,M5107,Repairs-Shelt-Cyclical (BHS),B1001,Asset Maintenance,W3A05,Current Service Costs - Housing Services,W3A,Current Service Costs adjustment,W3,Current Service Costs,W,Other Operating Income and Expenditure
GUILDFORD BOROUGH COUNCIL,HRA Service Delivery,118990,B T U (Installation & Maintenance) Ltd,10/08/2023,30109078,1273.88,0,Asset Maintenance,Mechanical Engineers,Invoice,BACS,No,01/06/2023 00:00,2023,5,OP/I285344,M5114,Repairs-Cyclical (BHS),B1001,Asset Maintenance,W3A05,Current Service Costs - Housing Services,W3A,Current Service Costs adjustment,W3,Current Service Costs,W,Other Operating Income and Expenditure
GUILDFORD BOROUGH COUNCIL,HRA Service Delivery,118990,B T U (Installation & Maintenance) Ltd,10/08/2023,30109082,6179.5,0,Asset Maintenance,Mechanical Engineers,Invoice,BACS,No,01/06/2023 00:00,2023,5,OP/I285348,M5107,Repairs-Shelt-Cyclical (BHS),B1001,Asset Maintenance,W3A05,Current Service Costs - Housing Services,W3A,Current Service Costs adjustment,W3,Current Service Costs,W,Other Operating Income and Expenditure
GUILDFORD BOROUGH COUNCIL,Environmental Services,118990,B T U (Installation & Maintenance) Ltd,10/08/2023,30109071,1461.65,0,Asset Maintenance,Mechanical Engineers,Invoice,BACS,No,20/04/2023 00:00,2023,5,OP/I284935,A1130,Castle Grounds,B1001,Asset Maintenance,CCE00,Community Parks & Open Spaces,CCE,Open Spaces,CC,Cultural & Related Services,C,"Cultural, Environmental & Planning Services"
GUILDFORD BOROUGH COUNCIL,Commercial Services,118990,B T U (Installation & Maintenance) Ltd,10/08/2023,30109074,1184.1,0,Asset Maintenance,Mechanical Engineers,Invoice,BACS,No,18/05/2023 00:00,2023,5,OP/I285217,F3311,Guildhall,B1001,Asset Maintenance,CCA30,Museums & Galleries,CCA,Culture & Heritage,CC,Cultural & Related Services,C,"Cultural, Environmental & Planning Services"
GUILDFORD BOROUGH COUNCIL,Environmental Services,118990,B T U (Installation & Maintenance) Ltd,10/08/2023,30109075,1027.35,0,Asset Maintenance,Mechanical Engineers,Invoice,BACS,No,18/05/2023 00:00,2023,5,OP/I285219,A1500,Crematorium,B1001,Asset Maintenance,CEA10,Crematoria,CEA,"Cemetery, Cremation and Mortuary Services",CE,Environmental & Regulatory Services,C,"Cultural, Environmental & Planning Services"
GUILDFORD BOROUGH COUNCIL,HRA Service Delivery,118990,B T U (Installation & Maintenance) Ltd,10/08/2023,30109089,5192.07,0,Asset Maintenance,Mechanical Engineers,Invoice,BACS,No,01/06/2023 00:00,2023,5,OP/I285355,M5110,Repairs-Hostels-Cyclical (BHS),B1001,Asset Maintenance,W3A05,Current Service Costs - Housing Services,W3A,Current Service Costs adjustment,W3,Current Service Costs,W,Other Operating Income and Expenditure
GUILDFORD BOROUGH COUNCIL,HRA Service Delivery,118990,B T U (Installation & Maintenance) Ltd,10/08/2023,30109085,1265.48,0,Asset Maintenance,Mechanical Engineers,Invoice,BACS,No,01/06/2023 00:00,2023,5,OP/I285351,M5110,Repairs-Hostels-Cyclical (BHS),B1001,Asset Maintenance,W3A05,Current Service Costs - Housing Services,W3A,Current Service Costs adjustment,W3,Current Service Costs,W,Other Operating Income and Expenditure
GUILDFORD BOROUGH COUNCIL,HRA Service Delivery,118990,B T U (Installation & Maintenance) Ltd,10/08/2023,30109086,3349.92,0,Asset Maintenance,Mechanical Engineers,Invoice,BACS,No,01/06/2023 00:00,2023,5,OP/I285352,M5110,Repairs-Hostels-Cyclical (BHS),B1001,Asset Maintenance,W3A05,Current Service Costs - Housing Services,W3A,Current Service Costs adjustment,W3,Current Service Costs,W,Other Operating Income and Expenditure
GUILDFORD BOROUGH COUNCIL,HRA Service Delivery,118990,B T U (Installation & Maintenance) Ltd,10/08/2023,30109087,1650.93,0,Asset Maintenance,Mechanical Engineers,Invoice,BACS,No,01/06/2023 00:00,2023,5,OP/I285353,M5110,Repairs-Hostels-Cyclical (BHS),B1001,Asset Maintenance,W3A05,Current Service Costs - Housing Services,W3A,Current Service Costs adjustment,W3,Current Service Costs,W,Other Operating Income and Expenditure
GUILDFORD BOROUGH COUNCIL,Environmental Services,118990,B T U (Installation & Maintenance) Ltd,31/08/2023,30110502,375,0,Asset Maintenance,Mechanical Engineers,Invoice,BACS,No,31/03/2023 00:00,2023,5,OP/I284764,A1500,Crematorium,B1001,Asset Maintenance,CEA10,Crematoria,CEA,"Cemetery, Cremation and Mortuary Services",CE,Environmental & Regulatory Services,C,"Cultural, Environmental & Planning Services"
GUILDFORD BOROUGH COUNCIL,HRA Service Delivery,118990,B T U (Installation & Maintenance) Ltd,31/08/2023,30110503,351.44,0,Asset Maintenance,Mechanical Engineers,Invoice,BACS,No,07/06/2023 00:00,2023,5,OP/I285425,M5106,Repairs-Shelt-Responsive (BHS),B1001,Asset Maintenance,W3A05,Current Service Costs - Housing Services,W3A,Current Service Costs adjustment,W3,Current Service Costs,W,Other Operating Income and Expenditure
GUILDFORD BOROUGH COUNCIL,HRA Service Delivery,118990,B T U (Installation & Maintenance) Ltd,31/08/2023,30110501,634.54,0,Asset Maintenance,Mechanical Engineers,Invoice,BACS,No,09/03/2023 00:00,2023,5,OP/I284360,M5106,Repairs-Shelt-Responsive (BHS),B1001,Asset Maintenance,W3A05,Current Service Costs - Housing Services,W3A,Current Service Costs adjustment,W3,Current Service Costs,W,Other Operating Income and Expenditure
GUILDFORD BOROUGH COUNCIL,HRA Service Delivery,118990,B T U (Installation & Maintenance) Ltd,31/08/2023,30110501,410.04,0,Asset Maintenance,Mechanical Engineers,Invoice,BACS,No,09/03/2023 00:00,2023,5,OP/I284360,M5106,Repairs-Shelt-Responsive (BHS),B1001,Asset Maintenance,W3A05,Current Service Costs - Housing Services,W3A,Current Service Costs adjustment,W3,Current Service Costs,W,Other Operating Income and Expenditure
GUILDFORD BOROUGH COUNCIL,HRA Service Delivery,118990,B T U (Installation & Maintenance) Ltd,19/09/2023,30110504,526.35,0,Asset Maintenance,Mechanical Engineers,Invoice,BACS,No,24/08/2023 00:00,2023,5,OP/I286472,M5106,Repairs-Shelt-Responsive (BHS),B1001,Asset Maintenance,W3A05,Current Service Costs - Housing Services,W3A,Current Service Costs adjustment,W3,Current Service Costs,W,Other Operating Income and Expenditure
GUILDFORD BOROUGH COUNCIL,HRA Service Delivery,118990,B T U (Installation & Maintenance) Ltd,19/09/2023,30110504,329.2,0,Asset Maintenance,Mechanical Engineers,Invoice,BACS,No,24/08/2023 00:00,2023,5,OP/I286472,M5106,Repairs-Shelt-Responsive (BHS),B1001,Asset Maintenance,W3A05,Current Service Costs - Housing Services,W3A,Current Service Costs adjustment,W3,Current Service Costs,W,Other Operating Income and Expenditure
GUILDFORD BOROUGH COUNCIL,HRA Service Delivery,118990,B T U (Installation & Maintenance) Ltd,19/09/2023,30110504,904.03,0,Asset Maintenance,Mechanical Engineers,Invoice,BACS,No,24/08/2023 00:00,2023,5,OP/I286472,M5106,Repairs-Shelt-Responsive (BHS),B1001,Asset Maintenance,W3A05,Current Service Costs - Housing Services,W3A,Current Service Costs adjustment,W3,Current Service Costs,W,Other Operating Income and Expenditure
GUILDFORD BOROUGH COUNCIL,HRA Service Delivery,118990,B T U (Installation & Maintenance) Ltd,19/09/2023,30110504,2139.79,0,Asset Maintenance,Mechanical Engineers,Invoice,BACS,No,24/08/2023 00:00,2023,5,OP/I286472,M5106,Repairs-Shelt-Responsive (BHS),B1001,Asset Maintenance,W3A05,Current Service Costs - Housing Services,W3A,Current Service Costs adjustment,W3,Current Service Costs,W,Other Operating Income and Expenditure
GUILDFORD BOROUGH COUNCIL,HRA Service Delivery,118990,B T U (Installation & Maintenance) Ltd,19/09/2023,30110504,367.74,0,Asset Maintenance,Mechanical Engineers,Invoice,BACS,No,24/08/2023 00:00,2023,5,OP/I286472,M5106,Repairs-Shelt-Responsive (BHS),B1001,Asset Maintenance,W3A05,Current Service Costs - Housing Services,W3A,Current Service Costs adjustment,W3,Current Service Costs,W,Other Operating Income and Expenditure
GUILDFORD BOROUGH COUNCIL,Environmental Services,118990,B T U (Installation & Maintenance) Ltd,19/09/2023,30110504,1328.96,0,Asset Maintenance,Mechanical Engineers,Invoice,BACS,No,24/08/2023 00:00,2023,5,OP/I286472,A1500,Crematorium,B1001,Asset Maintenance,CEA10,Crematoria,CEA,"Cemetery, Cremation and Mortuary Services",CE,Environmental & Regulatory Services,C,"Cultural, Environmental & Planning Services"
GUILDFORD BOROUGH COUNCIL,Community Services,118990,B T U (Installation & Maintenance) Ltd,19/09/2023,30110505,475.55,0,Asset Maintenance,Mechanical Engineers,Invoice,BACS,No,24/08/2023 00:00,2023,5,OP/I286475,A8161,Beverley Hall Community Centre,B1001,Asset Maintenance,CCD00,Community Centres and Public Halls,CCD,Recreation & Sport,CC,Cultural & Related Services,C,"Cultural, Environmental & Planning Services"
GUILDFORD BOROUGH COUNCIL,Environmental Services,118990,B T U (Installation & Maintenance) Ltd,19/09/2023,30110506,562.94,0,Asset Maintenance,Mechanical Engineers,Invoice,BACS,No,24/08/2023 00:00,2023,5,OP/I286476,K6500,Public Conveniences,B1001,Asset Maintenance,CEE80,Public Conveniences,CEE,Environmental Health (Regulatory Services),CE,Environmental & Regulatory Services,C,"Cultural, Environmental & Planning Services"
GUILDFORD BOROUGH COUNCIL,HRA Service Delivery,118990,B T U (Installation & Maintenance) Ltd,19/09/2023,30110506,363.11,0,Asset Maintenance,Mechanical Engineers,Invoice,BACS,No,24/08/2023 00:00,2023,5,OP/I286476,M5106,Repairs-Shelt-Responsive (BHS),B1001,Asset Maintenance,W3A05,Current Service Costs - Housing Services,W3A,Current Service Costs adjustment,W3,Current Service Costs,W,Other Operating Income and Expenditure
GUILDFORD BOROUGH COUNCIL,HRA Service Delivery,118990,B T U (Installation & Maintenance) Ltd,31/08/2023,30110503,314.27,0,Asset Maintenance,Mechanical Engineers,Invoice,BACS,No,07/06/2023 00:00,2023,5,OP/I285425,M2679,Dunmore 21-35 Odd (8),B1001,Asset Maintenance,W3A05,Current Service Costs - Housing Services,W3A,Current Service Costs adjustment,W3,Current Service Costs,W,Other Operating Income and Expenditure
GUILDFORD BOROUGH COUNCIL,HRA Service Delivery,118990,B T U (Installation & Maintenance) Ltd,19/09/2023,30110504,900.52,0,Asset Maintenance,Mechanical Engineers,Invoice,BACS,No,24/08/2023 00:00,2023,5,OP/I286472,M5106,Repairs-Shelt-Responsive (BHS),B1001,Asset Maintenance,W3A05,Current Service Costs - Housing Services,W3A,Current Service Costs adjustment,W3,Current Service Costs,W,Other Operating Income and Expenditure
GUILDFORD BOROUGH COUNCIL,Environmental Services,118990,B T U (Installation & Maintenance) Ltd,19/09/2023,30110504,490.34,0,Asset Maintenance,Mechanical Engineers,Invoice,BACS,No,24/08/2023 00:00,2023,5,OP/I286472,B4452,Woking Road Depot,B1001,Asset Maintenance,XXX99,*** UNASSIGNED ***,WCC,CEC Recharges,WC,CEC Recharges,A,Central Services
GUILDFORD BOROUGH COUNCIL,HRA Service Delivery,118990,B T U (Installation & Maintenance) Ltd,19/09/2023,30110505,390.18,0,Asset Maintenance,Mechanical Engineers,Invoice,BACS,No,24/08/2023 00:00,2023,5,OP/I286475,M5106,Repairs-Shelt-Responsive (BHS),B1001,Asset Maintenance,W3A05,Current Service Costs - Housing Services,W3A,Current Service Costs adjustment,W3,Current Service Costs,W,Other Operating Income and Expenditure
GUILDFORD BOROUGH COUNCIL,Commercial Services,118990,B T U (Installation & Maintenance) Ltd,19/09/2023,30110506,310.5,0,Asset Maintenance,Mechanical Engineers,Invoice,BACS,No,24/08/2023 00:00,2023,5,OP/I286476,F3311,Guildhall,B1001,Asset Maintenance,CCA30,Museums & Galleries,CCA,Culture & Heritage,CC,Cultural & Related Services,C,"Cultural, Environmental & Planning Services"
GUILDFORD BOROUGH COUNCIL,HRA Service Delivery,118990,B T U (Installation & Maintenance) Ltd,19/09/2023,30110506,1862.8,0,Asset Maintenance,Mechanical Engineers,Invoice,BACS,No,24/08/2023 00:00,2023,5,OP/I286476,M5106,Repairs-Shelt-Responsive (BHS),B1001,Asset Maintenance,W3A05,Current Service Costs - Housing Services,W3A,Current Service Costs adjustment,W3,Current Service Costs,W,Other Operating Income and Expenditure
GUILDFORD BOROUGH COUNCIL,HRA Service Delivery,118990,B T U (Installation & Maintenance) Ltd,10/08/2023,30109088,1438.22,0,Asset Maintenance,Mechanical Engineers,Invoice,BACS,No,01/06/2023 00:00,2023,5,OP/I285354,M5114,Repairs-Cyclical (BHS),B1001,Asset Maintenance,W3A05,Current Service Costs - Housing Services,W3A,Current Service Costs adjustment,W3,Current Service Costs,W,Other Operating Income and Expenditure
GUILDFORD BOROUGH COUNCIL,Assets and Property,118990,B T U (Installation & Maintenance) Ltd,10/08/2023,30109090,4900,0,Asset Maintenance,Mechanical Engineers,Invoice,BACS,No,01/06/2023 00:00,2023,5,OP/I285356,G7515,Old Millmead House,B1001,Asset Maintenance,DBX45,Property Services,DBX,Support Service and Management Costs,DB,Children's Social Care,E,Childrens and Education Services
GUILDFORD BOROUGH COUNCIL,Community Services,118990,B T U (Installation & Maintenance) Ltd,10/08/2023,30109092,1127,0,Asset Maintenance,Mechanical Engineers,Invoice,BACS,No,01/06/2023 00:00,2023,5,OP/I285358,C8100,Community Hubs,B1001,Asset Maintenance,KGU00,Supporting People - Strategy,KGU,Supporting People,KG,Housing General Fund,K,Housing Services
GUILDFORD BOROUGH COUNCIL,Assets and Property,118990,B T U (Installation & Maintenance) Ltd,10/08/2023,30109093,1109.94,0,Asset Maintenance,Mechanical Engineers,Invoice,BACS,No,07/06/2023 00:00,2023,5,OP/I285418,G7511,Millmead House,B1001,Asset Maintenance,DBX70,Other Management Costs,DBX,Support Service and Management Costs,DB,Children's Social Care,E,Childrens and Education Services
GUILDFORD BOROUGH COUNCIL,HRA Service Delivery,118990,B T U (Installation & Maintenance) Ltd,31/08/2023,30110501,277,0,Asset Maintenance,Mechanical Engineers,Invoice,BACS,No,09/03/2023 00:00,2023,5,OP/I284360,M5113,Repairs-Responsive (BHS),B1001,Asset Maintenance,W3A05,Current Service Costs - Housing Services,W3A,Current Service Costs adjustment,W3,Current Service Costs,W,Other Operating Income and Expenditure
GUILDFORD BOROUGH COUNCIL,Environmental Services,118990,B T U (Installation & Maintenance) Ltd,31/08/2023,30110503,345.53,0,Asset Maintenance,Mechanical Engineers,Invoice,BACS,No,07/06/2023 00:00,2023,5,OP/I285425,A1230,Sutherland Memorial Park  Pavilion,B1001,Asset Maintenance,CCE00,Community Parks & Open Spaces,CCE,Open Spaces,CC,Cultural & Related Services,C,"Cultural, Environmental & Planning Services"
GUILDFORD BOROUGH COUNCIL,Community Services,118990,B T U (Installation & Maintenance) Ltd,19/09/2023,30110504,258.77,0,Asset Maintenance,Mechanical Engineers,Invoice,BACS,No,24/08/2023 00:00,2023,5,OP/I286472,C8100,Community Hubs,B1001,Asset Maintenance,KGU00,Supporting People - Strategy,KGU,Supporting People,KG,Housing General Fund,K,Housing Services
GUILDFORD BOROUGH COUNCIL,HRA Service Delivery,118990,B T U (Installation & Maintenance) Ltd,19/09/2023,30110506,292.12,0,Asset Maintenance,Mechanical Engineers,Invoice,BACS,No,24/08/2023 00:00,2023,5,OP/I286476,M5106,Repairs-Shelt-Responsive (BHS),B1001,Asset Maintenance,W3A05,Current Service Costs - Housing Services,W3A,Current Service Costs adjustment,W3,Current Service Costs,W,Other Operating Income and Expenditure
GUILDFORD BOROUGH COUNCIL,Environmental Services,118990,B T U (Installation & Maintenance) Ltd,19/09/2023,30110507,338.02,0,Asset Maintenance,Mechanical Engineers,Invoice,BACS,No,24/08/2023 00:00,2023,5,OP/I286477,K6500,Public Conveniences,B1001,Asset Maintenance,CEE80,Public Conveniences,CEE,Environmental Health (Regulatory Services),CE,Environmental & Regulatory Services,C,"Cultural, Environmental & Planning Services"
GUILDFORD BOROUGH COUNCIL,HRA Service Delivery,118990,B T U (Installation & Maintenance) Ltd,19/09/2023,30110507,1277.78,0,Asset Maintenance,Mechanical Engineers,Invoice,BACS,No,24/08/2023 00:00,2023,5,OP/I286477,M2736,Friary House 1-61 (61),B1001,Asset Maintenance,W3A05,Current Service Costs - Housing Services,W3A,Current Service Costs adjustment,W3,Current Service Costs,W,Other Operating Income and Expenditure
GUILDFORD BOROUGH COUNCIL,HRA Service Delivery,118990,B T U (Installation & Maintenance) Ltd,19/09/2023,30110507,1064.28,0,Asset Maintenance,Mechanical Engineers,Invoice,BACS,No,24/08/2023 00:00,2023,5,OP/I286477,M5106,Repairs-Shelt-Responsive (BHS),B1001,Asset Maintenance,W3A05,Current Service Costs - Housing Services,W3A,Current Service Costs adjustment,W3,Current Service Costs,W,Other Operating Income and Expenditure
GUILDFORD BOROUGH COUNCIL,HRA Service Delivery,118990,B T U (Installation & Maintenance) Ltd,19/09/2023,30110509,313.79,0,Asset Maintenance,Mechanical Engineers,Invoice,BACS,No,24/08/2023 00:00,2023,5,OP/I286479,M5106,Repairs-Shelt-Responsive (BHS),B1001,Asset Maintenance,W3A05,Current Service Costs - Housing Services,W3A,Current Service Costs adjustment,W3,Current Service Costs,W,Other Operating Income and Expenditure
GUILDFORD BOROUGH COUNCIL,HRA Service Delivery,118990,B T U (Installation & Maintenance) Ltd,19/09/2023,30110509,360.02,0,Asset Maintenance,Mechanical Engineers,Invoice,BACS,No,24/08/2023 00:00,2023,5,OP/I286479,M5106,Repairs-Shelt-Responsive (BHS),B1001,Asset Maintenance,W3A05,Current Service Costs - Housing Services,W3A,Current Service Costs adjustment,W3,Current Service Costs,W,Other Operating Income and Expenditure
GUILDFORD BOROUGH COUNCIL,HRA Service Delivery,118990,B T U (Installation & Maintenance) Ltd,19/09/2023,30110509,256.79,0,Asset Maintenance,Mechanical Engineers,Invoice,BACS,No,24/08/2023 00:00,2023,5,OP/I286479,M5106,Repairs-Shelt-Responsive (BHS),B1001,Asset Maintenance,W3A05,Current Service Costs - Housing Services,W3A,Current Service Costs adjustment,W3,Current Service Costs,W,Other Operating Income and Expenditure
GUILDFORD BOROUGH COUNCIL,Commercial Services,118990,B T U (Installation & Maintenance) Ltd,10/08/2023,30109091,1081.26,0,Asset Maintenance,Mechanical Engineers,Invoice,BACS,No,01/06/2023 00:00,2023,5,OP/I285357,B2277,Castle Mscp,B1001,Asset Maintenance,HTP10,Off-Street Parking,HTP,Parking Services,HT,"Highways, Roads and Transport Services",H,"Highways, Roads and Transport Services"
GUILDFORD BOROUGH COUNCIL,Commercial Services,118990,B T U (Installation & Maintenance) Ltd,10/08/2023,30109094,7143.8,0,Asset Maintenance,Mechanical Engineers,Invoice,BACS,No,07/06/2023 00:00,2023,5,OP/I285424,B2277,Castle Mscp,B1001,Asset Maintenance,HTP10,Off-Street Parking,HTP,Parking Services,HT,"Highways, Roads and Transport Services",H,"Highways, Roads and Transport Services"
GUILDFORD BOROUGH COUNCIL,HRA Service Delivery,118990,B T U (Installation & Maintenance) Ltd,31/08/2023,30110501,258.75,0,Asset Maintenance,Mechanical Engineers,Invoice,BACS,No,09/03/2023 00:00,2023,5,OP/I284360,M5114,Repairs-Cyclical (BHS),B1001,Asset Maintenance,W3A05,Current Service Costs - Housing Services,W3A,Current Service Costs adjustment,W3,Current Service Costs,W,Other Operating Income and Expenditure
GUILDFORD BOROUGH COUNCIL,HRA Service Delivery,118990,B T U (Installation & Maintenance) Ltd,19/09/2023,30110509,481.75,0,Asset Maintenance,Mechanical Engineers,Invoice,BACS,No,24/08/2023 00:00,2023,5,OP/I286479,M5106,Repairs-Shelt-Responsive (BHS),B1001,Asset Maintenance,W3A05,Current Service Costs - Housing Services,W3A,Current Service Costs adjustment,W3,Current Service Costs,W,Other Operating Income and Expenditure
GUILDFORD BOROUGH COUNCIL,Environmental Services,118990,B T U (Installation & Maintenance) Ltd,19/09/2023,30110510,287.08,0,Asset Maintenance,Mechanical Engineers,Invoice,BACS,No,24/08/2023 00:00,2023,5,OP/I286480,B4452,Woking Road Depot,B1001,Asset Maintenance,XXX99,*** UNASSIGNED ***,WCC,CEC Recharges,WC,CEC Recharges,A,Central Services
GUILDFORD BOROUGH COUNCIL,HRA Service Delivery,118990,B T U (Installation & Maintenance) Ltd,19/09/2023,30110510,862.39,0,Asset Maintenance,Mechanical Engineers,Invoice,BACS,No,24/08/2023 00:00,2023,5,OP/I286480,M5106,Repairs-Shelt-Responsive (BHS),B1001,Asset Maintenance,W3A05,Current Service Costs - Housing Services,W3A,Current Service Costs adjustment,W3,Current Service Costs,W,Other Operating Income and Expenditure
GUILDFORD BOROUGH COUNCIL,HRA Service Delivery,118990,B T U (Installation & Maintenance) Ltd,19/09/2023,30110510,371.92,0,Asset Maintenance,Mechanical Engineers,Invoice,BACS,No,24/08/2023 00:00,2023,5,OP/I286480,M2762,Homestall 37-51   (8),B1001,Asset Maintenance,W3A05,Current Service Costs - Housing Services,W3A,Current Service Costs adjustment,W3,Current Service Costs,W,Other Operating Income and Expenditure
GUILDFORD BOROUGH COUNCIL,HRA Service Delivery,118990,B T U (Installation & Maintenance) Ltd,19/09/2023,30110510,818.84,0,Asset Maintenance,Mechanical Engineers,Invoice,BACS,No,24/08/2023 00:00,2023,5,OP/I286480,M5106,Repairs-Shelt-Responsive (BHS),B1001,Asset Maintenance,W3A05,Current Service Costs - Housing Services,W3A,Current Service Costs adjustment,W3,Current Service Costs,W,Other Operating Income and Expenditure
GUILDFORD BOROUGH COUNCIL,HRA Service Delivery,118990,B T U (Installation & Maintenance) Ltd,19/09/2023,30110511,1352.95,0,Asset Maintenance,Mechanical Engineers,Invoice,BACS,No,24/08/2023 00:00,2023,5,OP/I286481,M5106,Repairs-Shelt-Responsive (BHS),B1001,Asset Maintenance,W3A05,Current Service Costs - Housing Services,W3A,Current Service Costs adjustment,W3,Current Service Costs,W,Other Operating Income and Expenditure
GUILDFORD BOROUGH COUNCIL,Environmental Services,118990,B T U (Installation & Maintenance) Ltd,19/09/2023,30110512,1143.41,0,Asset Maintenance,Mechanical Engineers,Invoice,BACS,No,24/08/2023 00:00,2023,5,OP/I286482,A1500,Crematorium,B1001,Asset Maintenance,CEA10,Crematoria,CEA,"Cemetery, Cremation and Mortuary Services",CE,Environmental & Regulatory Services,C,"Cultural, Environmental & Planning Services"
GUILDFORD BOROUGH COUNCIL,HRA Service Delivery,118990,B T U (Installation & Maintenance) Ltd,19/09/2023,30110506,353.7,0,Asset Maintenance,Mechanical Engineers,Invoice,BACS,No,24/08/2023 00:00,2023,5,OP/I286476,M5106,Repairs-Shelt-Responsive (BHS),B1001,Asset Maintenance,W3A05,Current Service Costs - Housing Services,W3A,Current Service Costs adjustment,W3,Current Service Costs,W,Other Operating Income and Expenditure
GUILDFORD BOROUGH COUNCIL,HRA Service Delivery,118990,B T U (Installation & Maintenance) Ltd,19/09/2023,30110506,406.93,0,Asset Maintenance,Mechanical Engineers,Invoice,BACS,No,24/08/2023 00:00,2023,5,OP/I286476,M5106,Repairs-Shelt-Responsive (BHS),B1001,Asset Maintenance,W3A05,Current Service Costs - Housing Services,W3A,Current Service Costs adjustment,W3,Current Service Costs,W,Other Operating Income and Expenditure
GUILDFORD BOROUGH COUNCIL,Commercial Services,118990,B T U (Installation & Maintenance) Ltd,19/09/2023,30110507,684.25,0,Asset Maintenance,Mechanical Engineers,Invoice,BACS,No,24/08/2023 00:00,2023,5,OP/I286477,B2244,Farnham Road Mscp,B1001,Asset Maintenance,HTP10,Off-Street Parking,HTP,Parking Services,HT,"Highways, Roads and Transport Services",H,"Highways, Roads and Transport Services"
GUILDFORD BOROUGH COUNCIL,Commercial Services,118990,B T U (Installation & Maintenance) Ltd,19/09/2023,30110507,1656.25,0,Asset Maintenance,Mechanical Engineers,Invoice,BACS,No,24/08/2023 00:00,2023,5,OP/I286477,F3311,Guildhall,B1001,Asset Maintenance,CCA30,Museums & Galleries,CCA,Culture & Heritage,CC,Cultural & Related Services,C,"Cultural, Environmental & Planning Services"
GUILDFORD BOROUGH COUNCIL,HRA Service Delivery,118990,B T U (Installation & Maintenance) Ltd,19/09/2023,30110507,406.46,0,Asset Maintenance,Mechanical Engineers,Invoice,BACS,No,24/08/2023 00:00,2023,5,OP/I286477,M5106,Repairs-Shelt-Responsive (BHS),B1001,Asset Maintenance,W3A05,Current Service Costs - Housing Services,W3A,Current Service Costs adjustment,W3,Current Service Costs,W,Other Operating Income and Expenditure
GUILDFORD BOROUGH COUNCIL,HRA Service Delivery,118990,B T U (Installation & Maintenance) Ltd,19/09/2023,30110507,561.35,0,Asset Maintenance,Mechanical Engineers,Invoice,BACS,No,24/08/2023 00:00,2023,5,OP/I286477,M5106,Repairs-Shelt-Responsive (BHS),B1001,Asset Maintenance,W3A05,Current Service Costs - Housing Services,W3A,Current Service Costs adjustment,W3,Current Service Costs,W,Other Operating Income and Expenditure
GUILDFORD BOROUGH COUNCIL,HRA Service Delivery,118990,B T U (Installation & Maintenance) Ltd,19/09/2023,30110507,296.52,0,Asset Maintenance,Mechanical Engineers,Invoice,BACS,No,24/08/2023 00:00,2023,5,OP/I286477,M5106,Repairs-Shelt-Responsive (BHS),B1001,Asset Maintenance,W3A05,Current Service Costs - Housing Services,W3A,Current Service Costs adjustment,W3,Current Service Costs,W,Other Operating Income and Expenditure
GUILDFORD BOROUGH COUNCIL,Environmental Services,118990,B T U (Installation & Maintenance) Ltd,19/09/2023,30110508,342.57,0,Asset Maintenance,Mechanical Engineers,Invoice,BACS,No,24/08/2023 00:00,2023,5,OP/I286478,K6500,Public Conveniences,B1001,Asset Maintenance,CEE80,Public Conveniences,CEE,Environmental Health (Regulatory Services),CE,Environmental & Regulatory Services,C,"Cultural, Environmental & Planning Services"
GUILDFORD BOROUGH COUNCIL,HRA Service Delivery,118990,B T U (Installation & Maintenance) Ltd,19/09/2023,30110509,623.62,0,Asset Maintenance,Mechanical Engineers,Invoice,BACS,No,24/08/2023 00:00,2023,5,OP/I286479,M5106,Repairs-Shelt-Responsive (BHS),B1001,Asset Maintenance,W3A05,Current Service Costs - Housing Services,W3A,Current Service Costs adjustment,W3,Current Service Costs,W,Other Operating Income and Expenditure
GUILDFORD BOROUGH COUNCIL,HRA Service Delivery,118990,B T U (Installation & Maintenance) Ltd,19/09/2023,30110509,285.17,0,Asset Maintenance,Mechanical Engineers,Invoice,BACS,No,24/08/2023 00:00,2023,5,OP/I286479,M5106,Repairs-Shelt-Responsive (BHS),B1001,Asset Maintenance,W3A05,Current Service Costs - Housing Services,W3A,Current Service Costs adjustment,W3,Current Service Costs,W,Other Operating Income and Expenditure
GUILDFORD BOROUGH COUNCIL,HRA Service Delivery,118990,B T U (Installation & Maintenance) Ltd,19/09/2023,30110510,495.26,0,Asset Maintenance,Mechanical Engineers,Invoice,BACS,No,24/08/2023 00:00,2023,5,OP/I286480,M5106,Repairs-Shelt-Responsive (BHS),B1001,Asset Maintenance,W3A05,Current Service Costs - Housing Services,W3A,Current Service Costs adjustment,W3,Current Service Costs,W,Other Operating Income and Expenditure
GUILDFORD BOROUGH COUNCIL,HRA Service Delivery,118990,B T U (Installation & Maintenance) Ltd,19/09/2023,30110510,357.94,0,Asset Maintenance,Mechanical Engineers,Invoice,BACS,No,24/08/2023 00:00,2023,5,OP/I286480,M5106,Repairs-Shelt-Responsive (BHS),B1001,Asset Maintenance,W3A05,Current Service Costs - Housing Services,W3A,Current Service Costs adjustment,W3,Current Service Costs,W,Other Operating Income and Expenditure
GUILDFORD BOROUGH COUNCIL,HRA Service Delivery,118990,B T U (Installation & Maintenance) Ltd,19/09/2023,30110510,304.42,0,Asset Maintenance,Mechanical Engineers,Invoice,BACS,No,24/08/2023 00:00,2023,5,OP/I286480,M5106,Repairs-Shelt-Responsive (BHS),B1001,Asset Maintenance,W3A05,Current Service Costs - Housing Services,W3A,Current Service Costs adjustment,W3,Current Service Costs,W,Other Operating Income and Expenditure
GUILDFORD BOROUGH COUNCIL,Environmental Services,118990,B T U (Installation & Maintenance) Ltd,19/09/2023,30110511,554.36,0,Asset Maintenance,Mechanical Engineers,Invoice,BACS,No,24/08/2023 00:00,2023,5,OP/I286481,A1250,Stoke Park,B1001,Asset Maintenance,CCE00,Community Parks & Open Spaces,CCE,Open Spaces,CC,Cultural & Related Services,C,"Cultural, Environmental & Planning Services"
GUILDFORD BOROUGH COUNCIL,HRA Service Delivery,118990,B T U (Installation & Maintenance) Ltd,19/09/2023,30110511,278.7,0,Asset Maintenance,Mechanical Engineers,Invoice,BACS,No,24/08/2023 00:00,2023,5,OP/I286481,M5106,Repairs-Shelt-Responsive (BHS),B1001,Asset Maintenance,W3A05,Current Service Costs - Housing Services,W3A,Current Service Costs adjustment,W3,Current Service Costs,W,Other Operating Income and Expenditure
GUILDFORD BOROUGH COUNCIL,HRA Service Delivery,118990,B T U (Installation & Maintenance) Ltd,19/09/2023,30110511,486.28,0,Asset Maintenance,Mechanical Engineers,Invoice,BACS,No,24/08/2023 00:00,2023,5,OP/I286481,M5106,Repairs-Shelt-Responsive (BHS),B1001,Asset Maintenance,W3A05,Current Service Costs - Housing Services,W3A,Current Service Costs adjustment,W3,Current Service Costs,W,Other Operating Income and Expenditure
GUILDFORD BOROUGH COUNCIL,Environmental Services,118990,B T U (Installation & Maintenance) Ltd,19/09/2023,30110512,291.35,0,Asset Maintenance,Mechanical Engineers,Invoice,BACS,No,24/08/2023 00:00,2023,5,OP/I286482,A1250,Stoke Park,B1001,Asset Maintenance,CCE00,Community Parks & Open Spaces,CCE,Open Spaces,CC,Cultural & Related Services,C,"Cultural, Environmental & Planning Services"
GUILDFORD BOROUGH COUNCIL,HRA Service Delivery,118990,B T U (Installation & Maintenance) Ltd,19/09/2023,30110512,341.02,0,Asset Maintenance,Mechanical Engineers,Invoice,BACS,No,24/08/2023 00:00,2023,5,OP/I286482,M5106,Repairs-Shelt-Responsive (BHS),B1001,Asset Maintenance,W3A05,Current Service Costs - Housing Services,W3A,Current Service Costs adjustment,W3,Current Service Costs,W,Other Operating Income and Expenditure
GUILDFORD BOROUGH COUNCIL,HRA Service Delivery,118990,B T U (Installation & Maintenance) Ltd,31/08/2023,30110501,584,0,Asset Maintenance,Mechanical Engineers,Invoice,BACS,No,09/03/2023 00:00,2023,5,OP/I284360,M5107,Repairs-Shelt-Cyclical (BHS),B1001,Asset Maintenance,W3A05,Current Service Costs - Housing Services,W3A,Current Service Costs adjustment,W3,Current Service Costs,W,Other Operating Income and Expenditure
GUILDFORD BOROUGH COUNCIL,Community Services,118990,B T U (Installation & Maintenance) Ltd,31/08/2023,30110503,282.47,0,Asset Maintenance,Mechanical Engineers,Invoice,BACS,No,07/06/2023 00:00,2023,5,OP/I285425,A8121,Bellfields Youth and Community Centre,B1001,Asset Maintenance,CCD00,Community Centres and Public Halls,CCD,Recreation & Sport,CC,Cultural & Related Services,C,"Cultural, Environmental & Planning Services"
GUILDFORD BOROUGH COUNCIL,HRA Service Delivery,118990,B T U (Installation & Maintenance) Ltd,31/08/2023,30110503,597.89,0,Asset Maintenance,Mechanical Engineers,Invoice,BACS,No,07/06/2023 00:00,2023,5,OP/I285425,M5113,Repairs-Responsive (BHS),B1001,Asset Maintenance,W3A05,Current Service Costs - Housing Services,W3A,Current Service Costs adjustment,W3,Current Service Costs,W,Other Operating Income and Expenditure
GUILDFORD BOROUGH COUNCIL,HRA Service Delivery,118990,B T U (Installation & Maintenance) Ltd,31/08/2023,30110503,778.01,0,Asset Maintenance,Mechanical Engineers,Invoice,BACS,No,07/06/2023 00:00,2023,5,OP/I285425,M5113,Repairs-Responsive (BHS),B1001,Asset Maintenance,W3A05,Current Service Costs - Housing Services,W3A,Current Service Costs adjustment,W3,Current Service Costs,W,Other Operating Income and Expenditure
GUILDFORD BOROUGH COUNCIL,HRA Service Delivery,118990,B T U (Installation & Maintenance) Ltd,31/08/2023,30110503,418.19,0,Asset Maintenance,Mechanical Engineers,Invoice,BACS,No,07/06/2023 00:00,2023,5,OP/I285425,M5107,Repairs-Shelt-Cyclical (BHS),B1001,Asset Maintenance,W3A05,Current Service Costs - Housing Services,W3A,Current Service Costs adjustment,W3,Current Service Costs,W,Other Operating Income and Expenditure
GUILDFORD BOROUGH COUNCIL,HRA Service Delivery,118990,B T U (Installation & Maintenance) Ltd,19/09/2023,30110505,422.57,0,Asset Maintenance,Mechanical Engineers,Invoice,BACS,No,24/08/2023 00:00,2023,5,OP/I286475,M5113,Repairs-Responsive (BHS),B1001,Asset Maintenance,W3A05,Current Service Costs - Housing Services,W3A,Current Service Costs adjustment,W3,Current Service Costs,W,Other Operating Income and Expenditure
GUILDFORD BOROUGH COUNCIL,HRA Service Delivery,118990,B T U (Installation & Maintenance) Ltd,19/09/2023,30110505,586.5,0,Asset Maintenance,Mechanical Engineers,Invoice,BACS,No,24/08/2023 00:00,2023,5,OP/I286475,M4615,Env Wks To Estate (BHS),B1001,Asset Maintenance,W3A05,Current Service Costs - Housing Services,W3A,Current Service Costs adjustment,W3,Current Service Costs,W,Other Operating Income and Expenditure
GUILDFORD BOROUGH COUNCIL,HRA Service Delivery,118990,B T U (Installation & Maintenance) Ltd,19/09/2023,30110506,559.76,0,Asset Maintenance,Mechanical Engineers,Invoice,BACS,No,24/08/2023 00:00,2023,5,OP/I286476,M5113,Repairs-Responsive (BHS),B1001,Asset Maintenance,W3A05,Current Service Costs - Housing Services,W3A,Current Service Costs adjustment,W3,Current Service Costs,W,Other Operating Income and Expenditure
GUILDFORD BOROUGH COUNCIL,HRA Service Delivery,118990,B T U (Installation & Maintenance) Ltd,19/09/2023,30110506,293.67,0,Asset Maintenance,Mechanical Engineers,Invoice,BACS,No,24/08/2023 00:00,2023,5,OP/I286476,M2629,Applegarth Av.126-140(8),B1001,Asset Maintenance,W3A05,Current Service Costs - Housing Services,W3A,Current Service Costs adjustment,W3,Current Service Costs,W,Other Operating Income and Expenditure
GUILDFORD BOROUGH COUNCIL,Assets and Property,118990,B T U (Installation & Maintenance) Ltd,19/09/2023,30110509,700.27,0,Asset Maintenance,Mechanical Engineers,Invoice,BACS,No,24/08/2023 00:00,2023,5,OP/I286479,G7515,Old Millmead House,B1001,Asset Maintenance,DBX45,Property Services,DBX,Support Service and Management Costs,DB,Children's Social Care,E,Childrens and Education Services
GUILDFORD BOROUGH COUNCIL,Commercial Services,118990,B T U (Installation & Maintenance) Ltd,19/09/2023,30110509,317.97,0,Asset Maintenance,Mechanical Engineers,Invoice,BACS,No,24/08/2023 00:00,2023,5,OP/I286479,B2219,Bedford Road Mscp,B1001,Asset Maintenance,HTP10,Off-Street Parking,HTP,Parking Services,HT,"Highways, Roads and Transport Services",H,"Highways, Roads and Transport Services"
GUILDFORD BOROUGH COUNCIL,Community Services,118990,B T U (Installation & Maintenance) Ltd,19/09/2023,30110509,766.57,0,Asset Maintenance,Mechanical Engineers,Invoice,BACS,No,24/08/2023 00:00,2023,5,OP/I286479,C8100,Community Hubs,B1001,Asset Maintenance,KGU00,Supporting People - Strategy,KGU,Supporting People,KG,Housing General Fund,K,Housing Services
GUILDFORD BOROUGH COUNCIL,Community Services,118990,B T U (Installation & Maintenance) Ltd,19/09/2023,30110509,360.5,0,Asset Maintenance,Mechanical Engineers,Invoice,BACS,No,24/08/2023 00:00,2023,5,OP/I286479,C8100,Community Hubs,B1001,Asset Maintenance,KGU00,Supporting People - Strategy,KGU,Supporting People,KG,Housing General Fund,K,Housing Services
GUILDFORD BOROUGH COUNCIL,Community Services,118990,B T U (Installation & Maintenance) Ltd,19/09/2023,30110510,832.63,0,Equipment,Mechanical Engineers,Invoice,BACS,No,24/08/2023 00:00,2023,5,OP/I286480,C8100,Community Hubs,D2001,Equipment,KGU00,Supporting People - Strategy,KGU,Supporting People,KG,Housing General Fund,K,Housing Services
GUILDFORD BOROUGH COUNCIL,Assets and Property,118990,B T U (Installation & Maintenance) Ltd,19/09/2023,30110511,536.5,0,Asset Maintenance,Mechanical Engineers,Invoice,BACS,No,24/08/2023 00:00,2023,5,OP/I286481,G7515,Old Millmead House,B1001,Asset Maintenance,DBX45,Property Services,DBX,Support Service and Management Costs,DB,Children's Social Care,E,Childrens and Education Services
GUILDFORD BOROUGH COUNCIL,Commercial Services,118990,B T U (Installation & Maintenance) Ltd,19/09/2023,30110505,839.31,0,Asset Maintenance,Mechanical Engineers,Invoice,BACS,No,24/08/2023 00:00,2023,5,OP/I286475,B2277,Castle Mscp,B1001,Asset Maintenance,HTP10,Off-Street Parking,HTP,Parking Services,HT,"Highways, Roads and Transport Services",H,"Highways, Roads and Transport Services"
GUILDFORD BOROUGH COUNCIL,Environmental Services,118990,B T U (Installation & Maintenance) Ltd,19/09/2023,30110512,427.75,0,Asset Maintenance,Mechanical Engineers,Invoice,BACS,No,24/08/2023 00:00,2023,5,OP/I286482,A1810,Burchatts Farm Barn,B1001,Asset Maintenance,CCE00,Community Parks & Open Spaces,CCE,Open Spaces,CC,Cultural & Related Services,C,"Cultural, Environmental & Planning Services"
GUILDFORD BOROUGH COUNCIL,Commercial Services,118990,B T U (Installation & Maintenance) Ltd,19/09/2023,30110512,534.11,0,Asset Maintenance,Mechanical Engineers,Invoice,BACS,No,24/08/2023 00:00,2023,5,OP/I286482,B2277,Castle Mscp,B1001,Asset Maintenance,HTP10,Off-Street Parking,HTP,Parking Services,HT,"Highways, Roads and Transport Services",H,"Highways, Roads and Transport Services"
GUILDFORD BOROUGH COUNCIL,Community Services,118990,B T U (Installation & Maintenance) Ltd,19/09/2023,30110506,311.67,0,Equipment,Mechanical Engineers,Invoice,BACS,No,24/08/2023 00:00,2023,5,OP/I286476,C8100,Community Hubs,D2001,Equipment,KGU00,Supporting People - Strategy,KGU,Supporting People,KG,Housing General Fund,K,Housing Services
GUILDFORD BOROUGH COUNCIL,HRA Service Delivery,118990,B T U (Installation & Maintenance) Ltd,19/09/2023,30110506,607.05,0,Asset Maintenance,Mechanical Engineers,Invoice,BACS,No,24/08/2023 00:00,2023,5,OP/I286476,M2652,Coppice Close 9-16 (8),B1001,Asset Maintenance,W3A05,Current Service Costs - Housing Services,W3A,Current Service Costs adjustment,W3,Current Service Costs,W,Other Operating Income and Expenditure
GUILDFORD BOROUGH COUNCIL,HRA Service Delivery,118990,B T U (Installation & Maintenance) Ltd,19/09/2023,30110507,906.05,0,Asset Maintenance,Mechanical Engineers,Invoice,BACS,No,24/08/2023 00:00,2023,5,OP/I286477,M5113,Repairs-Responsive (BHS),B1001,Asset Maintenance,W3A05,Current Service Costs - Housing Services,W3A,Current Service Costs adjustment,W3,Current Service Costs,W,Other Operating Income and Expenditure
GUILDFORD BOROUGH COUNCIL,Assets and Property,118990,B T U (Installation & Maintenance) Ltd,19/09/2023,30110509,788.22,0,Asset Maintenance,Mechanical Engineers,Invoice,BACS,No,24/08/2023 00:00,2023,5,OP/I286479,G7515,Old Millmead House,B1001,Asset Maintenance,DBX45,Property Services,DBX,Support Service and Management Costs,DB,Children's Social Care,E,Childrens and Education Services
GUILDFORD BOROUGH COUNCIL,HRA Service Delivery,118990,B T U (Installation & Maintenance) Ltd,19/09/2023,30110510,326.65,0,Asset Maintenance,Mechanical Engineers,Invoice,BACS,No,24/08/2023 00:00,2023,5,OP/I286480,M5113,Repairs-Responsive (BHS),B1001,Asset Maintenance,W3A05,Current Service Costs - Housing Services,W3A,Current Service Costs adjustment,W3,Current Service Costs,W,Other Operating Income and Expenditure
GUILDFORD BOROUGH COUNCIL,HRA Service Delivery,118990,B T U (Installation & Maintenance) Ltd,19/09/2023,30110510,495.69,0,Asset Maintenance,Mechanical Engineers,Invoice,BACS,No,24/08/2023 00:00,2023,5,OP/I286480,M5113,Repairs-Responsive (BHS),B1001,Asset Maintenance,W3A05,Current Service Costs - Housing Services,W3A,Current Service Costs adjustment,W3,Current Service Costs,W,Other Operating Income and Expenditure
GUILDFORD BOROUGH COUNCIL,Commercial Services,834160,Banner Group Limited,26/09/2023,30110840,439.08,0,Equipment,Other Office Equipment Suppliers,Invoice,BACS,No,30/08/2023 00:00,2023,6,9988093,B2111,Car Parks - Administration,D2001,Equipment,HTP10,Off-Street Parking,HTP,Parking Services,HT,"Highways, Roads and Transport Services",H,"Highways, Roads and Transport Services"
GUILDFORD BOROUGH COUNCIL,Commercial Services,834160,Banner Group Limited,22/08/2023,30108360,550,0,Stationery & Paper,Other Office Equipment Suppliers,Invoice,BACS,No,28/07/2023 00:00,2023,4,9890111,B2111,Car Parks - Administration,D5007,Stationery & Paper,HTP10,Off-Street Parking,HTP,Parking Services,HT,"Highways, Roads and Transport Services",H,"Highways, Roads and Transport Services"
GUILDFORD BOROUGH COUNCIL,Commercial Services,834160,Banner Group Limited,22/08/2023,30108360,341.83,0,Stationery & Paper,Other Office Equipment Suppliers,Invoice,BACS,No,28/07/2023 00:00,2023,4,9890111,B2111,Car Parks - Administration,D5007,Stationery & Paper,HTP10,Off-Street Parking,HTP,Parking Services,HT,"Highways, Roads and Transport Services",H,"Highways, Roads and Transport Services"
GUILDFORD BOROUGH COUNCIL,Communication & Customer Services,834160,Banner Group Limited,22/08/2023,30106815,642.11,0,Stationery & Paper,Other Office Equipment Suppliers,Invoice,BACS,No,01/06/2023 00:00,2023,5,9780298,G3550,Resources Caseworker,D5007,Stationery & Paper,DBX35,Finance (including Internal Audit),DBX,Support Service and Management Costs,DB,Children's Social Care,E,Childrens and Education Services
GUILDFORD BOROUGH COUNCIL,Environmental Services,834160,Banner Group Limited,26/09/2023,30110840,835.42,0,Equipment,Other Office Equipment Suppliers,Invoice,BACS,No,30/08/2023 00:00,2023,6,9988093,A1600,Stoke Park Depot,D2001,Equipment,CCE00,Community Parks & Open Spaces,CCE,Open Spaces,CC,Cultural & Related Services,C,"Cultural, Environmental & Planning Services"
GUILDFORD BOROUGH COUNCIL,Regeneration & Planning Policy,1000396,Beckland Property Consultancy,12/09/2023,30109930,4520,0,Consultancy,,Invoice,BACS,No,18/08/2023 00:00,2023,5,GUI/PRO/AUG23,F5530,Major Projects,D6001,Consultancy,XXX99,*** UNASSIGNED ***,WCC,CEC Recharges,WC,CEC Recharges,A,Central Services
GUILDFORD BOROUGH COUNCIL,Community Services,908000,Beeline Taxis,26/09/2023,30111103,1680,0,Expenses,Taxis And Private Hire Companies,Invoice,BACS,No,31/08/2023 00:00,2023,6,1145,C8100,Community Hubs,D8004,Expenses,KGU00,Supporting People - Strategy,KGU,Supporting People,KG,Housing General Fund,K,Housing Services
GUILDFORD BOROUGH COUNCIL,Community Services,908000,Beeline Taxis,24/08/2023,30109567,1440,0,Expenses,Taxis And Private Hire Companies,Invoice,BACS,No,01/08/2023 00:00,2023,5,1107,C8100,Community Hubs,D8004,Expenses,KGU00,Supporting People - Strategy,KGU,Supporting People,KG,Housing General Fund,K,Housing Services
GUILDFORD BOROUGH COUNCIL,Community Services,908000,Beeline Taxis,27/07/2023,30106484,1936,0,Expenses,Taxis And Private Hire Companies,Invoice,BACS,No,01/07/2023 00:00,2023,4,1048,C8100,Community Hubs,D8004,Expenses,KGU00,Supporting People - Strategy,KGU,Supporting People,KG,Housing General Fund,K,Housing Services
GUILDFORD BOROUGH COUNCIL,Commercial Services,953400,Bemrose Booth Paragon Ltd,08/08/2023,30107254,478,0,Materials,Printing Service Providers,Invoice,BACS,No,14/07/2023 00:00,2023,4,514789,B2217,Guildford On-Street,D2003,Materials,HTP00,On-Street Parking,HTP,Parking Services,HT,"Highways, Roads and Transport Services",H,"Highways, Roads and Transport Services"
GUILDFORD BOROUGH COUNCIL,Commercial Services,953400,Bemrose Booth Paragon Ltd,08/08/2023,30107249,400,0,Materials,Printing Service Providers,Invoice,BACS,No,14/07/2023 00:00,2023,4,514790,B2111,Car Parks - Administration,D2003,Materials,HTP10,Off-Street Parking,HTP,Parking Services,HT,"Highways, Roads and Transport Services",H,"Highways, Roads and Transport Services"
GUILDFORD BOROUGH COUNCIL,Commercial Services,953400,Bemrose Booth Paragon Ltd,12/09/2023,30109923,3254,0,Materials,Printing Service Providers,Invoice,BACS,No,17/08/2023 00:00,2023,5,515676,B2111,Car Parks - Administration,D2003,Materials,HTP10,Off-Street Parking,HTP,Parking Services,HT,"Highways, Roads and Transport Services",H,"Highways, Roads and Transport Services"
GUILDFORD BOROUGH COUNCIL,Commercial Services,953400,Bemrose Booth Paragon Ltd,31/08/2023,30108994,1627,0,Materials,Printing Service Providers,Invoice,BACS,No,08/08/2023 00:00,2023,5,515486,B2111,Car Parks - Administration,D2003,Materials,HTP10,Off-Street Parking,HTP,Parking Services,HT,"Highways, Roads and Transport Services",H,"Highways, Roads and Transport Services"
GUILDFORD BOROUGH COUNCIL,Grants,929000,Bentley Mobility Services Limited,24/08/2023,30108509,2895,0,Grants To Private Owners,Mobility Disability Equipment Suppliers,Invoice,BACS,No,31/07/2023 00:00,2023,5,Bentley Mobility Services inv 30000,N51019,BCF Non Grant Expenditure,1311,Grants To Private Owners,XXX99,*** UNASSIGNED ***,WCC,CEC Recharges,WC,CEC Recharges,A,Central Services
GUILDFORD BOROUGH COUNCIL,Grants,929000,Bentley Mobility Services Limited,20/07/2023,30106878,5701,0,Grants To Private Owners,Mobility Disability Equipment Suppliers,Invoice,BACS,No,17/04/2023 00:00,2023,4,Bentley Mobility Services inv 29709,N51019,BCF Non Grant Expenditure,1311,Grants To Private Owners,XXX99,*** UNASSIGNED ***,WCC,CEC Recharges,WC,CEC Recharges,A,Central Services
GUILDFORD BOROUGH COUNCIL,Grants,929000,Bentley Mobility Services Limited,25/07/2023,30106048,2578,0,Grants To Private Owners,Mobility Disability Equipment Suppliers,Invoice,BACS,No,28/06/2023 00:00,2023,4,Bentley Mobility Services inv 29923,N51008,Mandatory DFG,1311,Grants To Private Owners,XXX99,*** UNASSIGNED ***,WCC,CEC Recharges,WC,CEC Recharges,A,Central Services
GUILDFORD BOROUGH COUNCIL,Grants,929000,Bentley Mobility Services Limited,31/08/2023,30108716,4776,0,Grants To Private Owners,Mobility Disability Equipment Suppliers,Invoice,BACS,No,07/08/2023 00:00,2023,5,Bentley Mobility Services inv 30019,N51019,BCF Non Grant Expenditure,1311,Grants To Private Owners,XXX99,*** UNASSIGNED ***,WCC,CEC Recharges,WC,CEC Recharges,A,Central Services
GUILDFORD BOROUGH COUNCIL,Grants,929000,Bentley Mobility Services Limited,24/08/2023,30108430,2990,0,Grants To Private Owners,Mobility Disability Equipment Suppliers,Invoice,BACS,No,31/07/2023 00:00,2023,5,Bentley Mobility Services inv 29999,N51019,BCF Non Grant Expenditure,1311,Grants To Private Owners,XXX99,*** UNASSIGNED ***,WCC,CEC Recharges,WC,CEC Recharges,A,Central Services
GUILDFORD BOROUGH COUNCIL,Grants,929000,Bentley Mobility Services Limited,28/09/2023,30110908,4078,0,Grants To Private Owners,Mobility Disability Equipment Suppliers,Invoice,BACS,No,04/09/2023 00:00,2023,6,30087,N51019,BCF Non Grant Expenditure,1311,Grants To Private Owners,XXX99,*** UNASSIGNED ***,WCC,CEC Recharges,WC,CEC Recharges,A,Central Services
GUILDFORD BOROUGH COUNCIL,Grants,929000,Bentley Mobility Services Limited,19/09/2023,30110241,5052,0,Grants To Private Owners,Mobility Disability Equipment Suppliers,Invoice,BACS,No,22/08/2023 00:00,2023,5,Bentley Mobility Services inv 30062,N51019,BCF Non Grant Expenditure,1311,Grants To Private Owners,XXX99,*** UNASSIGNED ***,WCC,CEC Recharges,WC,CEC Recharges,A,Central Services
GUILDFORD BOROUGH COUNCIL,Environmental Services,817300,Berendsen Workwear Ltd T/A Elis,26/09/2023,30110844,513.36,0,Maintenance Contracts,Linen And Blanket Suppliers,Invoice,BACS,No,01/09/2023 00:00,2023,6,IN195991,B4452,Woking Road Depot,D1002,Maintenance Contracts,XXX99,*** UNASSIGNED ***,WCC,CEC Recharges,WC,CEC Recharges,A,Central Services
GUILDFORD BOROUGH COUNCIL,Environmental Services,817300,Berendsen Workwear Ltd T/A Elis,08/08/2023,30108722,461.92,0,Maintenance Contracts,Linen And Blanket Suppliers,Invoice,BACS,No,01/07/2023 00:00,2023,5,IN168173,B4452,Woking Road Depot,D1002,Maintenance Contracts,XXX99,*** UNASSIGNED ***,WCC,CEC Recharges,WC,CEC Recharges,A,Central Services
GUILDFORD BOROUGH COUNCIL,Environmental Services,817300,Berendsen Workwear Ltd T/A Elis,26/09/2023,30110756,461.92,0,Maintenance Contracts,Linen And Blanket Suppliers,Invoice,BACS,No,01/09/2023 00:00,2023,6,IN187300,B4452,Woking Road Depot,D1002,Maintenance Contracts,XXX99,*** UNASSIGNED ***,WCC,CEC Recharges,WC,CEC Recharges,A,Central Services
GUILDFORD BOROUGH COUNCIL,Environmental Services,817300,Berendsen Workwear Ltd T/A Elis,24/08/2023,30109016,513.36,0,Maintenance Contracts,Linen And Blanket Suppliers,Invoice,BACS,No,01/08/2023 00:00,2023,5,IN186242,B4452,Woking Road Depot,D1002,Maintenance Contracts,XXX99,*** UNASSIGNED ***,WCC,CEC Recharges,WC,CEC Recharges,A,Central Services
GUILDFORD BOROUGH COUNCIL,Environmental Services,817300,Berendsen Workwear Ltd T/A Elis,24/08/2023,30108724,461.92,0,Maintenance Contracts,Linen And Blanket Suppliers,Invoice,BACS,No,01/08/2023 00:00,2023,5,IN177576,B4452,Woking Road Depot,D1002,Maintenance Contracts,XXX99,*** UNASSIGNED ***,WCC,CEC Recharges,WC,CEC Recharges,A,Central Services
GUILDFORD BOROUGH COUNCIL,Environmental Services,817300,Berendsen Workwear Ltd T/A Elis,10/08/2023,30108987,513.36,0,Maintenance Contracts,Linen And Blanket Suppliers,Invoice,BACS,No,01/07/2023 00:00,2023,5,IN176552,B4452,Woking Road Depot,D1002,Maintenance Contracts,XXX99,*** UNASSIGNED ***,WCC,CEC Recharges,WC,CEC Recharges,A,Central Services
GUILDFORD BOROUGH COUNCIL,Assets and Property,685740,Bernard Sims Associates,08/08/2023,30107259,420,0,Consultancy,Health And Safety Consultants,Invoice,BACS,No,14/07/2023 00:00,2023,4,57456,G4575,Asset Management,D6001,Consultancy,DBX45,Property Services,DBX,Support Service and Management Costs,DB,Children's Social Care,E,Childrens and Education Services
GUILDFORD BOROUGH COUNCIL,Assets and Property,685740,Bernard Sims Associates,25/07/2023,30106600,420,0,Consultancy,Health And Safety Consultants,Invoice,BACS,No,30/06/2023 00:00,2023,4,57388,G4575,Asset Management,D6001,Consultancy,DBX45,Property Services,DBX,Support Service and Management Costs,DB,Children's Social Care,E,Childrens and Education Services
GUILDFORD BOROUGH COUNCIL,Assets and Property,685740,Bernard Sims Associates,01/08/2023,30108312,1640,0,Consultancy,Health And Safety Consultants,Invoice,BACS,No,12/06/2023 00:00,2023,4,57111,G4575,Asset Management,D6001,Consultancy,DBX45,Property Services,DBX,Support Service and Management Costs,DB,Children's Social Care,E,Childrens and Education Services
GUILDFORD BOROUGH COUNCIL,Finance,943290,BGC European Holdings Lp,25/07/2023,30106446,7534.25,0,Brokers Commission,,Invoice,BACS,No,30/06/2023 00:00,2023,4,60036,F1135,Treasury Management Admin,D6003,Brokers Commission,DBX35,Finance (including Internal Audit),DBX,Support Service and Management Costs,DB,Children's Social Care,E,Childrens and Education Services
GUILDFORD BOROUGH COUNCIL,Grants,938540,BJC Design (Southeast) Ltd,24/08/2023,30108511,1190.6,0,Grants To Private Owners,Surveyors And Inspectors,Invoice,BACS,No,31/07/2023 00:00,2023,5,1103,N51019,BCF Non Grant Expenditure,1311,Grants To Private Owners,XXX99,*** UNASSIGNED ***,WCC,CEC Recharges,WC,CEC Recharges,A,Central Services
GUILDFORD BOROUGH COUNCIL,Grants,938540,BJC Design (Southeast) Ltd,15/08/2023,30107784,522.59,0,Grants To Private Owners,Surveyors And Inspectors,Invoice,BACS,No,20/07/2023 00:00,2023,4,BJC Design 001098,N51019,BCF Non Grant Expenditure,1311,Grants To Private Owners,XXX99,*** UNASSIGNED ***,WCC,CEC Recharges,WC,CEC Recharges,A,Central Services
GUILDFORD BOROUGH COUNCIL,Grants,938540,BJC Design (Southeast) Ltd,31/08/2023,30108953,954.6,0,Grants To Private Owners,Surveyors And Inspectors,Invoice,BACS,No,08/08/2023 00:00,2023,5,1114,N51008,Mandatory DFG,1311,Grants To Private Owners,XXX99,*** UNASSIGNED ***,WCC,CEC Recharges,WC,CEC Recharges,A,Central Services
GUILDFORD BOROUGH COUNCIL,Planning & Development,1000229,BJC Planning,25/07/2023,30107097,4303.9,0,Consultancy,,Invoice,BACS,No,30/06/2023 00:00,2023,4,GU/52/INV/6503,D5100,Development Control - Fee Earn,D6001,Consultancy,CPC00,Development Control Advice,CPC,Development Control,CP,Planning and Development Services,C,"Cultural, Environmental & Planning Services"
GUILDFORD BOROUGH COUNCIL,Executive - Miscellaneous,1000280,Blakedown Landscapes (SE) Ltd,27/07/2023,30106491,15543.34,0,Consultants Fees,,Invoice,BACS,No,30/06/2023 00:00,2023,4,L23213,P79100,Wuv - Allotment Relocation,1221,Consultants Fees,XXX99,*** UNASSIGNED ***,WCC,CEC Recharges,WC,CEC Recharges,A,Central Services
GUILDFORD BOROUGH COUNCIL,Commercial Services,1000986,Blue Horizon Ventures Ltd.,26/09/2023,30110834,11725,0,Consultancy,,Invoice,BACS,No,31/08/2023 00:00,2023,6,INV-0041,A2141,G Live,D6001,Consultancy,CCA10,Arts Development & Support,CCA,Culture & Heritage,CC,Cultural & Related Services,C,"Cultural, Environmental & Planning Services"
GUILDFORD BOROUGH COUNCIL,Planning & Development,871110,BNP Paribas Real Estate Advisory,26/09/2023,30110932,3500,0,Consultancy,Property Letting And Estate Agents,Invoice,BACS,No,31/08/2023 00:00,2023,6,299895,D5100,Development Control - Fee Earn,D6001,Consultancy,CPC00,Development Control Advice,CPC,Development Control,CP,Planning and Development Services,C,"Cultural, Environmental & Planning Services"
GUILDFORD BOROUGH COUNCIL,IT Renewals,892850,Bolderwood Solutions Ltd,24/08/2023,30108647,14275,0,Contractor Payments,Computer Systems Integrators,Invoice,BACS,No,31/07/2023 00:00,2023,5,GBC-0096,P81002,IT Renewals Reserve Funded General,1233,Contractor Payments,XXX99,*** UNASSIGNED ***,WCC,CEC Recharges,WC,CEC Recharges,A,Central Services
GUILDFORD BOROUGH COUNCIL,Finance,261490,Bottomline Technologies Limited,26/09/2023,30111095,7220.33,0,Services,Software As A Service Providers,Invoice,BACS,No,31/08/2023 00:00,2023,6,UKINV-418367,F1111,Corporate Services,D6004,Services,DBX70,Other Management Costs,DBX,Support Service and Management Costs,DB,Children's Social Care,E,Childrens and Education Services
GUILDFORD BOROUGH COUNCIL,Planning & Development,1000845,BPS Dorking Limited t/a BPS Chartered Surveyors,17/08/2023,30107997,6800,0,Consultancy,,Invoice,BACS,No,25/07/2023 00:00,2023,4,158004/2463,D5100,Development Control - Fee Earn,D6001,Consultancy,CPC00,Development Control Advice,CPC,Development Control,CP,Planning and Development Services,C,"Cultural, Environmental & Planning Services"
GUILDFORD BOROUGH COUNCIL,Regulatory Services,931600,Bracknell Forest Borough Council,15/08/2023,30109205,1769.82,0,Services,Local Government [Uk Only],Invoice,BACS,No,13/06/2023 00:00,2023,5,7154991,C1113,Environmental Control,D6004,Services,CEE25,Environmental Protection,CEE,Environmental Health (Regulatory Services),CE,Environmental & Regulatory Services,C,"Cultural, Environmental & Planning Services"
GUILDFORD BOROUGH COUNCIL,Commercial Services,202390,Brand Pest Control,01/08/2023,30107262,383.5,0,Cleaning Contractors,Pest And Vermin Control Service Providers,Invoice,BACS,No,08/07/2023 00:00,2023,4,3295,B2111,Car Parks - Administration,D6006,Cleaning Contractors,HTP10,Off-Street Parking,HTP,Parking Services,HT,"Highways, Roads and Transport Services",H,"Highways, Roads and Transport Services"
GUILDFORD BOROUGH COUNCIL,Commercial Services,202390,Brand Pest Control,28/09/2023,30111066,383.5,0,Cleaning Contractors,Pest And Vermin Control Service Providers,Invoice,BACS,No,04/09/2023 00:00,2023,6,3471,B2216,General Upkeep- Urban Car Pks,D6006,Cleaning Contractors,HTP10,Off-Street Parking,HTP,Parking Services,HT,"Highways, Roads and Transport Services",H,"Highways, Roads and Transport Services"
GUILDFORD BOROUGH COUNCIL,Commercial Services,202390,Brand Pest Control,31/08/2023,30109253,383.5,0,Cleaning Contractors,Pest And Vermin Control Service Providers,Invoice,BACS,No,08/08/2023 00:00,2023,5,3395,B2216,General Upkeep- Urban Car Pks,D6006,Cleaning Contractors,HTP10,Off-Street Parking,HTP,Parking Services,HT,"Highways, Roads and Transport Services",H,"Highways, Roads and Transport Services"
GUILDFORD BOROUGH COUNCIL,Modern Homes,129090,Breyer Group Plc,21/09/2023,30111847,3240,0,Contractor Payments,General Builders,Invoice,BACS,No,05/09/2023 00:00,2023,6,SIN-000359,N42069,Void Properties - refurbishment,1233,Contractor Payments,XXX99,*** UNASSIGNED ***,WCC,CEC Recharges,WC,CEC Recharges,A,Central Services
GUILDFORD BOROUGH COUNCIL,Modern Homes,129090,Breyer Group Plc,18/07/2023,30107165,4908.1,0,Contractor Payments,General Builders,Invoice,BACS,No,11/07/2023 00:00,2023,4,SIN-000153,N42069,Void Properties - refurbishment,1233,Contractor Payments,XXX99,*** UNASSIGNED ***,WCC,CEC Recharges,WC,CEC Recharges,A,Central Services
GUILDFORD BOROUGH COUNCIL,Modern Homes,129090,Breyer Group Plc,18/07/2023,30107165,20000,0,Contractor Payments,General Builders,Invoice,BACS,No,11/07/2023 00:00,2023,4,SIN-000153,N42069,Void Properties - refurbishment,1233,Contractor Payments,XXX99,*** UNASSIGNED ***,WCC,CEC Recharges,WC,CEC Recharges,A,Central Services
GUILDFORD BOROUGH COUNCIL,Modern Homes,129090,Breyer Group Plc,18/07/2023,30107306,10030.59,0,Contractor Payments,General Builders,Invoice,BACS,No,31/05/2023 00:00,2023,4,56886,N42069,Void Properties - refurbishment,1233,Contractor Payments,XXX99,*** UNASSIGNED ***,WCC,CEC Recharges,WC,CEC Recharges,A,Central Services
GUILDFORD BOROUGH COUNCIL,Modern Homes,129090,Breyer Group Plc,18/07/2023,30107307,3103.94,0,Contractor Payments,General Builders,Invoice,BACS,No,08/06/2023 00:00,2023,4,SIN-000001,N42069,Void Properties - refurbishment,1233,Contractor Payments,XXX99,*** UNASSIGNED ***,WCC,CEC Recharges,WC,CEC Recharges,A,Central Services
GUILDFORD BOROUGH COUNCIL,Modern Homes,129090,Breyer Group Plc,18/07/2023,30107308,21403.04,0,Contractor Payments,General Builders,Invoice,BACS,No,02/06/2023 00:00,2023,4,SIN-000060,N42069,Void Properties - refurbishment,1233,Contractor Payments,XXX99,*** UNASSIGNED ***,WCC,CEC Recharges,WC,CEC Recharges,A,Central Services
GUILDFORD BOROUGH COUNCIL,Modern Homes,129090,Breyer Group Plc,18/07/2023,30107308,12000,0,Contractor Payments,General Builders,Invoice,BACS,No,02/06/2023 00:00,2023,4,SIN-000060,N42069,Void Properties - refurbishment,1233,Contractor Payments,XXX99,*** UNASSIGNED ***,WCC,CEC Recharges,WC,CEC Recharges,A,Central Services
GUILDFORD BOROUGH COUNCIL,Modern Homes,129090,Breyer Group Plc,18/07/2023,30107309,19500,0,Contractor Payments,General Builders,Invoice,BACS,No,02/06/2023 00:00,2023,4,SIN-000061,N42069,Void Properties - refurbishment,1233,Contractor Payments,XXX99,*** UNASSIGNED ***,WCC,CEC Recharges,WC,CEC Recharges,A,Central Services
GUILDFORD BOROUGH COUNCIL,Modern Homes,129090,Breyer Group Plc,18/07/2023,30107310,18500,0,Contractor Payments,General Builders,Invoice,BACS,No,02/06/2023 00:00,2023,4,SIN-000062,N42069,Void Properties - refurbishment,1233,Contractor Payments,XXX99,*** UNASSIGNED ***,WCC,CEC Recharges,WC,CEC Recharges,A,Central Services
GUILDFORD BOROUGH COUNCIL,Modern Homes,129090,Breyer Group Plc,18/07/2023,30107216,35000,0,Contractor Payments,General Builders,Invoice,BACS,No,03/05/2023 00:00,2023,4,56712,N42069,Void Properties - refurbishment,1233,Contractor Payments,XXX99,*** UNASSIGNED ***,WCC,CEC Recharges,WC,CEC Recharges,A,Central Services
GUILDFORD BOROUGH COUNCIL,Modern Homes,129090,Breyer Group Plc,18/07/2023,30107217,20000,0,Contractor Payments,General Builders,Invoice,BACS,No,03/05/2023 00:00,2023,4,56713,N42069,Void Properties - refurbishment,1233,Contractor Payments,XXX99,*** UNASSIGNED ***,WCC,CEC Recharges,WC,CEC Recharges,A,Central Services
GUILDFORD BOROUGH COUNCIL,Modern Homes,129090,Breyer Group Plc,15/08/2023,30109357,20000,0,Contractor Payments,General Builders,Invoice,BACS,No,02/08/2023 00:00,2023,5,SIN-000243,N42069,Void Properties - refurbishment,1233,Contractor Payments,XXX99,*** UNASSIGNED ***,WCC,CEC Recharges,WC,CEC Recharges,A,Central Services
GUILDFORD BOROUGH COUNCIL,Modern Homes,129090,Breyer Group Plc,15/08/2023,30109358,20000,0,Contractor Payments,General Builders,Invoice,BACS,No,01/08/2023 00:00,2023,5,SIN-000244,N42069,Void Properties - refurbishment,1233,Contractor Payments,XXX99,*** UNASSIGNED ***,WCC,CEC Recharges,WC,CEC Recharges,A,Central Services
GUILDFORD BOROUGH COUNCIL,Modern Homes,129090,Breyer Group Plc,15/08/2023,30109359,20000,0,Contractor Payments,General Builders,Invoice,BACS,No,01/08/2023 00:00,2023,5,SIN-000245,N42069,Void Properties - refurbishment,1233,Contractor Payments,XXX99,*** UNASSIGNED ***,WCC,CEC Recharges,WC,CEC Recharges,A,Central Services
GUILDFORD BOROUGH COUNCIL,Modern Homes,129090,Breyer Group Plc,18/07/2023,30107165,5500,0,Contractor Payments,General Builders,Invoice,BACS,No,11/07/2023 00:00,2023,4,SIN-000153,N42069,Void Properties - refurbishment,1233,Contractor Payments,XXX99,*** UNASSIGNED ***,WCC,CEC Recharges,WC,CEC Recharges,A,Central Services
GUILDFORD BOROUGH COUNCIL,Modern Homes,129090,Breyer Group Plc,18/07/2023,30107166,76124.53,0,Contractor Payments,General Builders,Invoice,BACS,No,21/06/2023 00:00,2023,4,SPN-000028,N47034,Pitched roof replacement,1233,Contractor Payments,XXX99,*** UNASSIGNED ***,WCC,CEC Recharges,WC,CEC Recharges,A,Central Services
GUILDFORD BOROUGH COUNCIL,Modern Homes,129090,Breyer Group Plc,18/07/2023,30107306,1799,0,Contractor Payments,General Builders,Invoice,BACS,No,31/05/2023 00:00,2023,4,56886,N42069,Void Properties - refurbishment,1233,Contractor Payments,XXX99,*** UNASSIGNED ***,WCC,CEC Recharges,WC,CEC Recharges,A,Central Services
GUILDFORD BOROUGH COUNCIL,Modern Homes,129090,Breyer Group Plc,18/07/2023,30107306,850,0,Contractor Payments,General Builders,Invoice,BACS,No,31/05/2023 00:00,2023,4,56886,N42069,Void Properties - refurbishment,1233,Contractor Payments,XXX99,*** UNASSIGNED ***,WCC,CEC Recharges,WC,CEC Recharges,A,Central Services
GUILDFORD BOROUGH COUNCIL,Modern Homes,129090,Breyer Group Plc,18/07/2023,30107309,13807.93,0,Contractor Payments,General Builders,Invoice,BACS,No,02/06/2023 00:00,2023,4,SIN-000061,N42069,Void Properties - refurbishment,1233,Contractor Payments,XXX99,*** UNASSIGNED ***,WCC,CEC Recharges,WC,CEC Recharges,A,Central Services
GUILDFORD BOROUGH COUNCIL,Modern Homes,129090,Breyer Group Plc,18/07/2023,30107310,8294.83,0,Contractor Payments,General Builders,Invoice,BACS,No,02/06/2023 00:00,2023,4,SIN-000062,N42069,Void Properties - refurbishment,1233,Contractor Payments,XXX99,*** UNASSIGNED ***,WCC,CEC Recharges,WC,CEC Recharges,A,Central Services
GUILDFORD BOROUGH COUNCIL,Modern Homes,129090,Breyer Group Plc,18/07/2023,30107311,15461.05,0,Contractor Payments,General Builders,Invoice,BACS,No,06/06/2023 00:00,2023,4,SIN-000063,N42069,Void Properties - refurbishment,1233,Contractor Payments,XXX99,*** UNASSIGNED ***,WCC,CEC Recharges,WC,CEC Recharges,A,Central Services
GUILDFORD BOROUGH COUNCIL,Modern Homes,129090,Breyer Group Plc,18/07/2023,30107312,15500,0,Contractor Payments,General Builders,Invoice,BACS,No,21/06/2023 00:00,2023,4,SIN-000075,N42069,Void Properties - refurbishment,1233,Contractor Payments,XXX99,*** UNASSIGNED ***,WCC,CEC Recharges,WC,CEC Recharges,A,Central Services
GUILDFORD BOROUGH COUNCIL,Modern Homes,129090,Breyer Group Plc,18/07/2023,30107312,13727.33,0,Contractor Payments,General Builders,Invoice,BACS,No,21/06/2023 00:00,2023,4,SIN-000075,N42069,Void Properties - refurbishment,1233,Contractor Payments,XXX99,*** UNASSIGNED ***,WCC,CEC Recharges,WC,CEC Recharges,A,Central Services
GUILDFORD BOROUGH COUNCIL,Modern Homes,129090,Breyer Group Plc,18/07/2023,30107314,1076.4,0,Contractor Payments,General Builders,Invoice,BACS,No,13/07/2023 00:00,2023,4,SIN-000158,N48057,Structural works - various properties,1233,Contractor Payments,XXX99,*** UNASSIGNED ***,WCC,CEC Recharges,WC,CEC Recharges,A,Central Services
GUILDFORD BOROUGH COUNCIL,Modern Homes,129090,Breyer Group Plc,18/07/2023,30107217,27250.4,0,Contractor Payments,General Builders,Invoice,BACS,No,03/05/2023 00:00,2023,4,56713,N42069,Void Properties - refurbishment,1233,Contractor Payments,XXX99,*** UNASSIGNED ***,WCC,CEC Recharges,WC,CEC Recharges,A,Central Services
GUILDFORD BOROUGH COUNCIL,Modern Homes,129090,Breyer Group Plc,18/07/2023,30107219,18605.89,0,Contractor Payments,General Builders,Invoice,BACS,No,21/06/2023 00:00,2023,4,SIN-000089,N42069,Void Properties - refurbishment,1233,Contractor Payments,XXX99,*** UNASSIGNED ***,WCC,CEC Recharges,WC,CEC Recharges,A,Central Services
GUILDFORD BOROUGH COUNCIL,Modern Homes,129090,Breyer Group Plc,18/07/2023,30107219,3500,0,Contractor Payments,General Builders,Invoice,BACS,No,21/06/2023 00:00,2023,4,SIN-000089,N42069,Void Properties - refurbishment,1233,Contractor Payments,XXX99,*** UNASSIGNED ***,WCC,CEC Recharges,WC,CEC Recharges,A,Central Services
GUILDFORD BOROUGH COUNCIL,Modern Homes,129090,Breyer Group Plc,18/07/2023,30107220,20428.03,0,Contractor Payments,General Builders,Invoice,BACS,No,22/06/2023 00:00,2023,4,SIN-000092,N42069,Void Properties - refurbishment,1233,Contractor Payments,XXX99,*** UNASSIGNED ***,WCC,CEC Recharges,WC,CEC Recharges,A,Central Services
GUILDFORD BOROUGH COUNCIL,Modern Homes,129090,Breyer Group Plc,18/07/2023,30107221,8027,0,Contractor Payments,General Builders,Invoice,BACS,No,28/06/2023 00:00,2023,4,SIN-000103,N42069,Void Properties - refurbishment,1233,Contractor Payments,XXX99,*** UNASSIGNED ***,WCC,CEC Recharges,WC,CEC Recharges,A,Central Services
GUILDFORD BOROUGH COUNCIL,HRA Service Delivery,129090,Breyer Group Plc,21/09/2023,30111848,400,0,Asset Maintenance,General Builders,Invoice,BACS,No,08/09/2023 00:00,2023,6,SIN-000366,M5113,Repairs-Responsive (BHS),B1001,Asset Maintenance,W3A05,Current Service Costs - Housing Services,W3A,Current Service Costs adjustment,W3,Current Service Costs,W,Other Operating Income and Expenditure
GUILDFORD BOROUGH COUNCIL,Modern Homes,129090,Breyer Group Plc,18/07/2023,30107313,14328.42,0,Contractor Payments,General Builders,Invoice,BACS,No,26/06/2023 00:00,2023,4,SIN-000097,N42068,"Kitchen, bathroom and electrical upgrades",1233,Contractor Payments,XXX99,*** UNASSIGNED ***,WCC,CEC Recharges,WC,CEC Recharges,A,Central Services
GUILDFORD BOROUGH COUNCIL,Heating,129090,Breyer Group Plc,19/09/2023,30111661,18604.38,0,Contractor Payments,General Builders,Invoice,BACS,No,27/07/2023 00:00,2023,6,SIN-000223,N44071,External Wall Insulation,1233,Contractor Payments,XXX99,*** UNASSIGNED ***,WCC,CEC Recharges,WC,CEC Recharges,A,Central Services
GUILDFORD BOROUGH COUNCIL,Modern Homes,129090,Breyer Group Plc,19/09/2023,30111663,11800,0,Contractor Payments,General Builders,Invoice,BACS,No,03/08/2023 00:00,2023,6,SIN-000267,N42068,"Kitchen, bathroom and electrical upgrades",1233,Contractor Payments,XXX99,*** UNASSIGNED ***,WCC,CEC Recharges,WC,CEC Recharges,A,Central Services
GUILDFORD BOROUGH COUNCIL,Modern Homes,129090,Breyer Group Plc,19/09/2023,30111663,5300,0,Contractor Payments,General Builders,Invoice,BACS,No,03/08/2023 00:00,2023,6,SIN-000267,N42068,"Kitchen, bathroom and electrical upgrades",1233,Contractor Payments,XXX99,*** UNASSIGNED ***,WCC,CEC Recharges,WC,CEC Recharges,A,Central Services
GUILDFORD BOROUGH COUNCIL,Modern Homes,129090,Breyer Group Plc,18/07/2023,30107218,35000,0,Contractor Payments,General Builders,Invoice,BACS,No,03/05/2023 00:00,2023,4,56714,N42069,Void Properties - refurbishment,1233,Contractor Payments,XXX99,*** UNASSIGNED ***,WCC,CEC Recharges,WC,CEC Recharges,A,Central Services
GUILDFORD BOROUGH COUNCIL,Modern Homes,129090,Breyer Group Plc,18/07/2023,30107219,8500,0,Contractor Payments,General Builders,Invoice,BACS,No,21/06/2023 00:00,2023,4,SIN-000089,N42069,Void Properties - refurbishment,1233,Contractor Payments,XXX99,*** UNASSIGNED ***,WCC,CEC Recharges,WC,CEC Recharges,A,Central Services
GUILDFORD BOROUGH COUNCIL,Modern Homes,129090,Breyer Group Plc,18/07/2023,30107220,6924.01,0,Contractor Payments,General Builders,Invoice,BACS,No,22/06/2023 00:00,2023,4,SIN-000092,N42069,Void Properties - refurbishment,1233,Contractor Payments,XXX99,*** UNASSIGNED ***,WCC,CEC Recharges,WC,CEC Recharges,A,Central Services
GUILDFORD BOROUGH COUNCIL,Modern Homes,129090,Breyer Group Plc,18/07/2023,30107220,8879.64,0,Contractor Payments,General Builders,Invoice,BACS,No,22/06/2023 00:00,2023,4,SIN-000092,N42069,Void Properties - refurbishment,1233,Contractor Payments,XXX99,*** UNASSIGNED ***,WCC,CEC Recharges,WC,CEC Recharges,A,Central Services
GUILDFORD BOROUGH COUNCIL,Heating,129090,Breyer Group Plc,18/07/2023,30107223,6700,0,Contractor Payments,General Builders,Invoice,BACS,No,10/07/2023 00:00,2023,4,SIN-000151,N44075,Central heating boiler upgrades,1233,Contractor Payments,XXX99,*** UNASSIGNED ***,WCC,CEC Recharges,WC,CEC Recharges,A,Central Services
GUILDFORD BOROUGH COUNCIL,Modern Homes,129090,Breyer Group Plc,18/07/2023,30107224,12092,0,Contractor Payments,General Builders,Invoice,BACS,No,10/07/2023 00:00,2023,4,SIN-000152,N48057,Structural works - various properties,1233,Contractor Payments,XXX99,*** UNASSIGNED ***,WCC,CEC Recharges,WC,CEC Recharges,A,Central Services
GUILDFORD BOROUGH COUNCIL,Modern Homes,129090,Breyer Group Plc,11/07/2023,30106701,4823.89,0,Contractor Payments,General Builders,Invoice,BACS,No,29/06/2023 00:00,2023,4,SIN-000110,N48057,Structural works - various properties,1233,Contractor Payments,XXX99,*** UNASSIGNED ***,WCC,CEC Recharges,WC,CEC Recharges,A,Central Services
GUILDFORD BOROUGH COUNCIL,Finance,129090,Breyer Group Plc,19/09/2023,30111322,46000,0,Contractors,General Builders,Invoice,BACS,No,11/09/2023 00:00,2023,6,SIN-000376,F7539,COVID-19,D6012,Contractors,DBX70,Other Management Costs,DBX,Support Service and Management Costs,DB,Children's Social Care,E,Childrens and Education Services
GUILDFORD BOROUGH COUNCIL,Finance,129090,Breyer Group Plc,19/09/2023,30111332,23000,0,Contractors,General Builders,Invoice,BACS,No,11/09/2023 00:00,2023,6,SIN-000377,F7539,COVID-19,D6012,Contractors,DBX70,Other Management Costs,DBX,Support Service and Management Costs,DB,Children's Social Care,E,Childrens and Education Services
GUILDFORD BOROUGH COUNCIL,Finance,129090,Breyer Group Plc,19/09/2023,30111336,5750,0,Contractors,General Builders,Invoice,BACS,No,11/09/2023 00:00,2023,6,SIN-000374,F7539,COVID-19,D6012,Contractors,DBX70,Other Management Costs,DBX,Support Service and Management Costs,DB,Children's Social Care,E,Childrens and Education Services
GUILDFORD BOROUGH COUNCIL,Modern Homes,129090,Breyer Group Plc,19/09/2023,30111658,2500,0,Contractor Payments,General Builders,Invoice,BACS,No,25/07/2023 00:00,2023,6,SIN-000207,N42069,Void Properties - refurbishment,1233,Contractor Payments,XXX99,*** UNASSIGNED ***,WCC,CEC Recharges,WC,CEC Recharges,A,Central Services
GUILDFORD BOROUGH COUNCIL,Modern Homes,129090,Breyer Group Plc,19/09/2023,30111658,1250,0,Contractor Payments,General Builders,Invoice,BACS,No,25/07/2023 00:00,2023,6,SIN-000207,N42069,Void Properties - refurbishment,1233,Contractor Payments,XXX99,*** UNASSIGNED ***,WCC,CEC Recharges,WC,CEC Recharges,A,Central Services
GUILDFORD BOROUGH COUNCIL,Modern Homes,129090,Breyer Group Plc,19/09/2023,30111659,5200,0,Contractor Payments,General Builders,Invoice,BACS,No,27/07/2023 00:00,2023,6,SIN-000221,N42069,Void Properties - refurbishment,1233,Contractor Payments,XXX99,*** UNASSIGNED ***,WCC,CEC Recharges,WC,CEC Recharges,A,Central Services
GUILDFORD BOROUGH COUNCIL,Modern Homes,129090,Breyer Group Plc,19/09/2023,30111662,26528.72,0,Contractor Payments,General Builders,Invoice,BACS,No,01/08/2023 00:00,2023,6,SIN-000238,N42069,Void Properties - refurbishment,1233,Contractor Payments,XXX99,*** UNASSIGNED ***,WCC,CEC Recharges,WC,CEC Recharges,A,Central Services
GUILDFORD BOROUGH COUNCIL,Modern Homes,129090,Breyer Group Plc,19/09/2023,30111662,2000,0,Contractor Payments,General Builders,Invoice,BACS,No,01/08/2023 00:00,2023,6,SIN-000238,N42069,Void Properties - refurbishment,1233,Contractor Payments,XXX99,*** UNASSIGNED ***,WCC,CEC Recharges,WC,CEC Recharges,A,Central Services
GUILDFORD BOROUGH COUNCIL,Modern Homes,129090,Breyer Group Plc,19/09/2023,30111663,30229.83,0,Contractor Payments,General Builders,Invoice,BACS,No,03/08/2023 00:00,2023,6,SIN-000267,N42069,Void Properties - refurbishment,1233,Contractor Payments,XXX99,*** UNASSIGNED ***,WCC,CEC Recharges,WC,CEC Recharges,A,Central Services
GUILDFORD BOROUGH COUNCIL,Doors and Windows,129090,Breyer Group Plc,19/09/2023,30111666,1290.25,0,Contractor Payments,General Builders,Invoice,BACS,No,25/08/2023 00:00,2023,6,SIN-000330,N45075,Replacement of windows and doors,1233,Contractor Payments,XXX99,*** UNASSIGNED ***,WCC,CEC Recharges,WC,CEC Recharges,A,Central Services
GUILDFORD BOROUGH COUNCIL,Modern Homes,129090,Breyer Group Plc,19/09/2023,30111667,11500,0,Contractor Payments,General Builders,Invoice,BACS,No,25/08/2023 00:00,2023,6,SIN-000331,N42069,Void Properties - refurbishment,1233,Contractor Payments,XXX99,*** UNASSIGNED ***,WCC,CEC Recharges,WC,CEC Recharges,A,Central Services
GUILDFORD BOROUGH COUNCIL,Modern Homes,129090,Breyer Group Plc,19/09/2023,30111667,19182.37,0,Contractor Payments,General Builders,Invoice,BACS,No,25/08/2023 00:00,2023,6,SIN-000331,N42069,Void Properties - refurbishment,1233,Contractor Payments,XXX99,*** UNASSIGNED ***,WCC,CEC Recharges,WC,CEC Recharges,A,Central Services
GUILDFORD BOROUGH COUNCIL,Modern Homes,129090,Breyer Group Plc,19/09/2023,30111668,17517.79,0,Contractor Payments,General Builders,Invoice,BACS,No,25/08/2023 00:00,2023,6,SIN-000332,N42069,Void Properties - refurbishment,1233,Contractor Payments,XXX99,*** UNASSIGNED ***,WCC,CEC Recharges,WC,CEC Recharges,A,Central Services
GUILDFORD BOROUGH COUNCIL,Modern Homes,129090,Breyer Group Plc,19/09/2023,30111668,8400,0,Contractor Payments,General Builders,Invoice,BACS,No,25/08/2023 00:00,2023,6,SIN-000332,N42069,Void Properties - refurbishment,1233,Contractor Payments,XXX99,*** UNASSIGNED ***,WCC,CEC Recharges,WC,CEC Recharges,A,Central Services
GUILDFORD BOROUGH COUNCIL,Modern Homes,129090,Breyer Group Plc,19/09/2023,30111668,5200,0,Contractor Payments,General Builders,Invoice,BACS,No,25/08/2023 00:00,2023,6,SIN-000332,N42069,Void Properties - refurbishment,1233,Contractor Payments,XXX99,*** UNASSIGNED ***,WCC,CEC Recharges,WC,CEC Recharges,A,Central Services
GUILDFORD BOROUGH COUNCIL,Modern Homes,129090,Breyer Group Plc,19/09/2023,30111670,1500,0,Contractor Payments,General Builders,Invoice,BACS,No,25/08/2023 00:00,2023,6,SIN-000334,N42069,Void Properties - refurbishment,1233,Contractor Payments,XXX99,*** UNASSIGNED ***,WCC,CEC Recharges,WC,CEC Recharges,A,Central Services
